{"text_format":"1","workbook":"xlsx","n_sheets":12,"sheets":["INSERIMENTO DATI","TAB. per calcolo magg. CC","PROSPETTO DI RIEPILOGO","Tabella A1","Tabella A2","Tabella B1 -B2 - B3","Tabella Standard","PROSP. RIEP. PER VARIANTE","PROSPETTO RATE","PROSPETTO RATE NEW","INFO VERS. E MODIFICHE","Elenchi"],"not_rendered":{"charts":0,"images":15,"macros":1,"external_links":0,"defined_names":10,"comments":0,"pivot_tables":0},"unopened":[],"bounds":{"document_bytes":16777216,"sheet_cells":100000,"rows_first":2000,"rows_last":500,"rows_between":2000,"halvings":0,"cell_chars":16384,"cell_head_chars":4096},"cells_cut":0,"cells_raw":0,"read":"whole","date_system":"1900"}

{"sheet":"INSERIMENTO DATI","index":0,"n_rows":97,"n_cols":26,"rows_kept":97,"cut":false,"hidden":false,"merged":[[98,1,98,15],[1,3,1,15],[3,3,3,15],[5,3,5,15],[7,3,7,15],[10,13,10,15],[36,6,36,15],[41,1,41,13],[43,1,43,13],[49,1,53,1],[56,1,56,3],[63,1,63,15],[42,1,42,13]]}
[]
[null,null,null,"PROSPETTO DI AUTOCALCOLO PER LA DETERMINAZIONE DEL CONTRIBUTO DI COSTRUZIONE ",null,null,null,null,null,null,null,null,null,null,null,null,null,"FLAG"]
[]
[null,"Pratica edilizia",null,null,null,null,null,null,null,null,null,null,null,null,null,null,null,{"$f":"TODAY()","v":"2024-03-27"},null,null,"colore campi editabili"]
[]
[null,"Beneficiario",null,null,null,null,null,null,null,null,null,null,null,null,null,null,null,null,null,null,"R",146]
[]
[null,"Ubicazione ",null,null,null,null,null,null,null,null,null,null,null,null,null,null,null,null,null,null,"V",205]
[null,null,null,null,null,null,null,null,null,null,null,null,null,null,null,null,null,null,null,null,"B",220]
[]
[null,"Destinazione di P.R.G.",null,"Centro Storico A1",null,null,null,null,null,null,null,"Norma da N.T.A.",null,{"$f":"IF(ISERROR((VLOOKUP(IF(D13=\"\",D11,D11&\" \"&D13),'Tabella A1'!$J$9:P50,7,FALSE)))=TRUE,\"\",(VLOOKUP(IF(D13=\"\",D11,D11&\" \"&D13),'Tabella A1'!$J$9:P50,7,FALSE)))","v":"Art. 45"},null,null,null,{"$f":"IF(D11=\"Rinn. urbano terz./direz. B9\",\"B9\",\"ALTRO\")","v":"ALTRO"},{"$f":"VLOOKUP(D11,Elenchi!A:B,2,FALSE)","v":"RESIDENZA"}]
[]
[null,"Distanza dal Mare"]
[]
[null,"Tipo insediamento",null,null,null,null,null,null,null,null,null,null,null,null,null,null,null,1,"If (Range(\"S21\") <> \"NO STANDARD\") Or (Range(\"R18\") = \"SI\")"]
[]
[null,"Nr. Dipendenti",null,null,null,null,null,45]
[null,null,null,null,null,null,null,null,null,null,null,null,null,null,null,null,null,null,"FLAG CAMBIO D'USO IN DEROGA"]
[null,null,null,null,null,null,null,null,null,null,null,null,null,null,null,null,null,1,"FLAG TIPO DI INTERVENTO"]
[null,null,null,null,null,null,null,null,null,null,null,null,null,null,null,null,null,1,"FLAG TIPO TABELLA ONERI A1 A2"]
[null,"DATI DI PROGETTO",null,null,null,null,null,null,null,null,null,null,null,null,null,null,null,{"$f":"IF(S21=\"STANDARD RESIDENZIALI\",1,(IF(S21=\"STANDARD TERZIARIO\",2,0)))","v":0},{"$f":"IF(AND(R19=5,R34=\"T\"),(IF(AND(SUM(F50:F61)>0,SUM(F69:F76)>0),\"ATT\",(IF(SUM(F50:F61)>0,\"STANDARD RESIDENZIALI\",\"STANDARD TERZIARIO\")))),\"NO STANDARD\")","v":"NO STANDARD"},{"$f":"IF(O58<>\"\",O58*V21,\"\")","v":""},null,3,null,null,null,{"$f":"IF(R21=1,O58*3.25,(IF(R21=2,SUM(F69:F76)*1,\"\")))","v":""}]
[null,"Volume totale di progetto","=",null,"mc","Senza corpi scala","Volume senza incrementi",null,null,null,{"$f":"IFERROR(\"% Tot.  incr. Vol. \"&ROUND(SUM(K24:K28)*100,2)&\"%\",\"\")","v":"% Tot.  incr. Vol. 0%"},{"$f":"IF((D22)<>0,D22-L24-L26-L28,\"\")","v":""},"mc","Spuntare solo per Sottotetti non frazionati",null,null,null,false,null,"VOLUME O SUPERFICIE DA USARE",null,"ALTEZZA VANO"]
[]
[null,"Volume tot. residenziale","=",null,"mc",{"$f":"IF(S11=\"RESIDENZA\",\"\",(IF(D22-D24<0,\"ATTENZIONE\",\"\")))","v":""},"Incr. Vol. residenziali",null,null,{"$f":"IF(AND(R19=5,L24<>\"\"),\"Per C.Uso\",\" L.R. 14/09-20/22\")","v":" L.R. 14/09-20/22"},{"$f":"IFERROR((IF(L24<>\"\",(IF(D22<>\"\",(L24)/L22,\"\")),\"\")),\"\")","v":""},null,"mc","L.R.33/07",null,"mc",null,{"$f":"SUM(L24:L26)+O24+O26+O30","v":0},"FLAG VOLUME INCREMENTI"]
[]
[null,"Volume tot. comm./terz. direz.","=",{"$f":"IF(S11=0,(IF(D24=\"\",\"\",(IF(D22-D24=0,0,IF(D22-D24<0,\"\",D22-D24))))),\"\")","v":""},"mc",null,"Incr. Vol. com./terz. direz.",null,null," L.R. 14/09-20/22",{"$f":"IFERROR((IF(L26<>\"\",IF(D22<>\"\",(L26)/L22,\"\"),\"\")),\"\")","v":""},null,"mc","L.R.33/07",null,"mc",null,false,"FLAG ACCERTAMENTO DI CONFORMITA'"]
[]
[null,"Nr. Unità immobiliari","=",null,"n.",null,"Incr. Vol. da",null,null,"L.R. 13/08 - D.L. 28/11",{"$f":"IFERROR((IF(L28<>\"\",(IF(L22<>\"\",L28/L22,0)),\"\")),\"\")","v":""},null,"mc","Ampl. I.Z.",null,"mc",null,true,"INSERITO FLAG MANUALE DI CONTROLLO PER SOLO RESIDENZIALE"]
[null,null,null,null,null,null,null,null,null,null,null,null,null,null,null,null,null,null,null,null,null,null,"RES",{"$f":"IF(X32<>0,X32,(IF(D11=\"Centro Storico A1\",0,(IF(OR(R19=1,R19=2),ROUND((D24)/10,2),(IF(R19=3,(IF(R28=TRUE,(ROUND(L28/10,2)),0)),(IF(OR(R19=4,R19=6),IF(R22=TRUE,(ROUND((L24+L26+L28)/10,2)),(ROUND((L24+L26+L28+O24)/10,2))),(IF(OR(R19=5,R19=7,R19=8),0)))))))))))","v":0},"FLAG DETRAZIONE PARK C.C."]
[null,"Sup. lorda comm./terz./direz.","=",null,{"$f":"IF((OR(R19=1,R19=2,R19=3)),(IF(SUM(F69,F70)>0,(IF(AND(SUM(F69:F70)<>D30,S11<>\"RESIDENZA\"),\"ATT\",\"mq\")),\"mq\")),\"mq\")","v":"mq"},null,"Incr. Sup.lorda comm./terz./direz.",null,null,null,null,null,{"$f":"IF((OR(R19=4,R19=6)),(IF(SUM(F69,F76)>0,IF(L30=\"\",\"mq\",(IF(SUM(F69:F76)<>(L30+O30),\"ATT\",\"mq\"))),\"mq\")),\"mq\")","v":"mq"},"Sup. lorda",null,{"$f":"IF((OR(R19=4,R19=6)),(IF(SUM(F69,F76)>0,IF(O30=\"\",\"mq\",(IF(SUM(F69:F76)<>(O30+L30),\"ATT\",\"mq\"))),\"mq\")),\"mq\")","v":"mq"},null,null,null,null,null,null,"TER",{"$f":"(IF(ISERROR(IF(D11=\"Centro Storico A1\",0,(IF(OR(R19=1,R19=2),ROUND((D26)/10,2),(IF(R19=3,(IF(R28=TRUE,(ROUND(L28/10,2)),0)),(IF(OR(R19=4,R19=6),IF(R22=TRUE,(ROUND((L24+L26+L28)/10,2)),(ROUND((L24+L26+L28+O24)/10,2))),(IF(OR(R19=5,R19=7),0))))))))))=TRUE,0,(IF(D11=\"Centro Storico A1\",0,(IF(OR(R19=1,R19=2),ROUND((D26)/10,2),(IF(R19=3,(IF(R28=TRUE,(ROUND(L28/10,2)),0)),(IF(OR(R19=4,R19=6),IF(R22=TRUE,(ROUND((L24+L26+L28)/10,2)),(ROUND((L24+L26+L28+O24)/10,2))),(IF(OR(R19=5,R19=7,R19=8),0))))))))))))","v":0},"CONTROLLO PER DTERAZIONE PARK C.C."]
[null,"PARCHEGGI MINIMI DI LEGGE DA VINCOLARE",null,null,null,null,"PARCHEGGI PREVISTI A PROGETTO (coperti e scoperti)",null,null,null,null,null,null,null,null,null,null,null,null,"P. DI NORMA",null,"INCR,/DECR.",null,"TOT."]
[null,"Sup. a parcheggio min. (Lg. 122/89)","=",{"$f":"X32","v":0},"mq",{"$f":"IF(F24<>\"\",\"\",(IF(D24=\"\",\"\",(W29&\" \"&X29&\" + \"&W30&\" \"&X30))))","v":""},"Superfici totali parcheggi di progetto",null,null,null,null,null,null,"=",null,{"$f":"IF(O32<>\"\",(IF(AND((OR(R19=1,R19=6)),(AND(O24=\"\",O26=\"\"))),(IF(O32<D32,\"ATT\",\"mq\")),\"mq\")),\"mq\")","v":"mq"},null,null,"RES+TER",{"$f":"IF(D11=\"Centro Storico A1\",0,(IF(OR(R19=1,R19=2),ROUND((D22)/10,2),(IF(R19=3,(IF(R28=TRUE,(ROUND(L28/10,2)),0)),(IF(OR(R19=4,R19=6),IF(R22=TRUE,(ROUND((L24+L26+L28+O28)/10,2)),(ROUND((L24+L26+L28+O24+O28)/10,2))),(IF(OR(R19=5,R19=7,R19=8),0)))))))))","v":0},"+",null,"=",{"$f":"T32+V32","v":0}]
[]
[null,"Sup. parcheggi min. comm./terz. direz.","=",{"$f":"X34","v":0},"mq","DM 1444/68 - NTA art.39-50","Superficie totale parcheggi comm./terz. direz. di progetto",null,null,null,null,null,null,"=",null,{"$f":"IF(O34<>\"\",(IF(AND((OR(R19=1,R19=6)),(AND(O24=\"\",O26=\"\"))),(IF(O34<D34,\"ATT\",\"mq\")),\"mq\")),\"mq\")","v":"mq"},null,{"$f":"IF(OR(D11=\"Rinn. urbano terz./direz. B9\",D11=\"Terziario Direzionale TD\"),\"T\",\"R\")","v":"R"},"FLAG ZONA RES O TER.",{"$f":"IF(D11=\"Centro Storico A1\",0,(IF(R11<>\"B9\",(IF(OR(R19=1,R19=2),(ROUND((D30/100)*80*50%,2)),(IF(R19=3,(ROUND((O30/100)*80*50%,2)),(IF(R19=4,(ROUND(((L30+O30)/100)*80*50%,2)),(IF(R19=5,(ROUND((L30/100)*80*50%,2)),(IF(R19=6,(ROUND(((L30+O30)/100)*80*50%,2)),0)))))))))),(IF(OR(R19=1,R19=2),(ROUND((D30/100)*80*50%*50%,2)),(IF(R19=3,(ROUND((O30/100)*80*50%*50%,2)),(IF(R19=4,(ROUND(((L30+O30)/100)*80*50%*50%,2)),IF(R19=5,(ROUND((L30/100)*80*50%*50%,2)),(IF(R19=6,(ROUND(((L30+O30)/100)*80*50%*50%,2)),0))))))))))))","v":0},"+",null,"=",{"$f":"T34+V34","v":0}]
[]
[null,"Sup autorimesse minime","=",{"$f":"X36","v":0},"mq","NTA","Superficie totale autorimesse di progetto",null,null,null,null,null,null,"=",null,{"$f":"IF(O36<>\"\",(IF(AND((OR(R19=1,R19=6)),(AND(O24=\"\",O26=\"\"))),(IF(O36<D36,\"ATT\",\"mq\")),\"mq\")),\"mq\")","v":"mq"},null,null,null,{"$f":"IF(OR(D11=\"Centro Storico A1\",D11=\"Interesse Ambientale A2\",D11=\"Servizi alla residenza\",D11=\"Verde ed attrezz. carattere urbano e regionale\"),0,(IF(R19=1,(IF(R34<>\"R\",(CEILING(D24/500,1)*15),ROUND(D28*15,2))),IF(R19=2,(CEILING((L28+O28)/500,1)*15),(CEILING((L28+O28)/500,1)*15)))))","v":0},"+",null,"=",{"$f":"T36+V36","v":0}]
[]
[]
[]
[null,"Protocollo Itaca previsto","=",null,null,null,null,null,null,"Rif. Lg. 13/08 e delibera CC 2019/00073 del 21/10/2019"]
[]
[null,"Abbatt. del 20% per edilizia residenziale inserita in piani e programmi di iniziativa pubblica e mista e ristrutturazione urbanistica con realizz. in classe 3 del protocollo itaca"]
[null,"Abbatt. del 20% al fine di agevolare gli interventi di rigen. urbana, di ristrutt. e di recupero e riuso degli immobili dismessi o in dismissione - art.17 c.4bis DPR 380/01",null,null,null,null,null,null,null,null,null,null,null,null,null,null,null,false]
[null,"Abbattimento del 50% delle tariffe delle zone B3 per aree servizi ed a verde per servizi culturali, sportivi e di recupero del disagio sociale"]
[]
[]
[null,"SUPERFICI RESIDENZIALI E RELATIVI SERVIZI ED ACCESSORI (Rif. DM 801 del 10 maggio 1977)"]
[]
[null,"Su (Sup. Utile Abitabile)",null,"Dimensioni\n(mq)",null,{"$f":"\"Su di progetto                   \"&TEXT(SUM(F50:F54),\"#.##0,00\")&\" mq\"","v":"Su di progetto                   1,00 mq"},null,null,{"$f":"\"Su esistente                   \"&TEXT(SUM(I50:I54),\"#.##0,00\")&\" mq\"","v":"Su esistente                   0,00 mq"},null,null,null,null,null,null,null,null,null,null,"146-205-220"]
[null,"A. Unità immobiliari",null,"<=95","=",1,"mq",null,null,"mq"]
[null,null,null,">95 -> 110","=",null,"mq",null,null,"mq"]
[null,null,null,">110 -> 130","=",null,"mq",null,null,"mq"]
[null,null,null,">130 -> 160","=",null,"mq",null,null,"mq"]
[null,null,null,">160","=",null,"mq",null,null,"mq"]
[]
[null,"Snr (Superficie non residenziale)",null,null,null,{"$f":"\"Snr di progetto                   \"&TEXT(SUM(F57:F61),\"#.##0,00\")&\" mq\"","v":"Snr di progetto                   0,00 mq"},null,null,{"$f":"\"Snr esistente                   \"&TEXT(SUM(I57:I61),\"#.##0,00\")&\" mq\"","v":"Snr esistente                   0,00 mq"}]
[null,"A. Cantinole, soffitte , sala macchine ascensori, cabine idriche, lavatoi comuni, centrali termiche,  ed altri locali a stretto servizio delle residenze",null,null,"=",null,"mq",null,null,"mq"]
[null,"B. Parcheggi coperti totali       (q.tà totali senza decurtazioni)",null,null,"=",null,"mq",null,null,"mq",null,"Ins. Sup. Lorda Unità Immobiliare totale",null,null,null,{"$f":"IF(O58<>\"\",(IF(SUM(F50:F54)*1.1>=O58,\"ATT\",\"mq\")),\"mq\")","v":"mq"}]
[null,"C. Autorimesse coperte totali  (q.tà totali senza decurtazioni)",null,null,"=",null,"mq",null,null,"mq"]
[null,"D. Androni ingresso e porticati liberi",null,null,"=",null,"mq",null,null,"mq"]
[null,"E. Logge e balconi",null,null,"=",null,"mq",null,null,"mq"]
[]
[null,"Seleziona nr. incrementi particolari caratteristiche",null,null,"=",null,null,null,"Tipo di opere necessarie in caso di cambio di destinazione d'uso",null,null,null,null,null,null,null,null,{"$f":"IF(ISERROR(VLOOKUP(O63,Elenchi!$AF$2:$AG$4,2,FALSE))=TRUE,\"\",(VLOOKUP(O63,Elenchi!$AF$2:$AG$4,2,FALSE)))","v":""},"FLAG PER CAMBIO D'USO - CERCA LA TIPOLOGIA DI OPERA ED ASSEGNA IL COSTO CORRISPONDENTE"]
[]
[]
[null,"SUPERFICI PER ATTIVITÀ TURISTICHE, COMMERCIALI, TERZIARIO DIREZIONALE, PRODUTTIVO E RELATIVI ACCESSORI (Rif. DM 801 del 10 maggio 1977)"]
[]
[null,"Sl (Superficie Lorda non Residenziale)",null,null,null,{"$f":"\"Sl di progetto               \"&TEXT(SUM(F69:F70),\"#.##0,00\")&\" mq\"","v":"Sl di progetto               0,00 mq"},null,null,{"$f":"\"Sl esistente                 \"&TEXT(SUM(I69:I70),\"#.##0,00\")&\" mq\"","v":"Sl esistente                 0,00 mq"}]
[null,"A. Fuori terra",null,null,"=",null,"mq",null,null,"mq",null,null,null,null,null,null,null,{"$f":"SUM(F69:I76)","v":0}]
[null,"B. Interrata",null,null,"=",null,"mq",null,null,"mq"]
[]
[null,"Sa (Superficie Accessoria)",null,null,null,{"$f":"\"Sa di progetto               \"&TEXT(SUM(F73:F76),\"#.##0,00\")&\" mq\"","v":"Sa di progetto               0,00 mq"},null,null,{"$f":"\"Sa esistente                 \"&TEXT(SUM(I73:I75),\"#.##0,00\")&\" mq\"","v":"Sa esistente                 0,00 mq"}]
[null,"A. Fuori terra",null,null,"=",null,"mq",null,null,"mq"]
[null,"B. Interrata",null,null,"=",null,"mq",null,null,"mq"]
[null,"C. Parch. cop. totali - Fuori terra  (q.tà totali senza decurtazioni)",null,null,"=",null,"mq",null,null,"mq"]
[null,"D. Parch. cop. totali - Interrati       (q.tà totali senza decurtazioni)",null,null,"=",null,"mq",null,null,"mq"]
[null,null,null,null,null,null,null,null,null,null,null,null,null,null,null,null,null,null,{"$f":"(IF(R9=\"Terziario Direzionale TD\",0,20))","v":20}]
[null,"Indicare tipologia attività",null,null,null,"Tipo di attività/zona coeff.",null,null,null,null,null,null,null,null,null,{"$f":"IF(J78<>\"\",IF(D78=\"Attività turistiche\",VLOOKUP(J78,Elenchi!$K$2:$L$10,2,FALSE),(IF(D78=\"Attività commerciali\",VLOOKUP(J78,Elenchi!$N$2:$O$8,2,FALSE),(IF(D78=\"Attività terziario-direzionale\",VLOOKUP(J78,Elenchi!$Q$2:$R$5,2,FALSE),0))))),0)","v":0}]
[null,null,null,null,null,null,null,null,null,null,null,null,null,null,null,null,null,{"$f":"IF(AND(R17<>5,R87<>3),(IF(D11=\"Rinn. urbano terz./direz. B9\",\"7\",(IF(D11=\"Terziario Direzionale TD\",0,\"20\")))),\"20\")","v":"20"},"MQ DI STANDARD DA APPLICARE R19=ALTRI CASI PER CAMIO DEST. USO STANDARD"]
[]
[null,"SUPERFICI A STANDARD DOVUTE PER INCREMENTO VOLUMETRICO E/O CARICO URBANISTICO",null,null,null,null,null,null,null,null,null,null,null,null,null,null,null,{"$f":"IF(AND(R19=5,R87<>3),(IF(D11=\"Rinn. urbano terz./direz. B9\",\"7\",0)),\"20\")","v":"20"},"MQ DI STANDARD DA APPLICARE SOLO R19=5"]
[]
[null,"Tipizzazzione zona Standard",null,null,null,null,null,null,null,null,null,null,null,null,"indice",{"$f":"IF(ISERROR(VLOOKUP(D83,'Tabella Standard'!A:F,5,FALSE))=TRUE,\"-\",(VLOOKUP(D83,'Tabella Standard'!A:F,5,FALSE)))","v":"-"},null,{"$f":"IF(ISERROR(VLOOKUP(D83,'Tabella Standard'!A:B,2,FALSE)),\"-\",(VLOOKUP(D83,'Tabella Standard'!A:B,2,FALSE)))","v":"-"},"FLAG PER ZONA A VERDE O A SERVIZI"]
[null,null,null,null,null,null,null,null,null,"Rif. Delibera Consiglio Comunale nr.9 del 11/02/2020 - Solo per zone art. 31 e 52 delle NTA"]
[null,"Inser. manuale tariffa per standard urbanistici",null,null,"=",null,"€/mq",null,null,"Ins. la superficie zona di pertinenza edificio",null,null,null,"=",null,"mq"]
[]
[null,"Cambio di Destinazione d'uso del fabbricato o di parte",null,null,null,null,null,null,null,null,"Vol. esist. oggetto di cambio dest.",null,null,"=",null,{"$f":"IF(AND(R87=1,O87=\"\",OR(R19=\"2\",R19=\"4\")),\"ATT\",\"mc\")","v":"mc"},null,2]
[]
[null,"Destinazione Residenziale - (DM.1444/68 - LG. 122/89)",null,null,null,null,null,null,"TOTALE",null,null,"Da cedere / Da vincolare",null,null,"Da monetizzare"]
[null,"Superficie per Standard non coperta da previsione di PRG da cedere o monetizzare",null,null,null,null,null,"=",{"$f":"IF(OR(R19=2,R19=4,R19=5,R19=6),(ROUND(IF(OR(R87=1,R87=3),((O87)/100*R79+(L24+O24)/100*R81)+O85,((L24+O24)/100*R81)+O85),2)),\"\")","v":""},"mq","di cui",{"$f":"IF(I90<>\"\",(I90-O90),\"\")","v":""},"mq","e",null,"mq",null,{"$f":"IF(O90<>\"\",2,1)","v":1},"FLAG = 1 cessione; 2 monetizzazione"]
[]
[null,"Superficie per Parcheggi totale da reperire e vincolare o monetizzare",null,null,null,null,null,"=",{"$f":"IF(OR(R19=2,R19=4,R19=5,R19=6),D32,\"\")","v":""},"mq","di cui",{"$f":"IF(I92<>\"\",O32,\"\")","v":""},"mq","e",{"$f":"IF(I92>L92,(IF(OR(R19=2,R19=4,R19=5,R19=6),(I92-L92),\"\")),\"\")","v":""},"mq",null,{"$f":"IF(O92<>\"\",2,1)","v":1},"FLAG = 1 cessione; 2 monetizzazione"]
[]
[null,"Destinazione Commerciale, Terziario Direzionale - (DM.1444/68-NTA art.39-50)",null,null,null,null,null,null,"TOTALE",null,null,"Da prevedere / Da vincolare",null,null,"Da monetizzare"]
[null,"Superficie per Standard non coperta da previsione di PRG da prevedere o monetizzare",null,null,null,null,null,"=",{"$f":"IF(OR(R19=2,R19=4,R19=5,R19=6),(IF(R87=2,(IF(AND(R19=2,R11<>\"B9\"),(ROUND((D30/100)*80*50%,2)),(IF(AND((OR(R19=4,R19=5,R19=6)),R11<>\"B9\"),(ROUND(((L30+O30)/100)*80*50%,2)),(IF(AND(R19=2,R11=\"B9\"),(ROUND((D30/100)*80*50%*50%,2)),(IF(AND((OR(R19=4,R19=5,R19=6)),R11=\"B9\"),(ROUND(((L30+O30)/100)*80*50%*50%,2)),0)))))))),(IF(AND(OR(R19=2,R19=4,R19=5,R19=6),R11<>\"B9\"),(ROUND((D30/100)*80*50%,2)),(ROUND((D30/100)*80*50%*50%,2)))))),\"\")","v":""},"mq","di cui",{"$f":"IF(I95<>\"\",(I95-O95),\"\")","v":""},"mq","e",null,"mq",null,250,"verde min. 15%"]
[]
[null,"Superficie per Standard per Parcheggi da reperire e vincolare o monetizzare",null,null,null,null,null,"=",{"$f":"IF(OR(R19=2,R19=4,R19=5,R19=6),D34,\"\")","v":""},"mq","di cui",{"$f":"IF(I97<>\"\",O34,\"\")","v":""},"mq","e",{"$f":"(IF(OR(R19=2,R19=4,R19=5,R19=6),(IF(I97>L97,I97-L97,0)),\"\"))","v":""},"mq",null,{"$f":"IF(O97<>\"\",2,1)","v":1},"parcheggio min 50%"]

{"sheet":"TAB. per calcolo magg. CC","index":1,"n_rows":78,"n_cols":14,"rows_kept":78,"cut":false,"hidden":false,"merged":[[20,1,20,2],[1,1,1,8],[15,1,15,2],[16,1,16,2],[17,1,17,2],[18,1,18,2],[19,1,19,2],[14,1,14,3]]}
[]
[null,"TABELLE PER IL CALCOLO DELLA MAGGIORAZIONE DEL COSTO DI COSTRUZIONE"]
[null,null,null,null,null,null,null,null,"Rif. DM 801 del 10 maggio 1977"]
[null,"Pratica edilizia",{"$f":"IF('INSERIMENTO DATI'!D4=\"\",\"\",'INSERIMENTO DATI'!D4)","v":""},null,null,null,null," Campi a compilazione automatica"]
[]
[null,"TAB. 1 - Incremento per superficie utile abitabile"]
[null,"Classe di superficie (mq)","Alloggi (n.ro)","Superficie utile abitabile (mq)","Rapporto Su tot/Su","Incremento (%)",null,null,"Incr.to per classi di superficie \n(%)"]
[null,"<=95","-",{"$f":"'INSERIMENTO DATI'!F50","v":1},{"$f":"IF(D8<>0,ROUNDDOWN(D8/$D$13,2),0)","v":1},0,null,null,{"$f":"ROUNDUP(E8*F8,2)","v":0}]
[null,">95 -> 110","-",{"$f":"'INSERIMENTO DATI'!F51","v":0},{"$f":"IF(D9<>0,ROUNDDOWN(D9/$D$13,2),0)","v":0},5,null,null,{"$f":"ROUNDUP(E9*F9,2)","v":0}]
[null,">110 -> 130","-",{"$f":"'INSERIMENTO DATI'!F52","v":0},{"$f":"IF(D10<>0,ROUNDDOWN(D10/$D$13,2),0)","v":0},15,null,null,{"$f":"ROUNDUP(E10*F10,2)","v":0}]
[null,">130 -> 160","-",{"$f":"'INSERIMENTO DATI'!F53","v":0},{"$f":"IF(D11<>0,ROUNDDOWN(D11/$D$13,2),0)","v":0},30,null,null,{"$f":"ROUNDUP(E11*F11,2)","v":0}]
[null,">160","-",{"$f":"'INSERIMENTO DATI'!F54","v":0},{"$f":"IF(D12<>0,ROUNDDOWN(D12/$D$13,2),0)","v":0},50,null,null,{"$f":"ROUNDUP(E12*F12,2)","v":0}]
[null,null,"TOTALE Su",{"$f":"SUM(D8:D12)","v":1},null,null,null,"l.1",{"$f":"SUM(I8:I12)","v":0}]
[]
[null,"TAB. 2 - Sup. per servizi ed access. parte residenziale"]
[null,"Destinazioni",null,"Sup. netta servizi  e accessori TOTALE (mq)"]
[null,"A. Cantinole, soffitte , sala macchine ascensori, cabine idriche, lavatoi comuni, centrali termiche,  ed altri locali a stretto servizio delle residenze",null,{"$f":"'INSERIMENTO DATI'!F57","v":0}]
[null,"B. Autorimesse collettive",null,{"$f":"'INSERIMENTO DATI'!F58","v":0}]
[null,"C. Autorimesse private",null,{"$f":"'INSERIMENTO DATI'!F59","v":0}]
[null,"D. Androni ingresso e porticati liberi",null,{"$f":"'INSERIMENTO DATI'!F60","v":0}]
[null,"E. Logge e balconi",null,{"$f":"'INSERIMENTO DATI'!F61","v":0}]
[null,null,"TOTALE Snr",{"$f":"SUM(D17:D21)","v":0}]
[]
[null,"TAB. 3 - Incr. per servizi ed access. parte residenzale"]
[null,"Intervalli di variabilità del rapporto percentuale Snr/Su \n(%)","Min\n(%)","Max\n(%)",null,null,null,null,"Incremento \n(%)"]
[null,"0-50",0,50,null,null,null,null,0]
[null,"50-75",50.01,75,null,null,null,null,10]
[null,"75-100",75.010000000000005,100,null,null,null,null,20]
[null,">100",100.01,99999,null,null,null,null,30]
[null,null,null,null,null,null,null,"l.2 ",{"$f":"IF(ISERROR(D22/D13)=TRUE,0,(IF(D22<>0,(IF(AND((D22/D13)*100>=0,(D22/D13)*100<=50),0,IF(AND((D22/D13)*100>50,(D22/D13)*100<=75),10,IF(AND((D22/D13)*100>75,(D22/D13)*100<=100),20,IF(AND((D22/D13)*100>100,(D22/D13)*100<99999),30))))),0)))","v":0}]
[null,"TAB. 4 - Incr. per part. caratteristiche"]
[null,"Numero di caratteristiche","Ipotesi  che ricorre",null,null,null,null,null,"Incremento \n(%)",null,"Indicare con l'ipotesi che ricorre (es. 0, oppure 1, oppure 2, oppure 3, oppure 4, oppure 5.)."]
[null,{"$f":"C33","v":0},{"$f":"'INSERIMENTO DATI'!F63","v":0},null,null,null,null,null,{"$f":"C33*10","v":0}]
[null,null,null,null,null,null,null,"l.3",{"$f":"I33","v":0}]
[null,"TAB. 5 - Superfici residenziali e relativi servizi ed accessori"]
[null,"SUPERFICIE",null,null,"Totale (mq)"]
[null,"Superficie utile abitabile (Su)",null,null,{"$f":"D13","v":1},null,null,null,null,null,"Per superficie utile abitabile (Su), si intende la superficie di pavimento degli alloggi, misurata al netto delle murature, pilastri, tramezzi, sguinci, vani di porte e finestre, di eventuali scale interne, di logge e di balconi."]
[null,"Superficie netta non residenziale (Snr)",null,null,{"$f":"D22","v":0}]
[null,"Superficie ragguagliata (60% Snr)",null,null,{"$f":"ROUNDDOWN(0.6*E38,2)","v":0}]
[null,"Superficie complessiva (Sc)",null,null,{"$f":"ROUNDDOWN((0.6*E38)+E37,2)","v":1}]
[]
[null,"TAB. 6 - Superfici per attività turistiche, commerciali e direzionali e ralativi accessori"]
[null,"SUPERFICIE",null,null,"TOTALE (mq) \nfuori terra","TOTALE (mq) \ninterrata",null,null,null,null,"Per superficie netta non residenziale (Sn), si intende la superficie di pavimento, misurata al netto delle sole murature perimetrali."]
[null,"Superficie lorda non residenziale (Sl)",null,null,{"$f":"'INSERIMENTO DATI'!F69","v":0},{"$f":"'INSERIMENTO DATI'!F70","v":0}]
[null,"Superficie accessori (Sa)",null,null,{"$f":"'INSERIMENTO DATI'!F73+'INSERIMENTO DATI'!F75","v":0},{"$f":"'INSERIMENTO DATI'!F74+'INSERIMENTO DATI'!F76","v":0}]
[null,"Superficie ragguagliata (60% Sa)",null,null,{"$f":"ROUNDDOWN(0.6*(E45),2)","v":0},{"$f":"ROUNDDOWN(0.6*(F45),2)","v":0}]
[null,"Superficie totale non residenziale (St)",null,null,{"$f":"ROUNDDOWN((0.6*E45)+E44,2)","v":0},{"$f":"ROUNDDOWN((0.6*F45)+F44,2)","v":0},null,null,null,null,{"$f":"IF(B48=\"ALERT, Condizione Art. 9 non verificata. [Sl+(60% Sa) < 25% Su]\",\"TER\",\"RES\")","v":"RES"},"FLAG VERIFICA INCIDENZA TERZIARI PER APPL. COSTO COSTR."]
[null,{"$f":"IF((E47+F47)>(D13*0.25),\"ALERT, Condizione Art. 9 non verificata. [Sl+(60% Sa) < 25% Su]\",\"Condizione art.9 verificata. [Sl+(60% Sa) < 25% Su]\")","v":"Condizione art.9 verificata. [Sl+(60% Sa) < 25% Su]"},null,null,{"$f":"IF(E47+F47=0,\"\",\"------------>\")","v":""},{"$f":"IF('INSERIMENTO DATI'!R19=5,\"Att. - Essendo un cambio d'uso il calcolo non è fatto con rif. al DM 801/77\",(IF(E47+F47=0,\"\",(IF(K47=\"RES\", \"Usare Costo Costr. residenziale anche per parte non residenziale\",\"Usare Costo Costr. Comm./Terz. Direz. per la parte non residenziale\")))))","v":""}]
[null,"TABELLA 7 - Tabella con classe dell'edificio",null,null,null,null,null,null,"Incremento Totale"]
[null,"Totale degli incrementi",null,null,null,"l.1+l.2+l.3",null,null,{"$f":"IF(AND((D13)=0,(D22)=0),0,(I13+I30+I34))","v":0}]
[null,"Maggiorazione in % da applicare al Costo di Costruzione (arrotondata per difetto)",null,null,null,null,null,null,{"$f":"IF(AND((I50)=0),0,IF(AND((I50)>0,(I50)<50),FLOOR(I50-0.1,5),50))","v":0}]
[]
[null,"RIEPILOGO",null,null,null,null,null,null,"Importi"]
[null,"A)    Costo al metro quadro delle costruzioni RESIDENZIALI (€/mq) - Superficie complessiva (Sc)",null,null,null,null,null,null,{"$f":"'Tabella A1'!AM10","v":697.62}]
[null,"A.1) Costo al metro quadro delle costruzioni COMM./TERZ. DIREZ. (€/mq) - Superficie totale non residenziale (St) - parte fuori terra",null,null,null,null,null,null,{"$f":"'Tabella A1'!AM19","v":1220.82}]
[null,"A.2) Costo al metro quadro delle costruzioni COMM./TERZ. DIREZ. (€/mq) - Superficie totale non residenziale (St) - parte interrata",null,null,null,null,null,null,{"$f":"'Tabella A1'!AM18","v":813.18}]
[null,"B)    Costo al metro quadro delle costruzioni RESIDENZIALI maggiorato (€/mq)",null,null,null,null,null,null,{"$f":"I54*(1+I51/100)","v":697.62}]
[null,"C.1) Costo di costruzione della parte RESIDENZIALE (€)",null,null,null,null,null,null,{"$f":"IF('INSERIMENTO DATI'!R19<>5,(IF((E44+F44)+(E46+F46)<0.25*D13,(E40)*I57,(E40*I57))),0)","v":697.62},null,{"$f":"IF((E44+F44)+(E46+F46)<0.25*D13,(E40+E47+F47)*I57,(E40*I57)+(E47*I55)+(F47*I56))","v":697.62},null,{"$f":"E44+F44+E46+F46","v":0},{"$f":"0.25*D13","v":0.25}]
[null,"C.2) Costo di costruzione della parte COMM./TERZ. DIREZ. (€)",null,null,{"$f":"IF(E47+F47=0,\"\",(IF(K47=\"RES\",\"--> applicato stesso Costo al mq della costruzione RESIDENZIALE maggiorato\",\"\")))","v":""},null,null,null,{"$f":"IF('INSERIMENTO DATI'!R19<>5,(IF((E44+F44)+(E46+F46)<0.25*D13,(E47+F47)*I57,(E47*I55)+(F47*I56))),0)","v":0}]
[null,"D.1) Aliquota Costo di Costruzione RESIDENZIALE (%) ",null,null,null,null,null,null,5]
[null,"D.2) Aliquota Costo di Costruzione COMM./TERZ. DIREZ. (%) ",null,null,{"$f":"IF(E47+F47=0,\"\",(IF(K47=\"RES\",\"--> applicata stessa Aliquota del Costo di Costruzione RESIDENZIALE\",\"\")))","v":""},null,null,null,{"$f":"IF(K47=\"RES\",I60,('INSERIMENTO DATI'!P78*100))","v":5}]
[null,"CONTRIBUTO DEL COSTO DI COSTRUZIONE",null,null,null,null,null,"TOTALE",{"$f":"ROUND(I60*(I58/100)+I59*(I61/100),0)","v":35}]
[]
[]
[]
[]
[]
[]
[]
[]
[]
[]
[]
[null,"TABELLA 8 : Allegata alla \"Mappa per l'individuazione della percentuale del contributo del costo costruzione\""]
[]
[null,"TABELLA 9: Tipologie di intervento."]
[]
[null,null,null,null,null,null,null,null,null,null,"NOTA: Il \"Costo al metro quadro delle costruzioni\" preimpostato, nonchè la \"Aliquota del Costo di Costruzione\" preimpostata del 5% (di cui alla lett.D)), restano invariati qualora rispetti la seguente condizione: Sn + (60% Sa) < 25% Su. Allorquando non si verifichi questa condizione, il \"Costo al metro quadro delle costruzioni\" dovrà desumersi dalla TABELLA 9, mentre la \"Aliquota del Costo di Costruzione\" da considerare per il calcolo dovrà essere desunta dalla TABELLA 8."]

{"sheet":"PROSPETTO DI RIEPILOGO","index":2,"n_rows":101,"n_cols":26,"rows_kept":101,"cut":false,"hidden":false,"merged":[[102,1,102,15],[91,4,91,13],[92,4,92,13],[40,5,43,5],[44,5,47,5],[100,2,100,4],[100,6,100,9],[100,13,100,15],[73,5,73,13],[54,1,54,14],[48,5,49,5],[60,5,63,5],[64,5,66,5],[67,5,69,5],[1,4,1,15],[32,1,32,14],[34,1,34,14],[52,1,52,14],[11,1,11,2],[13,1,13,2],[15,1,15,2],[17,1,17,2],[21,5,24,5],[25,5,28,5],[29,5,30,5],[1,1,1,2],[7,1,7,2],[5,1,5,2],[3,1,3,2],[11,6,11,9],[9,4,9,7],[13,4,13,15],[36,5,36,13],[56,5,56,13],[99,13,99,15],[99,2,99,4],[99,6,99,9],[33,1,33,14],[53,1,53,14],[71,1,71,14],[87,5,87,13],[83,5,83,13],[9,1,9,2]]}
[]
[null,null,null,null,"PROSPETTO DI AUTOCALCOLO PER LA DETERMINAZIONE DEL CONTRIBUTO DI COSTRUZIONE "]
[]
[null,"Pratica edilizia",null,null,{"$f":"IF('INSERIMENTO DATI'!D4=0,\"\",'INSERIMENTO DATI'!D4)","v":""}]
[]
[null,"Beneficiario",null,null,{"$f":"IF('INSERIMENTO DATI'!D6=0,\"\",'INSERIMENTO DATI'!D6)","v":""}]
[]
[null,"Ubicazione ",null,null,{"$f":"IF('INSERIMENTO DATI'!D8=0,\"\",'INSERIMENTO DATI'!D8)","v":""}]
[]
[null,"Destinazione di P.R.G.",null,null,{"$f":"IF('INSERIMENTO DATI'!D11=0,\"-\",(IF((AND('INSERIMENTO DATI'!D11=\"Aree ferroviarie destinazione da PRG\",(OR('INSERIMENTO DATI'!N15=\"\",'INSERIMENTO DATI'!D17=\"\"))))=TRUE,\"\",'INSERIMENTO DATI'!D11)))","v":"Centro Storico A1"},null,null,null,null,null,null,"Norma da N.T.A.",null,null,null,{"$f":"'INSERIMENTO DATI'!N11","v":"Art. 45"}]
[]
[null,{"$f":"IF(E12<>\"\",'INSERIMENTO DATI'!B13,\"\")","v":""},null,null,{"$f":"IF('INSERIMENTO DATI'!D13=0,\"\",'INSERIMENTO DATI'!D13)","v":""},null,{"$f":"IF('INSERIMENTO DATI'!R26=FALSE,\"\",\"ACCERTAMENTO DI CONFORMITA'\")","v":""},null,null,null,null,{"$f":"IF(U16<>0,\"ATT.  MODIF. ALIQUOTE\",\"\")","v":""}]
[]
[null,{"$f":"IF(E14<>\" - \",'INSERIMENTO DATI'!B15,\"\")","v":""},null,null,{"$f":"IF(E10<>\"\",'INSERIMENTO DATI'!D15&\" - \"&'INSERIMENTO DATI'!N15,\"\")","v":" - "}]
[]
[null,{"$f":"IF(E16<>\"\",'INSERIMENTO DATI'!B17,\"\")","v":""},null,null,{"$f":"IF('INSERIMENTO DATI'!D17=0,\"\",'INSERIMENTO DATI'!D17)","v":""},null,null,null,null,null,null,null,null,null,null,null,null,null,null,null,{"$f":"IF((AVERAGE((U22:U31)*1,(U41:U50)*1,(U61:U70)*1,(U80:U81)*1))<>0,\"ATT\",0)","v":0},"FLAG DI VERIFICA MODIFICA ALIQUOTE"]
[]
[null,{"$f":"IF(E18<>\"\",\"Tipizz. zona standard\",\"\")","v":""},null,null,{"$f":"IF('INSERIMENTO DATI'!D83=0,\"\",'INSERIMENTO DATI'!D83)","v":""},null,null,null,null,null,null,null,null,null,null,null,null,2]
[]
[]
[null,"A - urbanizzazioni primarie",null,null,null,"Tipo intervento edilizio","% Appl.","Superficie  (mq)",null,"Aliquota (€/mq)",null,null,null,null,null,"Totale\n( € )",null,null,"NUOVE ALIQUOTE",null,"ALIQUOTE INS. MANUALE",null,"VERIFICA DETRAZIONI PARK."]
[null,"Su/Sl (Superficie Utile/Lorda)",null,null,null,{"$f":"IF('INSERIMENTO DATI'!D11=\"Aree ferroviarie destinazione da PRG\",'INSERIMENTO DATI'!N15,(IF(E10<>\"Zone ASI\",\"Nuova Costruzione\",'INSERIMENTO DATI'!N15)))","v":"Nuova Costruzione"},1,{"$f":"IF((IF((AND('INSERIMENTO DATI'!R19<>5,'INSERIMENTO DATI'!R19<>8)),(SUM('INSERIMENTO DATI'!$F$50:$F$54)-SUM('INSERIMENTO DATI'!I50:I54)+SUM('INSERIMENTO DATI'!$F$69:$F$70)-SUM('INSERIMENTO DATI'!$I$69:$I$70)),0))<0,0,(IF(AND('INSERIMENTO DATI'!R19<>5,'INSERIMENTO DATI'!R19<>8),(SUM('INSERIMENTO DATI'!$F$50:$F$54)-SUM('INSERIMENTO DATI'!I50:I54)+SUM('INSERIMENTO DATI'!$F$69:$F$70)-SUM('INSERIMENTO DATI'!$I$69:$I$70)),0)))","v":1},"x",{"$f":"IF(H22=0,0,(IF(U22<>0,U22,S22)))","v":22.06},null,null,null,null,"=",{"$f":"(IF(H22<>\"\",(G22*H22*J22),0))","v":22.06},null,null,{"$f":"IF(H22<>0,IF(E10=\"Zone ASI\",0,(IF(E10=\"Aree ferroviarie destinazione da PRG\",(IF(E16=\"da 1 a 10\",(VLOOKUP(E14,'Tabella B1 -B2 - B3'!$M$16:$AN$23,10,FALSE)),(IF(E16=\"da 11 a 50\",(VLOOKUP(E14,'Tabella B1 -B2 - B3'!$M$16:$AN$23,15,FALSE)),(IF(E16=\"da 51 a 200\",(VLOOKUP(E14,'Tabella B1 -B2 - B3'!$M$16:$AN$23,20,FALSE)),(IF(E16=\"da 201 a 1000\",(VLOOKUP(E14,'Tabella B1 -B2 - B3'!$M$16:$AN$23,25,FALSE)),2)))))))),(IF('INSERIMENTO DATI'!R20=1,(IF(H22<>\"\",VLOOKUP(IF($E$12=\"\",$E$10,$E$10&\" \"&$E$12),'Tabella A1'!$J$9:$AG$51,11,FALSE),\"\")),(IF(H22<>\"\",VLOOKUP(IF($E$12=\"\",$E$10,$E$10&\" \"&$E$12),'Tabella A2'!$J$9:$AG$51,11,FALSE),\"\"))))))),0)","v":22.06},null,0,null,"P. RES",{"$f":"(IF(('INSERIMENTO DATI'!F58)<=('INSERIMENTO DATI'!X29),(IF(('INSERIMENTO DATI'!I58)>('INSERIMENTO DATI'!F58),0,((('INSERIMENTO DATI'!F58)-('INSERIMENTO DATI'!I58))*-1))),(IF(('INSERIMENTO DATI'!X29)<('INSERIMENTO DATI'!F58),(IF(('INSERIMENTO DATI'!X29)<('INSERIMENTO DATI'!I58),0,((('INSERIMENTO DATI'!X29)-('INSERIMENTO DATI'!I58))*-1))),(('INSERIMENTO DATI'!F58)*-1)))))","v":0}]
[null,"Snr/Sa (Superficie non residenziale/Accessoria)",null,null,null,null,0.5,{"$f":"IF((IF(AND('INSERIMENTO DATI'!R19<>5,'INSERIMENTO DATI'!R19<>8),(SUM('INSERIMENTO DATI'!$F$57:$F$61)-SUM('INSERIMENTO DATI'!I57:I61)+SUM('INSERIMENTO DATI'!$F$73:$F$76)-SUM('INSERIMENTO DATI'!$I$73:$I$76)),0))<0,0,(IF(AND('INSERIMENTO DATI'!R19<>5,'INSERIMENTO DATI'!R19<>8),(SUM('INSERIMENTO DATI'!$F$57:$F$61)-SUM('INSERIMENTO DATI'!I57:I61)+SUM('INSERIMENTO DATI'!$F$73:$F$76)-SUM('INSERIMENTO DATI'!$I$73:$I$76)),0)))","v":0},"x",{"$f":"IF(H23=0,0,(IF(U23<>0,U23,S23)))","v":0},null,null,null,null,"=",{"$f":"(IF(H23<>\"\",(G23*H23*J23),0))","v":0},null,null,{"$f":"IF(H23<>0,IF(E10=\"Zone ASI\",0,(IF(E10=\"Aree ferroviarie destinazione da PRG\",(IF(E16=\"da 1 a 10\",(VLOOKUP(E14,'Tabella B1 -B2 - B3'!$M$16:$AN$23,10,FALSE)),(IF(E16=\"da 11 a 50\",(VLOOKUP(E14,'Tabella B1 -B2 - B3'!$M$16:$AN$23,15,FALSE)),(IF(E16=\"da 51 a 200\",(VLOOKUP(E14,'Tabella B1 -B2 - B3'!$M$16:$AN$23,20,FALSE)),(IF(E16=\"da 201 a 1000\",(VLOOKUP(E14,'Tabella B1 -B2 - B3'!$M$16:$AN$23,25,FALSE)),2)))))))),(IF('INSERIMENTO DATI'!R20=1,(IF(H23<>\"\",VLOOKUP(IF($E$12=\"\",$E$10,$E$10&\" \"&$E$12),'Tabella A1'!$J$9:$AG$51,11,FALSE),\"\")),(IF(H23<>\"\",VLOOKUP(IF($E$12=\"\",$E$10,$E$10&\" \"&$E$12),'Tabella A2'!$J$9:$AG$51,11,FALSE),\"\"))))))),0)","v":0},null,{"$f":"IF(S23<>0,U22,0)","v":0},null,"P. TER",{"$f":"+(IF(('INSERIMENTO DATI'!F75+'INSERIMENTO DATI'!F76)<=('INSERIMENTO DATI'!X30+'INSERIMENTO DATI'!D34),(IF(('INSERIMENTO DATI'!I75+'INSERIMENTO DATI'!I76)>=('INSERIMENTO DATI'!F75+'INSERIMENTO DATI'!F76),0,(((('INSERIMENTO DATI'!F75)+('INSERIMENTO DATI'!F76))-(('INSERIMENTO DATI'!I75)+('INSERIMENTO DATI'!I76)))*-1))),(IF(('INSERIMENTO DATI'!X30+'INSERIMENTO DATI'!D34)<('INSERIMENTO DATI'!F75+'INSERIMENTO DATI'!F76),(IF(('INSERIMENTO DATI'!X30+'INSERIMENTO DATI'!D34)<('INSERIMENTO DATI'!I75+'INSERIMENTO DATI'!I76),0,((('INSERIMENTO DATI'!X30+'INSERIMENTO DATI'!D34)-('INSERIMENTO DATI'!I75+'INSERIMENTO DATI'!I76))*-1))),(('INSERIMENTO DATI'!F75+'INSERIMENTO DATI'!F76)*-1)))))","v":0}]
[null,"Snr/Sa (Parch. minimo di legge a detrarre)",null,null,null,null,0.5,{"$f":"(IF(('INSERIMENTO DATI'!F58)<=('INSERIMENTO DATI'!X29),(IF(('INSERIMENTO DATI'!I58)>('INSERIMENTO DATI'!F58),0,((('INSERIMENTO DATI'!F58)-('INSERIMENTO DATI'!I58))*-1))),(IF(('INSERIMENTO DATI'!X29)<('INSERIMENTO DATI'!F58),(IF(('INSERIMENTO DATI'!X29)<('INSERIMENTO DATI'!I58),0,((('INSERIMENTO DATI'!X29)-('INSERIMENTO DATI'!I58))*-1))),(('INSERIMENTO DATI'!F58)*-1)))))+(IF(('INSERIMENTO DATI'!F75+'INSERIMENTO DATI'!F76)<=('INSERIMENTO DATI'!X30+'INSERIMENTO DATI'!D34),(IF(('INSERIMENTO DATI'!I75+'INSERIMENTO DATI'!I76)>=('INSERIMENTO DATI'!F75+'INSERIMENTO DATI'!F76),0,(((('INSERIMENTO DATI'!F75)+('INSERIMENTO DATI'!F76))-(('INSERIMENTO DATI'!I75)+('INSERIMENTO DATI'!I76)))*-1))),(IF(('INSERIMENTO DATI'!X30+'INSERIMENTO DATI'!D34)<('INSERIMENTO DATI'!F75+'INSERIMENTO DATI'!F76),(IF(('INSERIMENTO DATI'!X30+'INSERIMENTO DATI'!D34)<('INSERIMENTO DATI'!I75+'INSERIMENTO DATI'!I76),0,((('INSERIMENTO DATI'!X30+'INSERIMENTO DATI'!D34)-('INSERIMENTO DATI'!I75+'INSERIMENTO DATI'!I76))*-1))),(('INSERIMENTO DATI'!F75+'INSERIMENTO DATI'!F76)*-1)))))","v":0},"x",0,null,null,null,null,"=",0,null,null,{"$f":"IF(H24<>0,IF(E10=\"Zone ASI\",0,(IF(E10=\"Aree ferroviarie destinazione da PRG\",(IF(E16=\"da 1 a 10\",(VLOOKUP(E14,'Tabella B1 -B2 - B3'!$M$16:$AN$23,10,FALSE)),(IF(E16=\"da 11 a 50\",(VLOOKUP(E14,'Tabella B1 -B2 - B3'!$M$16:$AN$23,15,FALSE)),(IF(E16=\"da 51 a 200\",(VLOOKUP(E14,'Tabella B1 -B2 - B3'!$M$16:$AN$23,20,FALSE)),(IF(E16=\"da 201 a 1000\",(VLOOKUP(E14,'Tabella B1 -B2 - B3'!$M$16:$AN$23,25,FALSE)),2)))))))),(IF('INSERIMENTO DATI'!R20=1,(IF(H24<>\"\",VLOOKUP(IF($E$12=\"\",$E$10,$E$10&\" \"&$E$12),'Tabella A1'!$J$9:$AG$51,11,FALSE),\"\")),(IF(H24<>\"\",VLOOKUP(IF($E$12=\"\",$E$10,$E$10&\" \"&$E$12),'Tabella A2'!$J$9:$AG$51,11,FALSE),\"\"))))))),0)","v":0},null,{"$f":"IF(S24<>0,U22,0)","v":0},null,"URB - NC",{"$f":"SUM(X22:X23)","v":0},{"$f":"(IF(('INSERIMENTO DATI'!F58)<=('INSERIMENTO DATI'!X29),(IF(('INSERIMENTO DATI'!I58)>('INSERIMENTO DATI'!F58),0,((('INSERIMENTO DATI'!F58)-('INSERIMENTO DATI'!I58))*-1))),(IF(('INSERIMENTO DATI'!X29)<('INSERIMENTO DATI'!F58),(IF(('INSERIMENTO DATI'!X29)<('INSERIMENTO DATI'!I58),0,((('INSERIMENTO DATI'!X29)-('INSERIMENTO DATI'!I58))*-1))),(('INSERIMENTO DATI'!F58)*-1)))))+(IF(('INSERIMENTO DATI'!F75+'INSERIMENTO DATI'!F76)<=('INSERIMENTO DATI'!X30+'INSERIMENTO DATI'!D34),(IF(('INSERIMENTO DATI'!I75+'INSERIMENTO DATI'!I76)>=('INSERIMENTO DATI'!F75+'INSERIMENTO DATI'!F76),0,((('INSERIMENTO DATI'!F75)+('INSERIMENTO DATI'!F76)-('INSERIMENTO DATI'!I75)+('INSERIMENTO DATI'!I76))*-1))),(IF(('INSERIMENTO DATI'!X30+'INSERIMENTO DATI'!D34)<('INSERIMENTO DATI'!F75+'INSERIMENTO DATI'!F76),(IF(('INSERIMENTO DATI'!X30+'INSERIMENTO DATI'!D34)<('INSERIMENTO DATI'!I75+'INSERIMENTO DATI'!I76),0,((('INSERIMENTO DATI'!X30+'INSERIMENTO DATI'!D34)-('INSERIMENTO DATI'!I75+'INSERIMENTO DATI'!I76))*-1))),(('INSERIMENTO DATI'!F75+'INSERIMENTO DATI'!F76)*-1)))))","v":0},"OLD"]
[null,"Snr/Sa (Autorimessa minimo di legge a detrarre)",null,null,null,null,0.5,{"$f":"IF('INSERIMENTO DATI'!F59<=('INSERIMENTO DATI'!D36),(IF('INSERIMENTO DATI'!I59>'INSERIMENTO DATI'!F59,0,(('INSERIMENTO DATI'!F59-'INSERIMENTO DATI'!I59)*-1))),(IF(('INSERIMENTO DATI'!D36)<'INSERIMENTO DATI'!F59,(IF(('INSERIMENTO DATI'!D36)<'INSERIMENTO DATI'!I59,0,(('INSERIMENTO DATI'!D36-'INSERIMENTO DATI'!I59)*-1))),(('INSERIMENTO DATI'!F59)*-1))))","v":0},"x",0,null,null,null,null,"=",0,null,null,{"$f":"IF(H25<>0,IF(E10=\"Zone ASI\",0,(IF(E10=\"Aree ferroviarie destinazione da PRG\",(IF(E16=\"da 1 a 10\",(VLOOKUP(E14,'Tabella B1 -B2 - B3'!$M$16:$AN$23,10,FALSE)),(IF(E16=\"da 11 a 50\",(VLOOKUP(E14,'Tabella B1 -B2 - B3'!$M$16:$AN$23,15,FALSE)),(IF(E16=\"da 51 a 200\",(VLOOKUP(E14,'Tabella B1 -B2 - B3'!$M$16:$AN$23,20,FALSE)),(IF(E16=\"da 201 a 1000\",(VLOOKUP(E14,'Tabella B1 -B2 - B3'!$M$16:$AN$23,25,FALSE)),2)))))))),(IF('INSERIMENTO DATI'!R20=1,(IF(H25<>\"\",VLOOKUP(IF($E$12=\"\",$E$10,$E$10&\" \"&$E$12),'Tabella A1'!$J$9:$AG$51,11,FALSE),\"\")),(IF(H25<>\"\",VLOOKUP(IF($E$12=\"\",$E$10,$E$10&\" \"&$E$12),'Tabella A2'!$J$9:$AG$51,11,FALSE),\"\"))))))),0)","v":0},null,{"$f":"IF(S25<>0,U22,0)","v":0}]
[null,"Su/Sl (Superficie Utile/Lorda)",null,null,null,{"$f":"IF('INSERIMENTO DATI'!D11=\"Aree ferroviarie destinazione da PRG\",\"\",(IF(E10<>\"Zone ASI\",\"Demol. e Ricostruzione\",'INSERIMENTO DATI'!N15)))","v":"Demol. e Ricostruzione"},1,{"$f":"IF(('INSERIMENTO DATI'!R19=5),0,(IF(AND(('INSERIMENTO DATI'!R19<>5),(SUM('INSERIMENTO DATI'!$I$50:$I$54))+(SUM('INSERIMENTO DATI'!$I$69:$I$70))<(SUM('INSERIMENTO DATI'!$F$50:$F$54))+(SUM('INSERIMENTO DATI'!$F$69:$F$70))),(SUM('INSERIMENTO DATI'!$I$50:$I$54))+(SUM('INSERIMENTO DATI'!$I$69:$I$70)),(SUM('INSERIMENTO DATI'!$F$50:$F$54))+(SUM('INSERIMENTO DATI'!$F$69:$F$70)))))","v":0},"x",0,null,null,null,null,null,0,null,{"$f":"(IF(AND(('INSERIMENTO DATI'!R19<>5),(SUM('INSERIMENTO DATI'!$I$50:$I$54))+(SUM('INSERIMENTO DATI'!$I$69:$I$70))<(SUM('INSERIMENTO DATI'!$F$50:$F$54))+(SUM('INSERIMENTO DATI'!$F$69:$F$70))),(SUM('INSERIMENTO DATI'!$I$50:$I$54))+(SUM('INSERIMENTO DATI'!$I$69:$I$70)),(SUM('INSERIMENTO DATI'!$F$50:$F$54))+(SUM('INSERIMENTO DATI'!$F$69:$F$70))))","v":0},{"$f":"IF(H26<>0,IF(E10=\"Zone ASI\",0,(IF('INSERIMENTO DATI'!R20=1,(IF(H26<>\"\",VLOOKUP(IF($E$12=\"\",$E$10,$E$10&\" \"&$E$12),'Tabella A1'!$J$9:$AG$51,16,FALSE),\"\")),(IF(H26<>\"\",VLOOKUP(IF($E$12=\"\",$E$10,$E$10&\" \"&$E$12),'Tabella A2'!$J$9:$AG$51,16,FALSE),\"\"))))),0)","v":0},null,0,null,"P. RES",{"$f":"(IF(('INSERIMENTO DATI'!I58>'INSERIMENTO DATI'!X29),(IF(('INSERIMENTO DATI'!F58<'INSERIMENTO DATI'!X29),'INSERIMENTO DATI'!F58*-1,'INSERIMENTO DATI'!X29*-1)),'INSERIMENTO DATI'!I58*-1))","v":0}]
[null,"Snr/Sa (Superficie non residenziale/Accessoria)",null,null,null,null,0.5,{"$f":"IF('INSERIMENTO DATI'!R19=5,0,(IF(AND(('INSERIMENTO DATI'!R19<>5),((SUM('INSERIMENTO DATI'!$I$57:$I$61)+(SUM('INSERIMENTO DATI'!$I$73:$I$76)))<(SUM('INSERIMENTO DATI'!$F$57:$F$61)+(SUM('INSERIMENTO DATI'!$F$73:$F$76))))),(SUM('INSERIMENTO DATI'!$I$57:$I$61)+(SUM('INSERIMENTO DATI'!$I$73:$I$76))),(SUM('INSERIMENTO DATI'!$F$57:$F$61)+(SUM('INSERIMENTO DATI'!$F$73:$F$76))))))","v":0},"x",0,null,null,null,null,"=",0,null,{"$f":"(SUM('INSERIMENTO DATI'!$I$50:$I$54))+(SUM('INSERIMENTO DATI'!$I$69:$I$70))<(SUM('INSERIMENTO DATI'!$F$50:$F$54))+(SUM('INSERIMENTO DATI'!$F$69:$F$70))","v":true},{"$f":"IF(H27<>0,IF(E10=\"Zone ASI\",0,(IF('INSERIMENTO DATI'!R20=1,(IF(H27<>\"\",VLOOKUP(IF($E$12=\"\",$E$10,$E$10&\" \"&$E$12),'Tabella A1'!$J$9:$AG$51,16,FALSE),\"\")),(IF(H27<>\"\",VLOOKUP(IF($E$12=\"\",$E$10,$E$10&\" \"&$E$12),'Tabella A2'!$J$9:$AG$51,16,FALSE),\"\"))))),0)","v":0},null,{"$f":"IF(S27<>0,U26,0)","v":0},null,"P. TER",{"$f":"(IF(('INSERIMENTO DATI'!I75+'INSERIMENTO DATI'!I76>='INSERIMENTO DATI'!X30+'INSERIMENTO DATI'!D34),(IF((('INSERIMENTO DATI'!F75+'INSERIMENTO DATI'!F76)<('INSERIMENTO DATI'!X30+'INSERIMENTO DATI'!D34)),('INSERIMENTO DATI'!F75+'INSERIMENTO DATI'!F76)*-1,('INSERIMENTO DATI'!X30+'INSERIMENTO DATI'!D34)*-1)),('INSERIMENTO DATI'!I75+'INSERIMENTO DATI'!I76)*-1))","v":0}]
[null,"Snr/Sa (Parch. minimo di legge a detrarre)",null,null,null,null,0.5,{"$f":"(IF(('INSERIMENTO DATI'!I58>'INSERIMENTO DATI'!X29),(IF(('INSERIMENTO DATI'!F58<'INSERIMENTO DATI'!X29),'INSERIMENTO DATI'!F58*-1,'INSERIMENTO DATI'!X29*-1)),'INSERIMENTO DATI'!I58*-1))+(IF(('INSERIMENTO DATI'!I75+'INSERIMENTO DATI'!I76>='INSERIMENTO DATI'!X30+'INSERIMENTO DATI'!D34),(IF((('INSERIMENTO DATI'!F75+'INSERIMENTO DATI'!F76)<('INSERIMENTO DATI'!X30+'INSERIMENTO DATI'!D34)),('INSERIMENTO DATI'!F75+'INSERIMENTO DATI'!F76)*-1,('INSERIMENTO DATI'!X30+'INSERIMENTO DATI'!D34)*-1)),('INSERIMENTO DATI'!I75+'INSERIMENTO DATI'!I76)*-1))","v":0},"x",0,null,null,null,null,"=",0,null,{"$f":"((SUM('INSERIMENTO DATI'!$I$57:$I$61)+(SUM('INSERIMENTO DATI'!$I$73:$I$76)))<(SUM('INSERIMENTO DATI'!$F$57:$F$61)+(SUM('INSERIMENTO DATI'!$F$73:$F$76))))","v":false},{"$f":"IF(H28<>0,IF(E10=\"Zone ASI\",0,(IF('INSERIMENTO DATI'!R20=1,(IF(H28<>\"\",VLOOKUP(IF($E$12=\"\",$E$10,$E$10&\" \"&$E$12),'Tabella A1'!$J$9:$AG$51,16,FALSE),\"\")),(IF(H28<>\"\",VLOOKUP(IF($E$12=\"\",$E$10,$E$10&\" \"&$E$12),'Tabella A2'!$J$9:$AG$51,16,FALSE),\"\"))))),0)","v":0},null,{"$f":"IF(S28<>0,U26,0)","v":0},null,"URB - DR",{"$f":"SUM(X26:X27)","v":0},{"$f":"(IF(('INSERIMENTO DATI'!F58+'INSERIMENTO DATI'!F75+'INSERIMENTO DATI'!F76)<('INSERIMENTO DATI'!D32+'INSERIMENTO DATI'!D34),(IF(('INSERIMENTO DATI'!I58+'INSERIMENTO DATI'!I75+'INSERIMENTO DATI'!I76)>('INSERIMENTO DATI'!F58+'INSERIMENTO DATI'!F75+'INSERIMENTO DATI'!F76),(('INSERIMENTO DATI'!F58+'INSERIMENTO DATI'!F75+'INSERIMENTO DATI'!F76)*-1),(('INSERIMENTO DATI'!I58+'INSERIMENTO DATI'!I75+'INSERIMENTO DATI'!I76)*-1))),(IF(('INSERIMENTO DATI'!D32+'INSERIMENTO DATI'!D34)<('INSERIMENTO DATI'!I58+'INSERIMENTO DATI'!I75+'INSERIMENTO DATI'!I76),(('INSERIMENTO DATI'!D32+'INSERIMENTO DATI'!D34)*-1),((('INSERIMENTO DATI'!F58+'INSERIMENTO DATI'!F75+'INSERIMENTO DATI'!F76)-(('INSERIMENTO DATI'!F58+'INSERIMENTO DATI'!F75+'INSERIMENTO DATI'!F76)-('INSERIMENTO DATI'!I58+'INSERIMENTO DATI'!I75+'INSERIMENTO DATI'!I76)))*-1)))))","v":0},"OLD"]
[null,"Snr/Sa (Autorimessa minimo di legge a detrarre)",null,null,null,null,0.5,{"$f":"(IF('INSERIMENTO DATI'!F59<('INSERIMENTO DATI'!D36),(IF('INSERIMENTO DATI'!I59>'INSERIMENTO DATI'!F59,('INSERIMENTO DATI'!F59*-1),('INSERIMENTO DATI'!I59*-1))),(IF(('INSERIMENTO DATI'!D36)<'INSERIMENTO DATI'!I59,(('INSERIMENTO DATI'!D36)*-1),(('INSERIMENTO DATI'!F59-('INSERIMENTO DATI'!F59-'INSERIMENTO DATI'!I59))*-1)))))","v":0},"x",0,null,null,null,null,"=",0,null,null,{"$f":"IF(H29<>0,IF(E10=\"Zone ASI\",0,(IF('INSERIMENTO DATI'!R20=1,(IF(H29<>\"\",VLOOKUP(IF($E$12=\"\",$E$10,$E$10&\" \"&$E$12),'Tabella A1'!$J$9:$AG$51,16,FALSE),\"\")),(IF(H29<>\"\",VLOOKUP(IF($E$12=\"\",$E$10,$E$10&\" \"&$E$12),'Tabella A2'!$J$9:$AG$51,16,FALSE),\"\"))))),0)","v":0},null,{"$f":"IF(S29<>0,U26,0)","v":0}]
[null,"Su/Sl (Superficie Utile/Lorda)",null,null,null,{"$f":"IF('INSERIMENTO DATI'!D11=\"Aree ferroviarie destinazione da PRG\",\"\",(IF(E10<>\"Zone ASI\",\"Ristrutturazione\",'INSERIMENTO DATI'!N15)))","v":"Ristrutturazione"},1,{"$f":"IF(OR('INSERIMENTO DATI'!R19=5,'INSERIMENTO DATI'!R19=8),(SUM('INSERIMENTO DATI'!$F$50:$F$54)+(SUM('INSERIMENTO DATI'!F69:$F$70))),0)","v":0},"x",0,null,null,null,null,null,0,null,null,{"$f":"IF(H30<>0,IF(E10=\"Zone ASI\",0,(IF('INSERIMENTO DATI'!R20=1,(IF(H30<>\"\",VLOOKUP(IF($E$12=\"\",$E$10,$E$10&\" \"&$E$12),'Tabella A1'!$J$9:$AG$51,21,FALSE),\"\")),(IF(H30<>\"\",VLOOKUP(IF($E$12=\"\",$E$10,$E$10&\" \"&$E$12),'Tabella A2'!$J$9:$AG$51,21,FALSE),\"\"))))),0)","v":0},null,0,null,"P. RES",{"$f":"H63","v":0}]
[null,"Snr (Superficie non residenziale)",null,null,null,null,0.5,{"$f":"IF(OR('INSERIMENTO DATI'!R19=5,'INSERIMENTO DATI'!R19=8),(SUM('INSERIMENTO DATI'!$F$57:$F$61)+(SUM('INSERIMENTO DATI'!F73:$F$76))),0)","v":0},"x",0,null,null,null,null,"=",0,null,null,{"$f":"IF(H31<>0,IF(E10=\"Zone ASI\",0,(IF('INSERIMENTO DATI'!R20=1,(IF(H31<>\"\",VLOOKUP(IF($E$12=\"\",$E$10,$E$10&\" \"&$E$12),'Tabella A1'!$J$9:$AG$51,21,FALSE),\"\")),(IF(H31<>\"\",VLOOKUP(IF($E$12=\"\",$E$10,$E$10&\" \"&$E$12),'Tabella A2'!$J$9:$AG$51,21,FALSE),\"\"))))),0)","v":0},null,{"$f":"IF(S31<>0,U30,0)","v":0},null,"P. TER",{"$f":"H67+H70","v":0}]
[null,"SUBTOTALE A - urbanizzazioni primarie",null,null,null,null,null,null,null,null,null,null,null,null,null,{"$f":"ROUND(SUM(P22:P31),0)","v":22},null,null,null,null,null,null,"C.C TOT",{"$f":"SUM(X30:X31)","v":0}]
[null,"ABBATTIMENTO DEL 20% (edilizia residenziale inserita in piani e progr. di iniziativa pubblica e mista e ristrutturazione urbanistica con realizz. in cl. 3 del prot. itaca)",null,null,null,null,null,null,null,null,null,null,null,null,null,{"$f":"IF('INSERIMENTO DATI'!R42=TRUE,ROUND((P32*0.2),0),0)","v":0}]
[null,"ABBATTIMENTO DEL 20% (agev. di interenti di rigen. urbana, di ristrutturazione e di recupero e riuso degli immobili dismessi o in dismissione) art.17 c.4bis DPR 380/01",null,null,null,null,null,null,null,null,null,null,null,null,null,{"$f":"IF(R18=1,0,(IF('INSERIMENTO DATI'!R43=TRUE,ROUND((P32*0.2),0),0)))","v":0}]
[null,"ABBATTIMENTO DEL 50% (delle tariffe delle zone b3 per aree servizi ed a verde per servizi culturali, sportivi e di recupero del disagio sociale)",null,null,null,null,null,null,null,null,null,null,null,null,null,{"$f":"IF('INSERIMENTO DATI'!R44=TRUE,ROUND((P32*0.5),0),0)","v":0}]
[null,"EVENTUALI ONERI GIA' VERSATI (Necessario allegare attestazioni di pagamento a comprova)"]
[null,"EVENTUALI SCOMPUTI DA CONVENZIONE"]
[null,"TOTALE URBANIZZAZIONI PRIMARIE DA VERSARE (tariffe da delibera C.C. nr.73/2019)",null,null,null,null,null,null,null,null,null,null,null,null,null,{"$f":"ROUND((IF((P32-P33-P34-P35-P36-P37)<0,0,(P32-P33-P34-P35-P36-P37))),0)","v":22}]
[]
[null,"B - urbanizzazioni secondarie",null,null,null,"Tipo intervento edilizio","% Appl.","Superficie  (mq)",null,"Aliquota (€/mq)",null,null,null,null,null,"Totale\n( € )",null,null,"NUOVE ALIQUOTE",null,"ALIQUOTE INS. MANUALE"]
[null,"Su/Sl (Superficie Utile/Lorda)",null,null,null,{"$f":"IF('INSERIMENTO DATI'!D11=\"Aree ferroviarie destinazione da PRG\",'INSERIMENTO DATI'!N15,(IF(E10<>\"Zone ASI\",\"Nuova Costruzione\",'INSERIMENTO DATI'!N15)))","v":"Nuova Costruzione"},1,{"$f":"H22","v":1},"x",{"$f":"IF(H41=0,0,(IF(U41<>0,U41,S41)))","v":45.31},null,null,null,null,"=",{"$f":"(IF(H41<>\"\",(G41*H41*J41),0))","v":45.31},null,null,{"$f":"IF(H41<>0,IF('INSERIMENTO DATI'!D15=\"Consorzi ASI - Insediamenti commerciali e direzionali\",(VLOOKUP(E14,'Tabella B1 -B2 - B3'!$M$28:$AI$37,11,FALSE)),(IF(OR(E10=\"Zone ASI\",E10=\"Aree ferroviarie destinazione da PRG\"),(IF(E16=\"da 1 a 10\",(VLOOKUP(E14,'Tabella B1 -B2 - B3'!M9:W24,11,FALSE)),(IF(E16=\"da 11 a 50\",(VLOOKUP(E14,'Tabella B1 -B2 - B3'!M9:AB24,16,FALSE)),(IF(E16=\"da 51 a 200\",(VLOOKUP(E14,'Tabella B1 -B2 - B3'!M9:AG24,21,FALSE)),(IF(E16=\"da 201 a 1000\",(VLOOKUP(E14,'Tabella B1 -B2 - B3'!M9:AL24,26,FALSE)),\"\")))))))),(IF('INSERIMENTO DATI'!R20=1,(IF(H41<>\"\",VLOOKUP(IF($E$12=\"\",$E$10,$E$10&\" \"&$E$12),'Tabella A1'!$J$9:$AG$51,12,FALSE),\"\")),(IF(H41<>\"\",VLOOKUP(IF($E$12=\"\",$E$10,$E$10&\" \"&$E$12),'Tabella A2'!$J$9:$AG$51,12,FALSE),\"\"))))))),0)","v":45.31},null,0]
[null,"Snr/Sa (Superficie non residenziale/Accessoria)",null,null,null,null,0.5,0,"x",0,null,null,null,null,"=",{"$f":"(IF(H42<>\"\",(G42*H42*J42),0))","v":0},null,null,{"$f":"IF(H42<>0,IF('INSERIMENTO DATI'!D15=\"Consorzi ASI - Insediamenti commerciali e direzionali\",(VLOOKUP(E14,'Tabella B1 -B2 - B3'!$M$28:$AI$37,11,FALSE)),(IF(OR(E10=\"Zone ASI\",E10=\"Aree ferroviarie destinazione da PRG\"),(IF(E16=\"da 1 a 10\",(VLOOKUP(E14,'Tabella B1 -B2 - B3'!M9:W24,11,FALSE)),(IF(E16=\"da 11 a 50\",(VLOOKUP(E14,'Tabella B1 -B2 - B3'!M9:AB24,16,FALSE)),(IF(E16=\"da 51 a 200\",(VLOOKUP(E14,'Tabella B1 -B2 - B3'!M9:AG24,21,FALSE)),(IF(E16=\"da 201 a 1000\",(VLOOKUP(E14,'Tabella B1 -B2 - B3'!M9:AL24,26,FALSE)),\"\")))))))),(IF('INSERIMENTO DATI'!R20=1,(IF(H42<>\"\",VLOOKUP(IF($E$12=\"\",$E$10,$E$10&\" \"&$E$12),'Tabella A1'!$J$9:$AG$51,12,FALSE),\"\")),(IF(H42<>\"\",VLOOKUP(IF($E$12=\"\",$E$10,$E$10&\" \"&$E$12),'Tabella A2'!$J$9:$AG$51,12,FALSE),\"\"))))))),0)","v":0},null,{"$f":"IF(S42<>0,U41,0)","v":0}]
[null,"Snr/Sa (Parch. minimo di legge a detrarre)",null,null,null,null,0.5,0,"x",0,null,null,null,null,"=",0,null,null,{"$f":"IF(H43<>0,IF('INSERIMENTO DATI'!D15=\"Consorzi ASI - Insediamenti commerciali e direzionali\",(VLOOKUP(E14,'Tabella B1 -B2 - B3'!$M$28:$AI$37,11,FALSE)),(IF(OR(E10=\"Zone ASI\",E10=\"Aree ferroviarie destinazione da PRG\"),(IF(E16=\"da 1 a 10\",(VLOOKUP(E14,'Tabella B1 -B2 - B3'!M9:W24,11,FALSE)),(IF(E16=\"da 11 a 50\",(VLOOKUP(E14,'Tabella B1 -B2 - B3'!M9:AB24,16,FALSE)),(IF(E16=\"da 51 a 200\",(VLOOKUP(E14,'Tabella B1 -B2 - B3'!M9:AG24,21,FALSE)),(IF(E16=\"da 201 a 1000\",(VLOOKUP(E14,'Tabella B1 -B2 - B3'!M9:AL24,26,FALSE)),\"\")))))))),(IF('INSERIMENTO DATI'!R20=1,(IF(H43<>\"\",VLOOKUP(IF($E$12=\"\",$E$10,$E$10&\" \"&$E$12),'Tabella A1'!$J$9:$AG$51,12,FALSE),\"\")),(IF(H43<>\"\",VLOOKUP(IF($E$12=\"\",$E$10,$E$10&\" \"&$E$12),'Tabella A2'!$J$9:$AG$51,12,FALSE),\"\"))))))),0)","v":0},null,{"$f":"IF(S43<>0,U41,0)","v":0}]
[null,"Snr/Sa (Autorimessa minimo di legge a detrarre)",null,null,null,null,0.5,0,"x",0,null,null,null,null,"=",0,null,null,{"$f":"IF(H44<>0,IF('INSERIMENTO DATI'!D15=\"Consorzi ASI - Insediamenti commerciali e direzionali\",(VLOOKUP(E14,'Tabella B1 -B2 - B3'!$M$28:$AI$37,11,FALSE)),(IF(OR(E10=\"Zone ASI\",E10=\"Aree ferroviarie destinazione da PRG\"),(IF(E16=\"da 1 a 10\",(VLOOKUP(E14,'Tabella B1 -B2 - B3'!M9:W24,11,FALSE)),(IF(E16=\"da 11 a 50\",(VLOOKUP(E14,'Tabella B1 -B2 - B3'!M9:AB24,16,FALSE)),(IF(E16=\"da 51 a 200\",(VLOOKUP(E14,'Tabella B1 -B2 - B3'!M9:AG24,21,FALSE)),(IF(E16=\"da 201 a 1000\",(VLOOKUP(E14,'Tabella B1 -B2 - B3'!M9:AL24,26,FALSE)),\"\")))))))),(IF('INSERIMENTO DATI'!R20=1,(IF(H44<>\"\",VLOOKUP(IF($E$12=\"\",$E$10,$E$10&\" \"&$E$12),'Tabella A1'!$J$9:$AG$51,12,FALSE),\"\")),(IF(H44<>\"\",VLOOKUP(IF($E$12=\"\",$E$10,$E$10&\" \"&$E$12),'Tabella A2'!$J$9:$AG$51,12,FALSE),\"\"))))))),0)","v":0},null,{"$f":"IF(S44<>0,U41,0)","v":0}]
[null,"Su/Sl (Superficie Utile/Lorda)",null,null,null,{"$f":"IF('INSERIMENTO DATI'!D11=\"Aree ferroviarie destinazione da PRG\",\"\",(IF(E10<>\"Zone ASI\",\"Demol. e Ricostruzione\",'INSERIMENTO DATI'!N15)))","v":"Demol. e Ricostruzione"},1,0,"x",0,null,null,null,null,"=",0,null,null,{"$f":"IF(H45<>0,IF('INSERIMENTO DATI'!D15=\"Consorzi ASI - Insediamenti commerciali e direzionali\",(VLOOKUP(E14,'Tabella B1 -B2 - B3'!$M$28:$AI$37,16,FALSE)),(IF(E10=\"Zone ASI\",(IF(E16=\"da 1 a 10\",(VLOOKUP(E14,'Tabella B1 -B2 - B3'!M9:W24,11,FALSE)),(IF(E16=\"da 11 a 50\",(VLOOKUP(E14,'Tabella B1 -B2 - B3'!M9:AB24,16,FALSE)),(IF(E16=\"da 51 a 200\",(VLOOKUP(E14,'Tabella B1 -B2 - B3'!M9:AG24,21,FALSE)),(IF(E16=\"da 201 a 1000\",(VLOOKUP(E14,'Tabella B1 -B2 - B3'!M9:AL24,26,FALSE)),\"\")))))))),(IF('INSERIMENTO DATI'!R20=1,(IF(H45<>\"\",VLOOKUP(IF($E$12=\"\",$E$10,$E$10&\" \"&$E$12),'Tabella A1'!$J$9:$AG$51,17,FALSE),\"\")),(IF(H45<>\"\",VLOOKUP(IF($E$12=\"\",$E$10,$E$10&\" \"&$E$12),'Tabella A2'!$J$9:$AG$51,17,FALSE),\"\"))))))),0)","v":0},null,0]
[null,"Snr/Sa (Superficie non residenziale/Accessoria)",null,null,null,null,0.5,0,"x",0,null,null,null,null,"=",0,null,null,{"$f":"IF(H46<>0,IF('INSERIMENTO DATI'!D15=\"Consorzi ASI - Insediamenti commerciali e direzionali\",(VLOOKUP(E14,'Tabella B1 -B2 - B3'!$M$28:$AI$37,16,FALSE)),(IF(E10=\"Zone ASI\",(IF(E16=\"da 1 a 10\",(VLOOKUP(E14,'Tabella B1 -B2 - B3'!M9:W24,11,FALSE)),(IF(E16=\"da 11 a 50\",(VLOOKUP(E14,'Tabella B1 -B2 - B3'!M9:AB24,16,FALSE)),(IF(E16=\"da 51 a 200\",(VLOOKUP(E14,'Tabella B1 -B2 - B3'!M9:AG24,21,FALSE)),(IF(E16=\"da 201 a 1000\",(VLOOKUP(E14,'Tabella B1 -B2 - B3'!M9:AL24,26,FALSE)),\"\")))))))),(IF('INSERIMENTO DATI'!R20=1,(IF(H46<>\"\",VLOOKUP(IF($E$12=\"\",$E$10,$E$10&\" \"&$E$12),'Tabella A1'!$J$9:$AG$51,17,FALSE),\"\")),(IF(H46<>\"\",VLOOKUP(IF($E$12=\"\",$E$10,$E$10&\" \"&$E$12),'Tabella A2'!$J$9:$AG$51,17,FALSE),\"\"))))))),0)","v":0},null,{"$f":"IF(S46<>0,U45,0)","v":0}]
[null,"Snr/Sa (Parch. minimo di legge a detrarre)",null,null,null,null,0.5,0,"x",0,null,null,null,null,"=",0,null,null,{"$f":"IF(H47<>0,IF('INSERIMENTO DATI'!D15=\"Consorzi ASI - Insediamenti commerciali e direzionali\",(VLOOKUP(E14,'Tabella B1 -B2 - B3'!$M$28:$AI$37,16,FALSE)),(IF(E10=\"Zone ASI\",(IF(E16=\"da 1 a 10\",(VLOOKUP(E14,'Tabella B1 -B2 - B3'!M9:W24,11,FALSE)),(IF(E16=\"da 11 a 50\",(VLOOKUP(E14,'Tabella B1 -B2 - B3'!M9:AB24,16,FALSE)),(IF(E16=\"da 51 a 200\",(VLOOKUP(E14,'Tabella B1 -B2 - B3'!M9:AG24,21,FALSE)),(IF(E16=\"da 201 a 1000\",(VLOOKUP(E14,'Tabella B1 -B2 - B3'!M9:AL24,26,FALSE)),\"\")))))))),(IF('INSERIMENTO DATI'!R20=1,(IF(H47<>\"\",VLOOKUP(IF($E$12=\"\",$E$10,$E$10&\" \"&$E$12),'Tabella A1'!$J$9:$AG$51,17,FALSE),\"\")),(IF(H47<>\"\",VLOOKUP(IF($E$12=\"\",$E$10,$E$10&\" \"&$E$12),'Tabella A2'!$J$9:$AG$51,17,FALSE),\"\"))))))),0)","v":0},null,{"$f":"IF(S47<>0,U45,0)","v":0}]
[null,"Snr/Sa (Autorimessa minimo di legge a detrarre)",null,null,null,null,0.5,0,"x",0,null,null,null,null,"=",0,null,null,{"$f":"IF(H48<>0,IF('INSERIMENTO DATI'!D15=\"Consorzi ASI - Insediamenti commerciali e direzionali\",(VLOOKUP(E14,'Tabella B1 -B2 - B3'!$M$28:$AI$37,16,FALSE)),(IF(E10=\"Zone ASI\",(IF(E16=\"da 1 a 10\",(VLOOKUP(E14,'Tabella B1 -B2 - B3'!M9:W24,11,FALSE)),(IF(E16=\"da 11 a 50\",(VLOOKUP(E14,'Tabella B1 -B2 - B3'!M9:AB24,16,FALSE)),(IF(E16=\"da 51 a 200\",(VLOOKUP(E14,'Tabella B1 -B2 - B3'!M9:AG24,21,FALSE)),(IF(E16=\"da 201 a 1000\",(VLOOKUP(E14,'Tabella B1 -B2 - B3'!M9:AL24,26,FALSE)),\"\")))))))),(IF('INSERIMENTO DATI'!R20=1,(IF(H48<>\"\",VLOOKUP(IF($E$12=\"\",$E$10,$E$10&\" \"&$E$12),'Tabella A1'!$J$9:$AG$51,17,FALSE),\"\")),(IF(H48<>\"\",VLOOKUP(IF($E$12=\"\",$E$10,$E$10&\" \"&$E$12),'Tabella A2'!$J$9:$AG$51,17,FALSE),\"\"))))))),0)","v":0},null,{"$f":"IF(S48<>0,U45,0)","v":0}]
[null,"Su/Sl (Superficie Utile/Lorda)",null,null,null,{"$f":"IF('INSERIMENTO DATI'!D11=\"Aree ferroviarie destinazione da PRG\",\"\",(IF(E10<>\"Zone ASI\",\"Ristrutturazione\",'INSERIMENTO DATI'!N15)))","v":"Ristrutturazione"},1,0,"x",0,null,null,null,null,"=",0,null,null,{"$f":"IF(H49<>0,IF('INSERIMENTO DATI'!D15=\"Consorzi ASI - Insediamenti commerciali e direzionali\",(VLOOKUP(E14,'Tabella B1 -B2 - B3'!$M$28:$AI$37,21,FALSE)),(IF(E10=\"Zone ASI\",(IF(E16=\"da 1 a 10\",(VLOOKUP(E14,'Tabella B1 -B2 - B3'!M9:W24,11,FALSE)),(IF(E16=\"da 11 a 50\",(VLOOKUP(E14,'Tabella B1 -B2 - B3'!M9:AB24,16,FALSE)),(IF(E16=\"da 51 a 200\",(VLOOKUP(E14,'Tabella B1 -B2 - B3'!M9:AG24,21,FALSE)),(IF(E16=\"da 201 a 1000\",(VLOOKUP(E14,'Tabella B1 -B2 - B3'!M9:AL24,26,FALSE)),\"\")))))))),(IF('INSERIMENTO DATI'!R20=1,(IF(H49<>\"\",VLOOKUP(IF($E$12=\"\",$E$10,$E$10&\" \"&$E$12),'Tabella A1'!$J$9:$AG$51,22,FALSE),\"\")),(IF(H49<>\"\",VLOOKUP(IF($E$12=\"\",$E$10,$E$10&\" \"&$E$12),'Tabella A1'!$J$9:$AG$51,22,FALSE),\"\"))))))),0)","v":0},null,0]
[null,"Snr/Sa (Superficie non residenziale/Accessoria)",null,null,null,null,0.5,0,"x",0,null,null,null,null,"=",0,null,null,{"$f":"IF(H50<>0,IF('INSERIMENTO DATI'!D15=\"Consorzi ASI - Insediamenti commerciali e direzionali\",(VLOOKUP(E14,'Tabella B1 -B2 - B3'!$M$28:$AI$37,21,FALSE)),(IF(E10=\"Zone ASI\",(IF(E16=\"da 1 a 10\",(VLOOKUP(E14,'Tabella B1 -B2 - B3'!M9:W24,11,FALSE)),(IF(E16=\"da 11 a 50\",(VLOOKUP(E14,'Tabella B1 -B2 - B3'!M9:AB24,16,FALSE)),(IF(E16=\"da 51 a 200\",(VLOOKUP(E14,'Tabella B1 -B2 - B3'!M9:AG24,21,FALSE)),(IF(E16=\"da 201 a 1000\",(VLOOKUP(E14,'Tabella B1 -B2 - B3'!M9:AL24,26,FALSE)),\"\")))))))),(IF('INSERIMENTO DATI'!R20=1,(IF(H50<>\"\",VLOOKUP(IF($E$12=\"\",$E$10,$E$10&\" \"&$E$12),'Tabella A1'!$J$9:$AG$51,22,FALSE),\"\")),(IF(H50<>\"\",VLOOKUP(IF($E$12=\"\",$E$10,$E$10&\" \"&$E$12),'Tabella A1'!$J$9:$AG$51,22,FALSE),\"\"))))))),0)","v":0},null,{"$f":"IF(S50<>0,U49,0)","v":0}]
[null,"SUBTOTALE B - urbanizzazioni secondarie",null,null,null,null,null,null,null,null,null,null,null,null,null,{"$f":"ROUND(SUM(P41:P50),0)","v":45}]
[null,"PROTOCOLLO ITACA PER RIDUZIONE ONERI URBANIZZAZIONE",null,null,null,null,null,{"$f":"IF('INSERIMENTO DATI'!D40=0,\"\",'INSERIMENTO DATI'!D40)","v":""},null,null,null,null,null,null,null,{"$f":"IF(H52=Elenchi!$G$3,P51*0.1,(IF(H52=Elenchi!$G$4,ROUND((P51*0.2),0),0)))","v":0}]
[null,"ABBATTIMENTO DEL 20% (edilizia residenziale inserita in piani e progr. di iniziativa pubblica e mista e ristrutturazione urbanistica con realizz. in cl. 3 del prot. itaca)",null,null,null,null,null,null,null,null,null,null,null,null,null,{"$f":"IF('INSERIMENTO DATI'!R42= TRUE,ROUND((P51*0.2),0),0)","v":0}]
[null,"ABBATTIMENTO DEL 20% (agev. di interenti di rigen. urbana, di ristrutturazione e di recupero e riuso degli immobili dismessi o in dismissione) art.17 c.4bis DPR 380/01",null,null,null,null,null,null,null,null,null,null,null,null,null,{"$f":"IF(R18=1,0,(IF('INSERIMENTO DATI'!R43=TRUE,ROUND((P51*0.2),0),0)))","v":0}]
[null,"ABBATTIMENTO DEL 50% (delle tariffe delle zone b3 per aree servizi ed a verde per servizi culturali, sportivi e di recupero del disagio sociale)",null,null,null,null,null,null,null,null,null,null,null,null,null,{"$f":"IF('INSERIMENTO DATI'!R44=TRUE,ROUND((P51*0.5),0),0)","v":0}]
[null,"EVENTUALI ONERI GIA' VERSATI (Necessario allegare attestazioni di pagamento a comprova)"]
[null,"EVENTUALI SCOMPUTI DA CONVENZIONE"]
[null,"TOTALE URBANIZZAZIONI SECONDARIE DA VERSARE (tariffe da delibera C.C. nr.73/2019)",null,null,null,null,null,null,null,null,null,null,null,null,null,{"$f":"ROUND((IF((P51-P52-P53-P54-P55-P56-P57)<0,0,(P51-P52-P53-P54-P55-P56-P57))),0)","v":45}]
[]
[null,"C - costo di costruzione",null,null,null,"Tipo intervento edilizio","% Appl.","Superficie  (mq)",null,"Aliquota (€/mq)",null,"Incr.\n (da tab.)",null,"Aliquota C.C.",null,"Totale\n( € )",null,null,"NUOVE ALIQUOTE",null,"ALIQUOTE INS. MANUALE"]
[null,"Su (Superficie Utile)",null,null,null,"Residenziale",1,{"$f":"('TAB. per calcolo magg. CC'!E37)","v":1},"x",{"$f":"IF(H61=0,0,(IF(U61<>0,U61,S61)))","v":697.62},"x",{"$f":"IF('INSERIMENTO DATI'!R19=5,0,'TAB. per calcolo magg. CC'!I51/100)","v":0},"x",{"$f":"IF(H61<>0,5%,0)","v":0.05},"=",{"$f":"(IF(L61>0%,(G61*H61*(J61+(J61*L61))*N61),(G61*H61*J61*N61)))","v":34.881},null,null,{"$f":"IF(H61<>0,IF(E10=\"Zone ASI\",0,(((IF('INSERIMENTO DATI'!R19=5,(IF('INSERIMENTO DATI'!R63=1,'Tabella A1'!AM41,(IF('INSERIMENTO DATI'!R63=2,'Tabella A1'!AM48,(IF('INSERIMENTO DATI'!R63=3,'Tabella A1'!AM33,0)))))),'Tabella A1'!AM10))))),0)","v":697.62},null,0]
[null,"Snr (Superficie non residenziale)",null,null,null,null,0.6,{"$f":"('TAB. per calcolo magg. CC'!E38)","v":0},"x",0,"x",{"$f":"L61","v":0},"x",{"$f":"IF(H62<>0,5%,0)","v":0},"=",{"$f":"(IF(L62>0%,(G62*H62*(J62+(J62*L62))*N62),(G62*H62*J62*N62)))","v":0},null,null,{"$f":"IF(H62<>0,IF(E10=\"Zone ASI\",0,(((IF('INSERIMENTO DATI'!R19=5,(IF('INSERIMENTO DATI'!R63=1,'Tabella A1'!AM41,(IF('INSERIMENTO DATI'!R63=2,'Tabella A1'!AM48,(IF('INSERIMENTO DATI'!R63=3,'Tabella A1'!AM33,0)))))),'Tabella A1'!AM10))))),0)","v":0},null,{"$f":"IF(S62<>0,U61,0)","v":0}]
[null,"Snr (Parch. minimo di legge a detrarre)",null,null,null,null,0.6,{"$f":"(IF(('INSERIMENTO DATI'!F58)<=('INSERIMENTO DATI'!X29),(IF(('INSERIMENTO DATI'!I58)>('INSERIMENTO DATI'!F58),0,((('INSERIMENTO DATI'!F58)-('INSERIMENTO DATI'!I58))*-1))),(IF(('INSERIMENTO DATI'!X29)<('INSERIMENTO DATI'!F58),(IF(('INSERIMENTO DATI'!X29)<('INSERIMENTO DATI'!I58),0,((('INSERIMENTO DATI'!X29)-('INSERIMENTO DATI'!I58))*-1))),(('INSERIMENTO DATI'!F58)*-1)))))+(IF(('INSERIMENTO DATI'!I58>'INSERIMENTO DATI'!X29),(IF(('INSERIMENTO DATI'!F58<'INSERIMENTO DATI'!X29),'INSERIMENTO DATI'!F58*-1,'INSERIMENTO DATI'!X29*-1)),'INSERIMENTO DATI'!I58*-1))","v":0},"x",0,"x",{"$f":"L62","v":0},"x",{"$f":"IF(H63<>0,5%,0)","v":0},"=",0,null,null,{"$f":"IF(H63<>0,IF(E10=\"Zone ASI\",0,(((IF('INSERIMENTO DATI'!R19=5,(IF('INSERIMENTO DATI'!R63=1,'Tabella A1'!AM41,(IF('INSERIMENTO DATI'!R63=2,'Tabella A1'!AM48,(IF('INSERIMENTO DATI'!R63=3,'Tabella A1'!AM33,0)))))),'Tabella A1'!AM10))))),0)","v":0},null,{"$f":"IF(S63<>0,U61,0)","v":0}]
[null,"Snr (Autorimessa minimo di legge a detrarre)",null,null,null,null,0.6,{"$f":"H25+H29","v":0},"x",0,"x",{"$f":"L63","v":0},"x",{"$f":"IF(H64<>0,5%,0)","v":0},"=",0,null,null,{"$f":"IF(H64<>0,IF(E10=\"Zone ASI\",0,(((IF('INSERIMENTO DATI'!R19=5,(IF('INSERIMENTO DATI'!R63=1,'Tabella A1'!AM41,(IF('INSERIMENTO DATI'!R63=2,'Tabella A1'!AM48,(IF('INSERIMENTO DATI'!R63=3,'Tabella A1'!AM33,0)))))),'Tabella A1'!AM10))))),0)","v":0},null,{"$f":"IF(S64<>0,U61,0)","v":0}]
[null,"Sl (Superficie Lorda)",null,null,null,"Comm./Terz./Direz.\nFuori Terra",1,{"$f":"('TAB. per calcolo magg. CC'!E44)","v":0},"x",0,"x",{"$f":"IF('TAB. per calcolo magg. CC'!K47=\"TER\",0%,L64)","v":0},"x",{"$f":"IF(H65<>0,(IF(J65=J61,5%,(IF('INSERIMENTO DATI'!R19=0,5%,'INSERIMENTO DATI'!P78)))),0)","v":0},"=",0,null,null,{"$f":"(IF(H65<>0,IF(E10=\"Zone ASI\",0,((IF('INSERIMENTO DATI'!R19=5,(IF('INSERIMENTO DATI'!R63=1,'Tabella A1'!AM41,(IF('INSERIMENTO DATI'!R63=2,'Tabella A1'!AM48,(IF('INSERIMENTO DATI'!R63=3,'Tabella A1'!AM33,0)))))),(IF('TAB. per calcolo magg. CC'!K47=\"TER\",'Tabella A1'!AM19,'Tabella A1'!AM10)))))),0))","v":0},null,0]
[null,"Sa (Superficie accessoria)",null,null,null,null,0.6,{"$f":"('TAB. per calcolo magg. CC'!E45)","v":0},"x",0,"x",{"$f":"L65","v":0},"x",{"$f":"IF(H66<>0,(IF(J66=J61,5%,(IF('INSERIMENTO DATI'!R19=0,5%,'INSERIMENTO DATI'!P78)))),0)","v":0},"=",0,null,null,{"$f":"(IF(H66<>0,IF(E10=\"Zone ASI\",0,((IF('INSERIMENTO DATI'!R19=5,(IF('INSERIMENTO DATI'!R63=1,'Tabella A1'!AM41,(IF('INSERIMENTO DATI'!R63=2,'Tabella A1'!AM48,(IF('INSERIMENTO DATI'!R63=3,'Tabella A1'!AM33,0)))))),(IF('TAB. per calcolo magg. CC'!K47=\"TER\",'Tabella A1'!AM19,'Tabella A1'!AM10)))))),0))","v":0},null,{"$f":"IF(S66<>0,U65,0)","v":0}]
[null,"Sa (Parch. minimo di legge a detrarre)",null,null,null,null,0.6,{"$f":"IF('INSERIMENTO DATI'!F75>0,(H24+H28-H63)*('INSERIMENTO DATI'!F75/('INSERIMENTO DATI'!F75+'INSERIMENTO DATI'!F76)),0)","v":0},"x",0,"x",{"$f":"L66","v":0},"x",{"$f":"IF(H67<>0,(IF(J67=J61,5%,(IF('INSERIMENTO DATI'!R19=0,5%,'INSERIMENTO DATI'!P78)))),0)","v":0},"=",0,null,null,{"$f":"(IF(H67<>0,IF(E10=\"Zone ASI\",0,((IF('INSERIMENTO DATI'!R19=5,(IF('INSERIMENTO DATI'!R63=1,'Tabella A1'!AM41,(IF('INSERIMENTO DATI'!R63=2,'Tabella A1'!AM48,(IF('INSERIMENTO DATI'!R63=3,'Tabella A1'!AM33,0)))))),(IF('TAB. per calcolo magg. CC'!K47=\"TER\",'Tabella A1'!AM19,'Tabella A1'!AM10)))))),0))","v":0},null,{"$f":"IF(S67<>0,U65,0)","v":0}]
[null,"Sl (Superficie Lorda)",null,null,null,"Comm./Terz./Direz.\nInterrata",1,{"$f":"'TAB. per calcolo magg. CC'!F44","v":0},"x",0,"x",{"$f":"IF('TAB. per calcolo magg. CC'!K47=\"TER\",0%,L64)","v":0},"x",{"$f":"IF(H68<>0,(IF(J68=J61,5%,(IF('INSERIMENTO DATI'!R19=0,5%,'INSERIMENTO DATI'!P78)))),0)","v":0},"=",0,null,null,{"$f":"(IF(H68<>0,IF(E10=\"Zone ASI\",0,((IF('INSERIMENTO DATI'!R19=5,(IF('INSERIMENTO DATI'!R63=1,'Tabella A1'!AM41,(IF('INSERIMENTO DATI'!R63=2,'Tabella A1'!AM48,(IF('INSERIMENTO DATI'!R63=3,'Tabella A1'!AM33,0)))))),(IF('TAB. per calcolo magg. CC'!K47=\"TER\",'Tabella A1'!AM18,'Tabella A1'!AM10)))))),0))","v":0},null,0]
[null,"Sa (Superficie accessoria)",null,null,null,null,0.6,{"$f":"'TAB. per calcolo magg. CC'!F45","v":0},"x",0,"x",{"$f":"L68","v":0},"x",{"$f":"IF(H69<>0,(IF(J69=J61,5%,(IF('INSERIMENTO DATI'!R19=0,5%,'INSERIMENTO DATI'!P78)))),0)","v":0},"=",0,null,null,{"$f":"(IF(H69<>0,IF(E10=\"Zone ASI\",0,((IF('INSERIMENTO DATI'!R19=5,(IF('INSERIMENTO DATI'!R63=1,'Tabella A1'!AM41,(IF('INSERIMENTO DATI'!R63=2,'Tabella A1'!AM48,(IF('INSERIMENTO DATI'!R63=3,'Tabella A1'!AM33,0)))))),(IF('TAB. per calcolo magg. CC'!K47=\"TER\",'Tabella A1'!AM18,'Tabella A1'!AM10)))))),0))","v":0},null,{"$f":"IF(S69<>0,U68,0)","v":0}]
[null,"Sa (Parch. minimo di legge a detrarre)",null,null,null,null,0.6,{"$f":"(IF('INSERIMENTO DATI'!F76>0,(H24+H47-H63)*('INSERIMENTO DATI'!F76/('INSERIMENTO DATI'!F75+'INSERIMENTO DATI'!F76)),0))","v":0},"x",0,"x",{"$f":"L69","v":0},"x",{"$f":"IF(H70<>0,(IF(J70=J61,5%,(IF('INSERIMENTO DATI'!R19=0,5%,'INSERIMENTO DATI'!P78)))),0)","v":0},"=",0,null,null,{"$f":"(IF(H70<>0,IF(E10=\"Zone ASI\",0,((IF('INSERIMENTO DATI'!R19=5,(IF('INSERIMENTO DATI'!R63=1,'Tabella A1'!AM41,(IF('INSERIMENTO DATI'!R63=2,'Tabella A1'!AM48,(IF('INSERIMENTO DATI'!R63=3,'Tabella A1'!AM33,0)))))),(IF('TAB. per calcolo magg. CC'!K47=\"TER\",'Tabella A1'!AM18,'Tabella A1'!AM10)))))),0))","v":0},null,{"$f":"IF(S70<>0,U68,0)","v":0}]
[null,"SUBTOTALE C - costo di costruzione",null,null,null,null,null,null,null,null,null,null,null,null,null,{"$f":"ROUND(SUM(P61:P70),0)","v":35}]
[null,"ABBATTIMENTO DEL 20% (agev. di interenti di rigen. urbana, di ristrutturazione e di recupero e riuso degli immobili dismessi o in dismissione) art.17 c.4bis DPR 380/01",null,null,null,null,null,null,null,null,null,null,null,null,null,{"$f":"IF(R18=1,0,(IF('INSERIMENTO DATI'!R43=TRUE,ROUND((P71*0.2),0),0)))","v":0}]
[null,"EVENTUALI ONERI GIA' VERSATI (Necessario allegare attestazioni di pagamento a comprova)"]
[null,"EVENTUALI SCOMPUTI DA CONVENZIONE"]
[null,"TOTALE COSTO DI COSTRUZIONE DA VERSARE (Tariffe da determina dirigenziale nr.10041/17)",null,null,null,null,null,null,null,null,null,null,null,null,null,{"$f":"ROUND((IF((P71-P72-P73-P74)<0,0,(P71-P72-P73-P74))),0)","v":35}]
[]
[null,"TOTALE CONTRIBUTO DI COSTRUZIONE (A + B + C)",null,null,null,null,null,null,null,null,null,null,null,null,null,{"$f":"P38+P58+P75","v":102}]
[null,{"$f":"IF(AND(R18=1,'INSERIMENTO DATI'!R43=TRUE),\"ATT. L'abbattimento del 20% art. 17 c.4bis DPR 380/01 verrà applicato solo sulle superfici aggiuntive rispetto a quelle già assentite. Vedere foglio Prosp. Riep. per variante.\",\"\")","v":""}]
[null,"D - standard e parcheggi",null,null,null,"Tipo","% Appl.","Superficie  (mq)",null,"Aliquota (€/mq)",null,"Riduz.",null,null,null,"Totale\n( € )",null,"incr. %","NUOVE ALIQUOTE",null,"ALIQUOTE INS. MANUALE"]
[null,"Ss (Superficie a Standard Urbanistici DM 1444/68)",null,null,null,"Monetizzazione Standard",1,{"$f":"(IF('INSERIMENTO DATI'!O90<>\"\",'INSERIMENTO DATI'!O90,0))+(IF('INSERIMENTO DATI'!O95<>\"\",'INSERIMENTO DATI'!O95,0))+(IF('INSERIMENTO DATI'!O97<>\"\",'INSERIMENTO DATI'!O97,0))","v":0},"x",{"$f":"IF(H80=0,0,(IF(U80<>0,U80,S80)))","v":0},null,null,null,null,"=",{"$f":"ROUND((IF(ISERROR(IF(H80<>\"\",(G80*H80)*J80,0))=TRUE,0,(IF(H80<>\"\",(G80*H80)*J80,0)))),0)","v":0},null,{"$f":"IF(P80=0,\"1\",P80/P82)","v":"1"},{"$f":"IF(E18=\"\",0,IF(H80<>0,(VLOOKUP(E18,'Tabella Standard'!A:F,6,FALSE)),0))","v":0},null,0]
[null,"Sp (Superficie per Parcheggi L. 122/89)",null,null,null,"Monetizzazione Parcheggi",1,{"$f":"(IF(OR('INSERIMENTO DATI'!O92<>\"\",'INSERIMENTO DATI'!O97<>\"\"),('INSERIMENTO DATI'!O92),0))","v":0},"x",0,"x",0.6,null,null,"=",{"$f":"ROUND((IF(H81<>\"\",(G81*H81*L81)*J81,0)),0)","v":0},null,{"$f":"IF(P81=0,1,P81/P82)","v":1},{"$f":"IF(H81=0,0,('Tabella A1'!AM10))","v":0},null,0]
[null,"SUBTOTALE D - standard e parcheggi",null,null,null,null,null,null,null,null,null,null,null,null,null,{"$f":"SUM(P80:P81)","v":0}]
[null,"EVENTUALI STANDARD GIA' VERSATI (Necessario allegare attestazioni di pagamento a comprova)"]
[null,"EVENTUALI SCOMPUTI DA MOTIVARE IN RELAZIONE"]
[null,"TOTALE MONETIZZAZIONE STANDARD E PARCHEGGI (D)  (Tariffe standard da det. Dir. nr.130/14 tariffe parcheggi da delibera C.C. nr.73/2019)",null,null,null,null,null,null,null,null,null,null,null,null,null,{"$f":"ROUND((IF((P82-P83-P84)<0,0,(P82-P83-P84))),0)","v":0}]
[]
[null,"E - contributo straordinario di costruzione ",null,null,null,null,null,null,null,null,null,null,null,null,null,"Totale\n( € )"]
[null,"EVENTUALI SCOMPUTI DA MOTIVARE IN RELAZIONE"]
[null,"TOTALE CONTRIBUTO STRAORDINARIO DI COSTRUZIONE (Tariffa da delibera C.C. nr.11/2022)",null,null,null,null,null,null,null,{"$f":"IF(P89<>0,\"(\"& 'INSERIMENTO DATI'!L24 &\" mc  x  € 55,00) \",\"\")","v":""},null,null,{"$f":"IF(P88<>\"\",(\"- € \" & P88),\"\")","v":""},null,"=",{"$f":"(IF('INSERIMENTO DATI'!T21<>\"\",('INSERIMENTO DATI'!T21*55)-P88,0))","v":0}]
[]
[null,"F - sanzioni",null,null,"Articolo di riferimento DPR nr.380/2001",null,null,null,null,null,null,null,null,null,null,"Totale\n( € )"]
[null,"Sanzione",null,null,null,null,null,null,null,null,null,null,null,null,"="]
[null,"Sanzione",null,null,null,null,null,null,null,null,null,null,null,null,"="]
[null,"SUBTOTALE E - sanzioni",null,null,null,null,null,null,null,null,null,null,null,null,null,{"$f":"SUM(P92:P93)","v":0}]
[null,"EVENTUALI SANZIONI GIA' VERSATE (Necessario allegare attestazioni di pagamento a comprova)"]
[null,"TOTALE SANZIONI",null,null,null,null,null,null,null,null,null,null,null,null,null,{"$f":"ROUND((IF((P94-P95)<0,0,(P94-P95))),0)","v":0}]
[]
[null,"TOTALE DA VERSARE - CONTR. DI COSTRUZIONE + STANDARD E PARCHEGGI + CONTR. STRAORDINARIO + SANZIONI",null,null,null,null,null,null,null,null,null,null,null,null,null,{"$f":"P77+P85+P89+P96","v":102}]
[]
[null,null,"Il tecnico istruttore",null,null,null,"La Posizione Organizzativa",null,null,null,null,null,null,"Il Direttore della Ripartizione"]
[null,null,"Nome tecnico",null,null,null,"Nome posizione",null,null,null,null,null,null,"Nome Direttore"]

{"sheet":"Tabella A1","index":3,"n_rows":54,"n_cols":44,"rows_kept":54,"cut":false,"hidden":true,"merged":[[59,44,65,46],[1,11,2,16],[1,18,1,33],[1,35,1,39],[1,41,53,41],[3,12,6,14],[3,15,6,15],[3,19,3,22],[3,24,3,27],[35,36,40,36],[3,29,3,32],[4,19,4,22],[4,24,4,27],[21,36,21,38],[24,36,32,36],[4,29,4,32],[5,24,5,27],[5,29,5,32],[6,36,6,38],[11,36,16,36],[20,44,27,46],[1,42,53,42],[2,18,2,33],[42,36,47,36],[45,19,45,32],[48,19,48,32],[49,19,49,32],[5,19,5,22]]}
[null,null,null,null,null,null,null,null,null,1,null,3,4,5,6,7,8,9,10,11,12,13,14,15,16,17,18,19,20,21,22,23,24,25]
[null,null,null,null,null,null,null,null,null,null,null,"TABELLA CONTRIBUTO DI COSTRUZIONE A1",null,null,null,null,null,null,"ALIQUOTE URBANIZZAZIONI",null,null,null,null,null,null,null,null,null,null,null,null,null,null,null,null,"ALIQUOTE COSTO DI COSTRUZIONE ",null,null,null,null,null,"AGGIORNAMENTO  21/10/2019","Abbattimenti previsti per le urbanizzazioni primarie e secondarie:\n1) costruzioni sostenibili prot. ITACA: -classe 3 -10%     -classe 4-5 -20%\n2) riqulificazioni e rigenerazione urbana edifici inseriti in piani e programmi complessi di edilizia pubblica e mista con destinazione residenziale  edifici prot. ITACA classe 3 -20%\n3) interventi in area a servizi e verde laddove si tratti di servizi, sportivi e di recupero del disagio sociale -50%"]
[null,null,null,null,null,null,"COEFFICIENTE DI INCREMENTO",1,null,null,null,null,null,null,null,null,null,null,"Tipologia di intervento edilizio"]
[null,null,null,null,null,null,null,null,null,null,null,null,"Destinazione di P.R.G.",null,null,"Norma NTA",null,null,null,"NUOVA COSTRUZIONE",null,null,null,null,"RISTRUTTURAZIONE \ncon\nDemolizione e ricostruzione",null,null,null,null,"RISTRUTTURAZIONE"]
[null,null,null,null,null,null,null,null,null,null,null,null,null,null,null,null,null,null,null,"N.C.",null,null,null,null,"D.R.",null,null,null,null,"R.R."]
["N.C. ",null,null,"D.R.",null,null,"R.R.",null,null,null,null,null,null,null,null,null,null,null,null,"(€/mq)",null,null,null,null,"(€/mq)",null,null,null,null,"(€/mq)"]
["UP","US",null,"UP","US",null,"UP","US",null,"Dest. PRG",null,null,null,null,null,null,null,null,null,"U.P.","U.S.",null,"TOT.",null,"U.P.","U.S.",null,"TOT.",null,"U.P.","U.S.",null,"TOT.",null,null,null,"NUOVE COSTRUZIONI"]
[]
[22.06,45.31,null,22.06,45.31,null,11.03,22.66,null,{"$f":"IF(O9<>\"\",M9&\" \"&N9&\" \"&O9,IF(N9<>\"\",M9&\" \"&N9,M9))","v":"Centro Storico A1"},null,null,"Centro Storico","A1",null,"Art. 45",null,null,null,{"$f":"ROUND(A9*$H$3,2)","v":22.06},{"$f":"ROUND(B9*$H$3,2)","v":45.31},null,{"$f":"T9+U9","v":67.37},null,{"$f":"ROUND(D9*$H$3,2)","v":22.06},{"$f":"ROUND(E9*$H$3,2)","v":45.31},null,{"$f":"Y9+Z9","v":67.37},null,{"$f":"ROUND(G9*$H$3,2)","v":11.03},{"$f":"ROUND(H9*$H$3,2)","v":22.66},null,{"$f":"AD9+AE9","v":33.69}]
[22.06,45.31,null,22.06,45.31,null,11.03,22.66,null,"Interesse Ambientale A2",null,null,"Interesse Ambientale","A2",null,"Art. 46",null,null,null,22.06,45.31,null,67.37,null,22.06,45.31,null,67.37,null,11.03,22.66,null,33.69,null,null,null,"Costruzioni residenziali","€/mq",697.62]
[19.86,40.78,null,17.649999999999999,36.25,null,13.24,27.19,null,"Completamento B1",null,null,"Completamento","B1",null,"Art. 47",null,null,null,19.86,40.78,null,60.64,null,17.649999999999999,36.25,null,53.9,null,13.24,27.19,null,40.43]
[22.02,40.78,null,19.57,36.25,null,14.68,27.19,null,"Completamento B2",null,null,"Completamento","B2",null,"Art. 47",null,null,null,22.02,40.78,null,62.8,null,19.57,36.25,null,55.82,null,14.68,27.19,null,41.870000000000005,null,null,null,"Costruzioni a carattere terziario, direzionale e commerciale, quando queste superino il 25% della superficie utile abitabile   (art. 9 D.M. 10/05/1977)"]
[29.57,40.78,null,26.28,36.25,null,19.71,27.19,null,"Completamento B3",null,null,"Completamento","B3",null,"Art. 48",null,null,null,29.57,40.78,null,70.349999999999994,null,26.28,36.25,null,62.53,null,19.71,27.19,null,46.900000000000006]
[34.659999999999997,40.78,null,30.81,36.25,null,23.11,27.19,null,"Completamento B4",null,null,"Completamento","B4",null,"Art. 48",null,null,null,34.659999999999997,40.78,null,75.44,null,30.81,36.25,null,67.06,null,23.11,27.19,null,50.3]
[68.760000000000005,40.78,null,61.12,36.25,null,45.84,27.19,null,"Completamento B5",null,null,"Completamento","B5",null,"Art. 48",null,null,null,68.760000000000005,40.78,null,109.54,null,61.12,36.25,null,97.37,null,45.84,27.19,null,73.03]
[19.86,40.78,null,17.649999999999999,36.25,null,13.24,27.19,null,"Rinnovamento urbano B6",null,null,"Rinnovamento urbano","B6",null,"Art. 49",null,null,null,19.86,40.78,null,60.64,null,17.649999999999999,36.25,null,53.9,null,13.24,27.19,null,40.43]
[19.86,40.78,null,17.649999999999999,36.25,null,13.24,27.19,null,"Rinnovamento urbano B7",null,null,"Rinnovamento urbano","B7",null,"Art. 49",null,null,null,19.86,40.78,null,60.64,null,17.649999999999999,36.25,null,53.9,null,13.24,27.19,null,40.43]
[58.71,40.78,null,52.18,36.25,null,39.14,27.19,null,"Rinnovamento urbano B8",null,null,"Rinnovamento urbano","B8",null,"Art. 49",null,null,null,58.71,40.78,null,99.490000000000009,null,52.18,36.25,null,88.43,null,39.14,27.19,null,66.33,null,null,null,"- Per la parte interrata","€/mq",813.18]
[19.86,40.78,null,17.649999999999999,36.25,null,13.24,27.19,null,"Rinn. urbano terz./direz. B9",null,null,"Rinn. urbano terz./direz.","B9",null,"Art. 50",null,null,null,19.86,40.78,null,60.64,null,17.649999999999999,36.25,null,53.9,null,13.24,27.19,null,40.43,null,null,null,"- Per la parte fuori terra","€/mq",1220.82]
[]
[37.99,54.38,null,33.24,47.58,null,28.49,40.78,null,{"$f":"IF(O21<>\"\",M21&\" \"&N21&\" \"&O21,IF(N21<>\"\",M21&\" \"&N21,M21))","v":"Area di espansione C1 <   500 m."},null,null,"Area di espansione","C1","<   500 m.","Art. 51",null,null,null,{"$f":"ROUND(A21*$H$3,2)","v":37.99},54.38,null,{"$f":"T21+U21","v":92.37},null,{"$f":"ROUND(D21*$H$3,2)","v":33.24},47.58,null,{"$f":"Y21+Z21","v":80.819999999999993},null,{"$f":"ROUND(G21*$H$3,2)","v":28.49},40.78,null,{"$f":"AD21+AE21","v":69.27}]
[32.92,47.13,null,28.81,41.24,null,24.69,35.340000000000003,null,{"$f":"IF(O22<>\"\",M22&\" \"&N22&\" \"&O22,IF(N22<>\"\",M22&\" \"&N22,M22))","v":"Area di espansione C1 < 2000 m."},null,null,"Area di espansione","C1","< 2000 m.","Art. 51",null,null,null,32.92,47.13,null,{"$f":"T22+U22","v":80.050000000000011},null,28.81,41.24,null,{"$f":"Y22+Z22","v":70.05},null,24.69,35.340000000000003,null,{"$f":"AD22+AE22","v":60.03},null,null,null,"COSTRUZIONI ESISTENTI"]
[27.86,39.880000000000003,null,24.38,34.89,null,20.89,29.91,null,{"$f":"IF(O23<>\"\",M23&\" \"&N23&\" \"&O23,IF(N23<>\"\",M23&\" \"&N23,M23))","v":"Area di espansione C1 < 5000 m."},null,null,"Area di espansione","C1","< 5000 m.","Art. 51",null,null,null,27.86,39.880000000000003,null,{"$f":"T23+U23","v":67.740000000000009},null,24.38,34.89,null,{"$f":"Y23+Z23","v":59.269999999999996},null,20.89,29.91,null,{"$f":"AD23+AE23","v":50.8}]
[25.33,36.25,null,22.16,31.72,null,18.989999999999998,27.19,null,{"$f":"IF(O24<>\"\",M24&\" \"&N24&\" \"&O24,IF(N24<>\"\",M24&\" \"&N24,M24))","v":"Area di espansione C1 > 5000 m."},null,null,"Area di espansione","C1","> 5000 m.","Art. 51",null,null,null,25.33,36.25,null,{"$f":"T24+U24","v":61.58},null,22.16,31.72,null,{"$f":"Y24+Z24","v":53.879999999999995},null,18.989999999999998,27.19,null,{"$f":"AD24+AE24","v":46.18}]
[null,null,null,null,null,null,null,null,null,null,null,null,null,null,null,null,null,null,null,null,null,null,null,null,null,null,null,null,null,null,null,null,null,null,null,null,"Interventi complessi su edifici  residenziali o a carattere terziario,direzionale e commerciale che comprendono il rifacimento degli orizzontamenti, dell'impiantistica, delle murature e delle strutture anche in modo parziale"]
[49.5,54.37,null,43.31,47.58,null,37.130000000000003,40.78,null,{"$f":"IF(O26<>\"\",M26&\" \"&N26&\" \"&O26,IF(N26<>\"\",M26&\" \"&N26,M26))","v":"Area di espansione C2 <   500 m."},null,null,"Area di espansione","C2","<   500 m.","Art. 51",null,null,null,{"$f":"ROUND(A26*$H$3,2)","v":49.5},54.37,null,{"$f":"T26+U26","v":103.87},null,{"$f":"ROUND(D26*$H$3,2)","v":43.31},47.58,null,{"$f":"Y26+Z26","v":90.89},null,{"$f":"ROUND(G26*$H$3,2)","v":37.130000000000003},40.78,null,{"$f":"AD26+AE26","v":77.91}]
[42.9,47.13,null,37.54,41.24,null,32.18,35.340000000000003,null,{"$f":"IF(O27<>\"\",M27&\" \"&N27&\" \"&O27,IF(N27<>\"\",M27&\" \"&N27,M27))","v":"Area di espansione C2 < 2000 m."},null,null,"Area di espansione","C2","< 2000 m.","Art. 51",null,null,null,42.9,47.13,null,90.03,null,37.54,41.24,null,{"$f":"Y27+Z27","v":78.78},null,32.18,35.340000000000003,null,{"$f":"AD27+AE27","v":67.52000000000001}]
[36.299999999999997,39.880000000000003,null,31.76,34.89,null,27.23,29.91,null,{"$f":"IF(O28<>\"\",M28&\" \"&N28&\" \"&O28,IF(N28<>\"\",M28&\" \"&N28,M28))","v":"Area di espansione C2 < 5000 m."},null,null,"Area di espansione","C2","< 5000 m.","Art. 51",null,null,null,36.299999999999997,39.880000000000003,null,76.180000000000007,null,31.76,34.89,null,{"$f":"Y28+Z28","v":66.650000000000006},null,27.23,29.91,null,{"$f":"AD28+AE28","v":57.14}]
[33,36.25,null,28.87,31.72,null,24.75,27.19,null,{"$f":"IF(O29<>\"\",M29&\" \"&N29&\" \"&O29,IF(N29<>\"\",M29&\" \"&N29,M29))","v":"Area di espansione C2 > 5000 m."},null,null,"Area di espansione","C2","> 5000 m.","Art. 51",null,null,null,33,36.25,null,69.25,null,28.87,31.72,null,{"$f":"Y29+Z29","v":60.59},null,24.75,27.19,null,{"$f":"AD29+AE29","v":51.94}]
[null,null,null,null,null,null,null,null,null,null,null,null,null,null,null,null,null,null,null,null,null,null,0]
[78.28,54.38,null,68.489999999999995,47.58,null,58.71,40.78,null,{"$f":"IF(O31<>\"\",M31&\" \"&N31&\" \"&O31,IF(N31<>\"\",M31&\" \"&N31,M31))","v":"Area di espansione C3 <   500 m."},null,null,"Area di espansione","C3","<   500 m.","Art. 51",null,null,null,{"$f":"ROUND(A31*$H$3,2)","v":78.28},54.38,null,132.66,null,{"$f":"ROUND(D31*$H$3,2)","v":68.489999999999995},47.58,null,{"$f":"Y31+Z31","v":116.07},null,{"$f":"ROUND(G31*$H$3,2)","v":58.71},40.78,null,{"$f":"AD31+AE31","v":99.490000000000009}]
[67.84,47.13,null,59.36,41.24,null,50.88,35.340000000000003,null,{"$f":"IF(O32<>\"\",M32&\" \"&N32&\" \"&O32,IF(N32<>\"\",M32&\" \"&N32,M32))","v":"Area di espansione C3 < 2000 m."},null,null,"Area di espansione","C3","< 2000 m.","Art. 51",null,null,null,67.84,47.13,null,114.97,null,59.36,41.24,null,{"$f":"Y32+Z32","v":100.6},null,50.88,35.340000000000003,null,{"$f":"AD32+AE32","v":86.22}]
[57.4,39.880000000000003,null,50.23,34.89,null,43.05,29.91,null,{"$f":"IF(O33<>\"\",M33&\" \"&N33&\" \"&O33,IF(N33<>\"\",M33&\" \"&N33,M33))","v":"Area di espansione C3 < 5000 m."},null,null,"Area di espansione","C3","< 5000 m.","Art. 51",null,null,null,57.4,39.880000000000003,null,97.28,null,50.23,34.89,null,{"$f":"Y33+Z33","v":85.12},null,43.05,29.91,null,{"$f":"AD33+AE33","v":72.959999999999994},null,null,null,null,"€/mq",418.1,null,null,null,null,3]
[52.19,36.25,null,45.66,31.72,null,39.14,27.19,null,{"$f":"IF(O34<>\"\",M34&\" \"&N34&\" \"&O34,IF(N34<>\"\",M34&\" \"&N34,M34))","v":"Area di espansione C3 > 5000 m."},null,null,"Area di espansione","C3","> 5000 m.","Art. 51",null,null,null,52.19,36.25,null,88.44,null,45.66,31.72,null,{"$f":"Y34+Z34","v":77.38},null,39.14,27.19,null,{"$f":"AD34+AE34","v":66.33}]
[]
[26.48,54.38,null,23.17,47.58,null,19.86,40.78,null,{"$f":"IF(O36<>\"\",M36&\" \"&N36&\" \"&O36,IF(N36<>\"\",M36&\" \"&N36,M36))","v":"Terziario Direzionale TD <   500 m."},null,null,"Terziario Direzionale","TD","<   500 m.","Art. 39",null,null,null,{"$f":"ROUND(A36*$H$3,2)","v":26.48},54.38,null,{"$f":"T36+U36","v":80.86},null,{"$f":"ROUND(D36*$H$3,2)","v":23.17},47.58,null,{"$f":"Y36+Z36","v":70.75},null,{"$f":"ROUND(G36*$H$3,2)","v":19.86},40.78,null,{"$f":"AD36+AE36","v":60.64},null,null,null,"ristrutturazione con variazioni distributive, impiantistiche, oltre ad interventi riguardanti le finiture interne, senza interventi sulle strutture"]
[22.95,47.13,null,20.079999999999998,41.24,null,17.21,35.340000000000003,null,{"$f":"IF(O37<>\"\",M37&\" \"&N37&\" \"&O37,IF(N37<>\"\",M37&\" \"&N37,M37))","v":"Terziario Direzionale TD < 2000 m."},null,null,"Terziario Direzionale","TD","< 2000 m.","Art. 39",null,null,null,22.95,47.13,null,{"$f":"T37+U37","v":70.08},null,20.079999999999998,41.24,null,{"$f":"Y37+Z37","v":61.32},null,17.21,35.340000000000003,null,{"$f":"AD37+AE37","v":52.550000000000004}]
[19.420000000000002,39.880000000000003,null,16.989999999999998,34.89,null,14.56,29.91,null,{"$f":"IF(O38<>\"\",M38&\" \"&N38&\" \"&O38,IF(N38<>\"\",M38&\" \"&N38,M38))","v":"Terziario Direzionale TD < 5000 m."},null,null,"Terziario Direzionale","TD","< 5000 m.","Art. 39",null,null,null,19.420000000000002,39.880000000000003,null,{"$f":"T38+U38","v":59.300000000000004},null,16.989999999999998,34.89,null,{"$f":"Y38+Z38","v":51.879999999999995},null,14.56,29.91,null,{"$f":"AD38+AE38","v":44.47}]
[17.649999999999999,36.25,null,15.44,31.72,null,13.24,27.19,null,{"$f":"IF(O39<>\"\",M39&\" \"&N39&\" \"&O39,IF(N39<>\"\",M39&\" \"&N39,M39))","v":"Terziario Direzionale TD > 5000 m."},null,null,"Terziario Direzionale","TD","> 5000 m.","Art. 39",null,null,null,17.649999999999999,36.25,null,{"$f":"T39+U39","v":53.9},null,15.44,31.72,null,{"$f":"Y39+Z39","v":47.16},null,13.24,27.19,null,{"$f":"AD39+AE39","v":40.43}]
[]
[96.41,45.31,null,96.41,45.31,null,48.21,22.66,null,{"$f":"IF(O41<>\"\",M41&\" \"&N41&\" \"&O41,IF(N41<>\"\",M41&\" \"&N41,M41))","v":"Zone attività primarie A e B"},null,null,"Zone attività primarie","A e B",null,"Art. 34-35",null,null,null,{"$f":"ROUND(A41*$H$3,2)","v":96.41},45.31,null,{"$f":"T41+U41","v":141.72},null,{"$f":"ROUND(D41*$H$3,2)","v":96.41},45.31,null,{"$f":"Y41+Z41","v":141.72},null,{"$f":"ROUND(G41*$H$3,2)","v":48.21},22.66,null,{"$f":"AD41+AE41","v":70.87},null,null,null,null,"€/mq",244.28,null,null,null,null,1]
[29.57,40.78,null,26.28,36.25,null,19.71,27.19,null,"Servizi alla residenza",null,null,"Servizi alla residenza",null,null,"Da art.  52 a 57",null,null,null,29.57,40.78,null,{"$f":"T42+U42","v":70.349999999999994},null,26.28,36.25,null,{"$f":"Y42+Z42","v":62.53},null,19.71,27.19,null,{"$f":"AD42+AE42","v":46.900000000000006}]
[29.57,40.78,null,26.28,36.25,null,19.71,27.19,null,"Verde ed attrezz. carattere urbano e regionale",null,null,"Verde ed attrezz. carattere urbano e regionale",null,null,"Art. 31-32",null,null,null,29.57,40.78,null,{"$f":"T43+U43","v":70.349999999999994},null,26.28,36.25,null,{"$f":"Y43+Z43","v":62.53},null,19.71,27.19,null,{"$f":"AD43+AE43","v":46.900000000000006},null,null,null,"ristrutturazioni con adeguamento degli impianti, rifacimento degli intonaci e delle pavimentazioni, nonchè interventi riguardanti le finiture interne"]
[29.57,40.78,null,26.28,36.25,null,19.71,27.19,null,"Zone produttive",null,null,"Zone produttive",null,null,"Art. 33",null,null,null,29.57,40.78,null,{"$f":"T44+U44","v":70.349999999999994},null,26.28,36.25,null,{"$f":"Y44+Z44","v":62.53},null,19.71,27.19,null,{"$f":"AD44+AE44","v":46.900000000000006}]
[29.57,40.78,null,26.28,36.25,null,19.71,27.19,null,"Viabilità di piano e rispetto",null,null,"Viabilità di piano e rispetto",null,null,"Art. 27-28",null,null,null,29.57,40.78,null,{"$f":"T45+U45","v":70.349999999999994},null,26.28,36.25,null,{"$f":"Y45+Z45","v":62.53},null,19.71,27.19,null,{"$f":"AD45+AE45","v":46.900000000000006}]
[null,null,null,null,null,null,null,null,null,"Aree ferroviarie destinazione da PRG",null,null,"Aree ferroviarie destinazione da PRG",null,null,"Art. 29",null,null,null,"VEDI TAB. CONTRIBUTO DI COSTRUZIONE B2"]
[29.57,40.78,null,26.28,36.25,null,19.71,27.19,null,"Aree ferroviarie altre destinazioni",null,null,"Aree ferroviarie altre destinazioni",null,null,"Art. 29",null,null,null,{"$f":"ROUND(A47*$H$3,2)","v":29.57},{"$f":"ROUND(B47*$H$3,2)","v":40.78},null,{"$f":"T47+U47","v":70.349999999999994},null,{"$f":"ROUND(D47*$H$3,2)","v":26.28},{"$f":"ROUND(E47*$H$3,2)","v":36.25},null,{"$f":"Y47+Z47","v":62.53},null,{"$f":"ROUND(G47*$H$3,2)","v":19.71},{"$f":"ROUND(H47*$H$3,2)","v":27.19},null,{"$f":"AD47+AE47","v":46.900000000000006}]
[29.57,40.78,null,26.28,36.25,null,19.71,27.19,null,"Arenili e coste",null,null,"Arenili e coste",null,null,"Art. 30",null,null,null,{"$f":"ROUND(A48*$H$3,2)","v":29.57},{"$f":"ROUND(B48*$H$3,2)","v":40.78},null,{"$f":"T48+U48","v":70.349999999999994},null,{"$f":"ROUND(D48*$H$3,2)","v":26.28},{"$f":"ROUND(E48*$H$3,2)","v":36.25},null,{"$f":"Y48+Z48","v":62.53},null,{"$f":"ROUND(G48*$H$3,2)","v":19.71},{"$f":"ROUND(H48*$H$3,2)","v":27.19},null,{"$f":"AD48+AE48","v":46.900000000000006},null,null,null,null,"€/mq",122.97,null,null,null,null,2]
[null,null,null,null,null,null,null,null,null,"Zone ASI",null,null,"Zone ASI",null,null,null,null,null,null,"VEDI TAB. CONTRIBUTO DI COSTRUZIONE B1- B2 - B3 (SOLO URB. SECONDARIE)"]
[null,null,null,null,null,null,null,null,null,"Area di rispetto",null,null,"Area di rispetto",null,null,"Art. 25",null,null,null,"CALCOLATA IN FUNZIONE DELLE AREE CONTERMINI"]
[]
[]
[null,null,null,null,null,null,null,null,null,null,null,null,"ONERI URBANIZZAZIONE","aggiornati con determina dirigenziale n. 00039 del 10/09/2019",null,null,null,null,null,null,null,null,"e","deliberazione consiglio comunale n. 00073 del 21/10/2019"]
[null,null,null,null,null,null,null,null,null,null,null,null,"COSTO DI COSTRUZIONE","aggiornato con determina dirigenziale n. 10041 del 08/09/2017"]

{"sheet":"Tabella A2","index":4,"n_rows":54,"n_cols":43,"rows_kept":54,"cut":false,"hidden":true,"merged":[[59,44,65,46],[1,11,2,16],[1,18,1,33],[1,35,1,39],[1,41,53,41],[3,12,6,14],[3,15,6,15],[3,19,3,22],[3,24,3,27],[35,36,40,36],[3,29,3,32],[4,19,4,22],[4,24,4,27],[21,36,21,38],[24,36,32,36],[4,29,4,32],[5,24,5,27],[5,29,5,32],[6,36,6,38],[11,36,16,36],[20,44,27,46],[1,42,53,42],[2,18,2,33],[42,36,47,36],[45,19,45,32],[48,19,48,32],[49,19,49,32],[5,19,5,22]]}
[null,null,null,null,null,null,null,null,null,1,null,3,4,5,6,7,8,9,10,11,12,13,14,15,16,17,18,19,20,21,22,23,24,25]
[null,null,null,null,null,null,null,null,null,null,null,"TABELLA CONTRIBUTO DI COSTRUZIONE A2",null,null,null,null,null,null,"ALIQUOTE URBANIZZAZIONI PEEP",null,null,null,null,null,null,null,null,null,null,null,null,null,null,null,null,"ALIQUOTE COSTO DI COSTRUZIONE PEEP",null,null,null,null,null,"AGGIORNAMENTO  21/10/2019","Abbattimenti previsti per le urbanizzazioni primarie e secondarie:\n1) costruzioni sostenibili prot. ITACA: -classe 3 -10%     -classe 4-5 -20%\n2) riqulificazioni e rigenerazione urbana edifici inseriti in piani e programmi complessi di edilizia pubblica e mista con destinazione residenziale  edifici prot. ITACA classe 3 -20%\n3) interventi in area a servizi e verde laddove si tratti di servizi, sportivi e di recupero del disagio sociale -50%"]
[null,null,null,null,null,null,"COEFFICIENTE DI INCREMENTO",1,null,null,null,null,null,null,null,null,null,null,"Tipologia di intervento edilizio"]
[null,null,null,null,null,null,null,null,null,null,null,null,"Destinazione di P.R.G.",null,null,"Norma NTA",null,null,null,"NUOVA COSTRUZIONE",null,null,null,null,"RISTRUTTURAZIONE \ncon\nDemolizione e ricostruzione",null,null,null,null,"RISTRUTTURAZIONE"]
[null,null,null,null,null,null,null,null,null,null,null,null,null,null,null,null,null,null,null,"N.C.",null,null,null,null,"D.R.",null,null,null,null,"R.R."]
["N.C. ",null,null,"D.R.",null,null,"R.R.",null,null,null,null,null,null,null,null,null,null,null,null,"(€/mq)",null,null,null,null,"(€/mq)",null,null,null,null,"(€/mq)"]
["UP","US",null,"UP","US",null,"UP","US",null,"Dest. PRG",null,null,null,null,null,null,null,null,null,"U.P.","U.S.",null,"TOT.",null,"U.P.","U.S.",null,"TOT.",null,"U.P.","U.S.",null,"TOT.",null,null,null,"NUOVE COSTRUZIONI"]
[]
[16.55,33.99,null,16.55,33.99,null,8.27,16.989999999999998,null,{"$f":"IF(O9<>\"\",M9&\" \"&N9&\" \"&O9,IF(N9<>\"\",M9&\" \"&N9,M9))","v":"Centro Storico A1"},null,null,"Centro Storico","A1",null,"Art. 45",null,null,null,{"$f":"ROUND(A9*$H$3,2)","v":16.55},{"$f":"ROUND(B9*$H$3,2)","v":33.99},null,{"$f":"T9+U9","v":50.540000000000006},null,{"$f":"ROUND(D9*$H$3,2)","v":16.55},{"$f":"ROUND(E9*$H$3,2)","v":33.99},null,{"$f":"Y9+Z9","v":50.540000000000006},null,{"$f":"ROUND(G9*$H$3,2)","v":8.27},{"$f":"ROUND(H9*$H$3,2)","v":16.989999999999998},null,{"$f":"AD9+AE9","v":25.259999999999998}]
[16.55,33.9,null,16.55,33.99,null,8.27,16.989999999999998,null,"Interesse Ambientale A2",null,null,"Interesse Ambientale","A2",null,"Art. 46",null,null,null,16.55,33.9,null,50.45,null,16.55,33.99,null,50.540000000000006,null,8.27,16.989999999999998,null,25.259999999999998,null,null,null,"Costruzioni residenziali","€/mq",0]
[14.89,30.59,null,13.24,27.19,null,9.93,20.39,null,"Completamento B1",null,null,"Completamento","B1",null,"Art. 47",null,null,null,14.89,30.59,null,45.480000000000004,null,13.24,27.19,null,40.43,null,9.93,20.39,null,30.32]
[16.510000000000002,30.59,null,14.68,27.19,null,11.01,20.39,null,"Completamento B2",null,null,"Completamento","B2",null,"Art. 47",null,null,null,16.510000000000002,30.59,null,47.1,null,14.68,27.19,null,41.870000000000005,null,11.01,20.39,null,31.4,null,null,null,"Costruzioni a carattere terziario, direzionale e commerciale, quando queste superino il 25% della superficie utile abitabile   (art. 9 D.M. 10/05/1977)"]
[22.18,30.59,null,19.71,27.19,null,14.79,20.39,null,"Completamento B3",null,null,"Completamento","B3",null,"Art. 48",null,null,null,22.18,30.59,null,52.769999999999996,null,19.71,27.19,null,46.900000000000006,null,14.79,20.39,null,35.18]
[25.99,30.59,null,23.11,27.19,null,17.329999999999998,20.39,null,"Completamento B4",null,null,"Completamento","B4",null,"Art. 48",null,null,null,25.99,30.59,null,56.58,null,23.11,27.19,null,50.3,null,17.329999999999998,20.39,null,37.72]
[51.57,30.59,null,45.84,27.19,null,34.380000000000003,20.39,null,"Completamento B5",null,null,"Completamento","B5",null,"Art. 48",null,null,null,51.57,30.59,null,82.16,null,45.84,27.19,null,73.03,null,34.380000000000003,20.39,null,54.77]
[14.89,30.59,null,13.24,27.19,null,9.93,20.39,null,"Rinnovamento urbano B6",null,null,"Rinnovamento urbano","B6",null,"Art. 49",null,null,null,14.89,30.59,null,45.480000000000004,null,13.24,27.19,null,40.43,null,9.93,20.39,null,30.32]
[14.89,30.59,null,13.24,27.19,null,9.93,20.39,null,"Rinnovamento urbano B7",null,null,"Rinnovamento urbano","B7",null,"Art. 49",null,null,null,14.89,30.59,null,45.480000000000004,null,13.24,27.19,null,40.43,null,9.93,20.39,null,30.32]
[44.03,30.59,null,39.14,27.19,null,29.35,20.39,null,"Rinnovamento urbano B8",null,null,"Rinnovamento urbano","B8",null,"Art. 49",null,null,null,44.03,30.59,null,74.62,null,39.14,27.19,null,66.33,null,29.35,20.39,null,49.74,null,null,null,"- Per la parte interrata","€/mq",0]
[14.89,30.59,null,13.24,27.19,null,9.93,20.39,null,"Rinn. urbano terz./direz. B9",null,null,"Rinn. urbano terz./direz.","B9",null,"Art. 50",null,null,null,14.89,30.59,null,45.480000000000004,null,13.24,27.19,null,40.43,null,9.93,20.39,null,30.32,null,null,null,"- Per la parte fuori terra","€/mq",0]
[]
[28.49,40.78,null,24.93,35.68,null,21.37,30.59,null,{"$f":"IF(O21<>\"\",M21&\" \"&N21&\" \"&O21,IF(N21<>\"\",M21&\" \"&N21,M21))","v":"Area di espansione C1 <   500 m."},null,null,"Area di espansione","C1","<   500 m.","Art. 51",null,null,null,{"$f":"ROUND(A21*$H$3,2)","v":28.49},40.78,null,{"$f":"T21+U21","v":69.27},null,{"$f":"ROUND(D21*$H$3,2)","v":24.93},35.68,null,{"$f":"Y21+Z21","v":60.61},null,{"$f":"ROUND(G21*$H$3,2)","v":21.37},30.59,null,{"$f":"AD21+AE21","v":51.96}]
[24.69,35.340000000000003,null,21.61,30.93,null,18.52,26.51,null,{"$f":"IF(O22<>\"\",M22&\" \"&N22&\" \"&O22,IF(N22<>\"\",M22&\" \"&N22,M22))","v":"Area di espansione C1 < 2000 m."},null,null,"Area di espansione","C1","< 2000 m.","Art. 51",null,null,null,24.69,35.340000000000003,null,{"$f":"T22+U22","v":60.03},null,21.61,30.93,null,{"$f":"Y22+Z22","v":52.54},null,18.52,26.51,null,{"$f":"AD22+AE22","v":45.03},null,null,null,"COSTRUZIONI ESISTENTI"]
[20.89,29.91,null,18.28,26.17,null,15.67,22.43,null,{"$f":"IF(O23<>\"\",M23&\" \"&N23&\" \"&O23,IF(N23<>\"\",M23&\" \"&N23,M23))","v":"Area di espansione C1 < 5000 m."},null,null,"Area di espansione","C1","< 5000 m.","Art. 51",null,null,null,20.89,29.91,null,{"$f":"T23+U23","v":50.8},null,18.28,26.17,null,{"$f":"Y23+Z23","v":44.45},null,15.67,22.43,null,{"$f":"AD23+AE23","v":38.1}]
[18.989999999999998,27.19,null,16.62,23.79,null,14.25,20.39,null,{"$f":"IF(O24<>\"\",M24&\" \"&N24&\" \"&O24,IF(N24<>\"\",M24&\" \"&N24,M24))","v":"Area di espansione C1 > 5000 m."},null,null,"Area di espansione","C1","> 5000 m.","Art. 51",null,null,null,18.989999999999998,27.19,null,{"$f":"T24+U24","v":46.18},null,16.62,23.79,null,{"$f":"Y24+Z24","v":40.409999999999997},null,14.25,20.39,null,{"$f":"AD24+AE24","v":34.64}]
[null,null,null,null,null,null,null,null,null,null,null,null,null,null,null,null,null,null,null,null,null,null,null,null,null,null,null,null,null,null,null,null,null,null,null,null,"Interventi complessi su edifici  residenziali o a carattere terziario,direzionale e commerciale che comprendono il rifacimento degli orizzontamenti, dell'impiantistica, delle murature e delle strutture anche in modo parziale"]
[37.130000000000003,40.78,null,32.479999999999997,35.68,null,27.84,30.59,null,{"$f":"IF(O26<>\"\",M26&\" \"&N26&\" \"&O26,IF(N26<>\"\",M26&\" \"&N26,M26))","v":"Area di espansione C2 <   500 m."},null,null,"Area di espansione","C2","<   500 m.","Art. 51",null,null,null,{"$f":"ROUND(A26*$H$3,2)","v":37.130000000000003},40.78,null,{"$f":"T26+U26","v":77.91},null,{"$f":"ROUND(D26*$H$3,2)","v":32.479999999999997},35.68,null,{"$f":"Y26+Z26","v":68.16},null,{"$f":"ROUND(G26*$H$3,2)","v":27.84},30.59,null,{"$f":"AD26+AE26","v":58.43}]
[32.18,35.340000000000003,null,28.15,30.93,null,24.13,26.51,null,{"$f":"IF(O27<>\"\",M27&\" \"&N27&\" \"&O27,IF(N27<>\"\",M27&\" \"&N27,M27))","v":"Area di espansione C2 < 2000 m."},null,null,"Area di espansione","C2","< 2000 m.","Art. 51",null,null,null,32.18,35.340000000000003,null,67.52000000000001,null,28.15,30.93,null,{"$f":"Y27+Z27","v":59.08},null,24.13,26.51,null,{"$f":"AD27+AE27","v":50.64}]
[27.23,29.91,null,23.82,26.17,null,20.420000000000002,22.43,null,{"$f":"IF(O28<>\"\",M28&\" \"&N28&\" \"&O28,IF(N28<>\"\",M28&\" \"&N28,M28))","v":"Area di espansione C2 < 5000 m."},null,null,"Area di espansione","C2","< 5000 m.","Art. 51",null,null,null,27.23,29.91,null,57.14,null,23.82,26.17,null,{"$f":"Y28+Z28","v":49.99},null,20.420000000000002,22.43,null,{"$f":"AD28+AE28","v":42.85}]
[24.75,27.19,null,21.66,23.79,null,18.559999999999999,20.39,null,{"$f":"IF(O29<>\"\",M29&\" \"&N29&\" \"&O29,IF(N29<>\"\",M29&\" \"&N29,M29))","v":"Area di espansione C2 > 5000 m."},null,null,"Area di espansione","C2","> 5000 m.","Art. 51",null,null,null,24.75,27.19,null,51.94,null,21.66,23.79,null,{"$f":"Y29+Z29","v":45.45},null,18.559999999999999,20.39,null,{"$f":"AD29+AE29","v":38.950000000000003}]
[null,null,null,null,null,null,null,null,null,null,null,null,null,null,null,null,null,null,null,null,null,null,0]
[58.71,40.78,null,51.37,35.68,null,44.03,30.59,null,{"$f":"IF(O31<>\"\",M31&\" \"&N31&\" \"&O31,IF(N31<>\"\",M31&\" \"&N31,M31))","v":"Area di espansione C3 <   500 m."},null,null,"Area di espansione","C3","<   500 m.","Art. 51",null,null,null,{"$f":"ROUND(A31*$H$3,2)","v":58.71},40.78,null,99.490000000000009,null,{"$f":"ROUND(D31*$H$3,2)","v":51.37},35.68,null,{"$f":"Y31+Z31","v":87.05},null,{"$f":"ROUND(G31*$H$3,2)","v":44.03},30.59,null,{"$f":"AD31+AE31","v":74.62}]
[50.88,35.340000000000003,null,44.52,30.93,null,38.159999999999997,26.51,null,{"$f":"IF(O32<>\"\",M32&\" \"&N32&\" \"&O32,IF(N32<>\"\",M32&\" \"&N32,M32))","v":"Area di espansione C3 < 2000 m."},null,null,"Area di espansione","C3","< 2000 m.","Art. 51",null,null,null,50.88,35.340000000000003,null,86.22,null,44.52,30.93,null,{"$f":"Y32+Z32","v":75.45},null,38.159999999999997,26.51,null,{"$f":"AD32+AE32","v":64.67}]
[43.05,29.91,null,37.67,26.17,null,32.29,22.43,null,{"$f":"IF(O33<>\"\",M33&\" \"&N33&\" \"&O33,IF(N33<>\"\",M33&\" \"&N33,M33))","v":"Area di espansione C3 < 5000 m."},null,null,"Area di espansione","C3","< 5000 m.","Art. 51",null,null,null,43.05,29.91,null,72.959999999999994,null,37.67,26.17,null,{"$f":"Y33+Z33","v":63.84},null,32.29,22.43,null,{"$f":"AD33+AE33","v":54.72},null,null,null,null,"€/mq",0]
[39.14,27.19,null,34.25,23.79,null,29.35,20.39,null,{"$f":"IF(O34<>\"\",M34&\" \"&N34&\" \"&O34,IF(N34<>\"\",M34&\" \"&N34,M34))","v":"Area di espansione C3 > 5000 m."},null,null,"Area di espansione","C3","> 5000 m.","Art. 51",null,null,null,39.14,27.19,null,66.33,null,34.25,23.79,null,{"$f":"Y34+Z34","v":58.04},null,29.35,20.39,null,{"$f":"AD34+AE34","v":49.74}]
[]
[19.86,40.78,null,17.38,35.68,null,14.89,30.59,null,{"$f":"IF(O36<>\"\",M36&\" \"&N36&\" \"&O36,IF(N36<>\"\",M36&\" \"&N36,M36))","v":"Terziario Direzionale TD <   500 m."},null,null,"Terziario Direzionale","TD","<   500 m.","Art. 39",null,null,null,{"$f":"ROUND(A36*$H$3,2)","v":19.86},40.78,null,{"$f":"T36+U36","v":60.64},null,{"$f":"ROUND(D36*$H$3,2)","v":17.38},35.68,null,{"$f":"Y36+Z36","v":53.06},null,{"$f":"ROUND(G36*$H$3,2)","v":14.89},30.59,null,{"$f":"AD36+AE36","v":45.480000000000004},null,null,null,"ristrutturazione con variazioni distributive, impiantistiche, oltre ad interventi riguardanti le finiture interne, senza interventi sulle strutture"]
[17.21,35.340000000000003,null,15.06,30.93,null,12.91,26.51,null,{"$f":"IF(O37<>\"\",M37&\" \"&N37&\" \"&O37,IF(N37<>\"\",M37&\" \"&N37,M37))","v":"Terziario Direzionale TD < 2000 m."},null,null,"Terziario Direzionale","TD","< 2000 m.","Art. 39",null,null,null,17.21,35.340000000000003,null,{"$f":"T37+U37","v":52.550000000000004},null,15.06,30.93,null,{"$f":"Y37+Z37","v":45.99},null,12.91,26.51,null,{"$f":"AD37+AE37","v":39.42}]
[14.56,29.91,null,12.74,26.17,null,10.92,22.43,null,{"$f":"IF(O38<>\"\",M38&\" \"&N38&\" \"&O38,IF(N38<>\"\",M38&\" \"&N38,M38))","v":"Terziario Direzionale TD < 5000 m."},null,null,"Terziario Direzionale","TD","< 5000 m.","Art. 39",null,null,null,14.56,29.91,null,{"$f":"T38+U38","v":44.47},null,12.74,26.17,null,{"$f":"Y38+Z38","v":38.910000000000004},null,10.92,22.43,null,{"$f":"AD38+AE38","v":33.35}]
[13.24,27.19,null,11.58,23.79,null,9.93,20.39,null,{"$f":"IF(O39<>\"\",M39&\" \"&N39&\" \"&O39,IF(N39<>\"\",M39&\" \"&N39,M39))","v":"Terziario Direzionale TD > 5000 m."},null,null,"Terziario Direzionale","TD","> 5000 m.","Art. 39",null,null,null,13.24,27.19,null,{"$f":"T39+U39","v":40.43},null,11.58,23.79,null,{"$f":"Y39+Z39","v":35.369999999999997},null,9.93,20.39,null,{"$f":"AD39+AE39","v":30.32}]
[]
[0,0,null,0,0,null,0,0,null,{"$f":"IF(O41<>\"\",M41&\" \"&N41&\" \"&O41,IF(N41<>\"\",M41&\" \"&N41,M41))","v":"Zone attività primarie A e B"},null,null,"Zone attività primarie","A e B",null,"Art. 34-35",null,null,null,null,null,null,null,null,null,null,null,null,null,null,null,null,null,null,null,null,null,"€/mq",0]
[0,0,null,0,0,null,0,0,null,"Servizi alla residenza",null,null,"Servizi alla residenza",null,null,"Da art.  52 a 57"]
[0,0,null,0,0,null,0,0,null,"Verde ed attrezz. carattere urbano e regionale",null,null,"Verde ed attrezz. carattere urbano e regionale",null,null,"Art. 31-32",null,null,null,null,null,null,null,null,null,null,null,null,null,null,null,null,null,null,null,null,"ristrutturazioni con adeguamento degli impianti, rifacimento degli intonaci e delle pavimentazioni, nonchè interventi riguardanti le finiture interne"]
[0,0,null,0,0,null,0,0,null,"Zone produttive",null,null,"Zone produttive",null,null,"Art. 33"]
[0,0,null,0,0,null,0,0,null,"Viabilità di piano e rispetto",null,null,"Viabilità di piano e rispetto",null,null,"Art. 27-28"]
[null,null,null,null,null,null,null,null,null,"Aree ferroviarie destinazione da PRG",null,null,"Aree ferroviarie destinazione da PRG",null,null,"Art. 29",null,null,null,"VEDI TAB. CONTRIBUTO DI COSTRUZIONE B2"]
[0,0,null,0,0,null,0,0,null,"Aree ferroviarie altre destinazioni",null,null,"Aree ferroviarie altre destinazioni",null,null,"Art. 29"]
[0,0,null,0,0,null,0,0,null,"Arenili e coste",null,null,"Arenili e coste",null,null,"Art. 30",null,null,null,null,null,null,null,null,null,null,null,null,null,null,null,null,null,null,null,null,null,"€/mq",0]
[null,null,null,null,null,null,null,null,null,"Zone ASI",null,null,"Zone ASI",null,null,null,null,null,null,"VEDI TAB. CONTRIBUTO DI COSTRUZIONE B1- B2 - B3 (SOLO URB. SECONDARIE)"]
[null,null,null,null,null,null,null,null,null,"Area di rispetto",null,null,"Area di rispetto",null,null,"Art. 25",null,null,null,"CALCOLATA IN FUNZIONE DELLE AREE CONTERMINI"]
[]
[]
[null,null,null,null,null,null,null,null,null,null,null,null,"ONERI URBANIZZAZIONE","aggiornati con determina dirigenziale n. 00039 del 10/09/2019",null,null,null,null,null,null,null,null,"e","deliberazione consiglio comunale n. 00073 del 21/10/2019"]
[null,null,null,null,null,null,null,null,null,null,null,null,"COSTO DI COSTRUZIONE","aggiornato con determina dirigenziale n. 10041 del 08/09/2017"]

{"sheet":"Tabella B1 -B2 - B3","index":5,"n_rows":41,"n_cols":41,"rows_kept":41,"cut":false,"hidden":true,"merged":[[1,14,2,18],[1,20,1,40],[2,20,2,40],[3,15,6,17],[3,21,3,24],[3,26,3,29],[5,21,5,24],[5,26,5,29],[5,31,5,34],[5,36,5,39],[3,31,3,34],[3,36,3,39],[4,21,4,24],[4,26,4,29],[4,31,4,34],[4,36,4,39],[13,14,14,18],[13,20,13,40],[14,20,14,40],[15,15,18,17],[15,21,15,24],[15,26,15,29],[17,21,17,24],[17,26,17,29],[17,31,17,34],[17,36,17,39],[15,31,15,34],[15,36,15,39],[16,21,16,24],[16,26,16,29],[16,31,16,34],[16,36,16,39],[29,21,29,24],[29,26,29,29],[29,31,29,34],[46,42,52,44],[25,14,26,18],[25,20,25,35],[26,20,26,35],[27,15,30,17],[27,21,27,24],[27,26,27,29],[27,31,27,34],[28,21,28,24],[28,26,28,29],[28,31,28,34]]}
[null,null,null,null,null,null,null,null,null,null,null,null,1,2,3,4,5,6,7,8,9,10,11,12,13,14,15,16,17,18,19,20,21,22,23,24,25,26,27,28,29]
[null,null,null,null,null,null,null,null,null,null,null,null,null,null,"TABELLA CONTRIBUTO DI COSTRUZIONE B1",null,null,null,null,null,"ALIQUOTE URBANIZZAZIONI"]
[null,null,null,null,null,null,null,null,null,"COEFFICIENTE DI INCREMENTO",1,null,null,null,null,null,null,null,null,null,"Industrie per il trasferimento di prodotti agricoli, zootecniche, artigianato"]
[null,null,null,null,null,null,null,null,null,null,null,null,"RIFERIMENTO",null,null,"Destinazione di P.R.G.",null,null,null,null,null,"NR. DIPENDENTI",null,null,null,null,"NR. DIPENDENTI",null,null,null,null,"NR. DIPENDENTI",null,null,null,null,"NR. DIPENDENTI"]
[null,null,null,null,null,null,null,null,null,null,null,null,null,null,null,null,null,null,null,null,null,"da 1 a 10",null,null,null,null,"da 11 a 50",null,null,null,null,"da 51 a 200",null,null,null,null,"da 201 a 1000"]
["DA 1 A 10",null,null,"DA 11  A 50",null,null,"DA 51 A 200",null,null,"DA 201  A 1000",null,null,null,null,null,null,null,null,null,null,null,"(€/mq)",null,null,null,null,"(€/mq)",null,null,null,null,"(€/mq)",null,null,null,null,"(€/mq)"]
["UP","US",null,"UP","US",null,"UP","US",null,"UP","US",null,null,null,null,null,null,null,null,null,null,"U.P.","U.S.",null,"TOT.",null,"U.P.","U.S.",null,"TOT.",null,"U.P.","U.S.",null,"TOT.",null,"U.P.","U.S.",null,"TOT."]
[]
[2.04,1.02,null,2.39,1.02,null,2.69,1.02,null,2.92,1.02,null,{"$f":"$U$3&\" - \"&P9","v":"Industrie per il trasferimento di prodotti agricoli, zootecniche, artigianato - Ampliamenti"},null,null,"Ampliamenti",null,null,null,null,null,{"$f":"ROUND(A9*$K$3,2)","v":2.04},1.02,null,{"$f":"V9+W9","v":3.06},null,{"$f":"ROUND(D9*$K$3,2)","v":2.39},1.02,null,{"$f":"AA9+AB9","v":3.41},null,{"$f":"ROUND(G9*$K$3,2)","v":2.69},1.02,null,{"$f":"AF9+AG9","v":3.71},null,{"$f":"ROUND(J9*$K$3,2)","v":2.92},1.02,null,{"$f":"AK9+AL9","v":3.94}]
[3.07,1.53,null,3.59,1.53,null,4.03,1.53,null,4.38,1.53,null,{"$f":"$U$3&\" - \"&P10","v":"Industrie per il trasferimento di prodotti agricoli, zootecniche, artigianato - Nuovi insediamenti"},null,null,"Nuovi insediamenti",null,null,null,null,null,3.07,1.53,null,{"$f":"V10+W10","v":4.5999999999999996},null,3.59,1.53,null,{"$f":"AA10+AB10","v":5.12},null,4.03,1.53,null,{"$f":"AF10+AG10","v":5.5600000000000005},null,4.38,1.53,null,{"$f":"AK10+AL10","v":5.91}]
[2.04,1.02,null,2.39,1.02,null,2.69,1.02,null,2.92,1.02,null,{"$f":"$U$3&\" - \"&P11","v":"Industrie per il trasferimento di prodotti agricoli, zootecniche, artigianato - Nuovi insediamenti PP"},null,null,"Nuovi insediamenti PP",null,null,null,null,null,2.04,1.02,null,{"$f":"V11+W11","v":3.06},null,2.39,1.02,null,{"$f":"AA11+AB11","v":3.41},null,2.69,1.02,null,{"$f":"AF11+AG11","v":3.71},null,2.92,1.02,null,{"$f":"AK11+AL11","v":3.94}]
[]
[]
[null,null,null,null,null,null,null,null,null,null,null,null,null,null,"TABELLA CONTRIBUTO DI COSTRUZIONE B2",null,null,null,null,null,"ALIQUOTE URBANIZZAZIONI"]
[null,null,null,null,null,null,null,null,null,"COEFFICIENTE DI INCREMENTO",1,null,null,null,null,null,null,null,null,null,"Industrie non comprese nella tabella B1 - Aree ferroviarie, portuali, aeroportuali"]
[null,null,null,null,null,null,null,null,null,null,null,null,null,null,null,"Destinazione di P.R.G.",null,null,null,null,null,"NR. DIPENDENTI",null,null,null,null,"NR. DIPENDENTI",null,null,null,null,"NR. DIPENDENTI",null,null,null,null,"NR. DIPENDENTI"]
[null,null,null,null,null,null,null,null,null,null,null,null,null,null,null,null,null,null,null,null,null,"da 1 a 10",null,null,null,null,"da 11 a 50",null,null,null,null,"da 51 a 200",null,null,null,null,"da 201 a 1000"]
["DA 1 A 10",null,null,"DA 11  A 50",null,null,"DA 51 A 200",null,null,"DA 201  A 1000",null,null,null,null,null,null,null,null,null,null,null,"(€/mq)",null,null,null,null,"(€/mq)",null,null,null,null,"(€/mq)",null,null,null,null,"(€/mq)"]
["UP","US",null,"UP","US",null,"UP","US",null,"UP","US",null,null,null,null,null,null,null,null,null,null,"U.P.","U.S.",null,"TOT.",null,"U.P.","U.S.",null,"TOT.",null,"U.P.","U.S.",null,"TOT.",null,"U.P.","U.S.",null,"TOT."]
[]
[6.13,3.07,null,7.18,3.07,null,8.06,3.07,null,8.76,3.07,null,{"$f":"$U$15&\" - \"&P21","v":"Industrie non comprese nella tabella B1 - Aree ferroviarie, portuali, aeroportuali - Ampliamenti"},null,null,"Ampliamenti",null,null,null,null,null,{"$f":"ROUND(A21*$K$3,2)","v":6.13},3.07,null,{"$f":"V21+W21","v":9.1999999999999993},null,{"$f":"ROUND(D21*$K$3,2)","v":7.18},3.07,null,{"$f":"AA21+AB21","v":10.25},null,{"$f":"ROUND(G21*$K$3,2)","v":8.06},3.07,null,{"$f":"AF21+AG21","v":11.13},null,{"$f":"ROUND(J21*$K$3,2)","v":8.76},3.07,null,{"$f":"AK21+AL21","v":11.83}]
[9.1999999999999993,4.5999999999999996,null,10.78,4.5999999999999996,null,12.09,4.5999999999999996,null,13.14,4.0599999999999996,null,{"$f":"$U$15&\" - \"&P22","v":"Industrie non comprese nella tabella B1 - Aree ferroviarie, portuali, aeroportuali - Nuovi insediamenti"},null,null,"Nuovi insediamenti",null,null,null,null,null,9.1999999999999993,4.5999999999999996,null,{"$f":"V22+W22","v":13.799999999999999},null,10.78,4.5999999999999996,null,{"$f":"AA22+AB22","v":15.379999999999999},null,12.09,4.5999999999999996,null,{"$f":"AF22+AG22","v":16.689999999999998},null,13.14,4.0599999999999996,null,{"$f":"AK22+AL22","v":17.2}]
[8.18,4.09,null,9.58,4.09,null,10.75,4.09,null,11.68,4.09,null,{"$f":"$U$15&\" - \"&P23","v":"Industrie non comprese nella tabella B1 - Aree ferroviarie, portuali, aeroportuali - Nuovi insediamenti PP"},null,null,"Nuovi insediamenti PP",null,null,null,null,null,8.18,4.09,null,{"$f":"V23+W23","v":12.27},null,9.58,4.09,null,{"$f":"AA23+AB23","v":13.67},null,10.75,4.09,null,{"$f":"AF23+AG23","v":14.84},null,11.68,4.09,null,{"$f":"AK23+AL23","v":15.77}]
[]
[]
[null,null,null,null,null,null,null,null,null,null,null,null,null,null,"TABELLA CONTRIBUTO DI COSTRUZIONE B3",null,null,null,null,null,"ALIQUOTE URBANIZZAZIONI"]
[null,null,null,null,null,null,null,null,null,"COEFFICIENTE DI INCREMENTO",1,null,null,null,null,null,null,null,null,null,"Consorzi ASI - Insediamenti commerciali e direzionali"]
[null,null,null,null,null,null,null,null,null,null,null,null,null,null,null,"Articoli NTA PUE ASI",null,null,null,null,null,"NUOVA COSTRUZIONE",null,null,null,null,"RISTRUTTURAZIONE \ncon\nDemolizione e ricostruzione",null,null,null,null,"RISTRUTTURAZIONE"]
[null,null,null,null,null,null,null,null,null,null,null,null,null,null,null,null,null,null,null,null,null,"N.C.",null,null,null,null,"D.R.",null,null,null,null,"R.R."]
["N.C. ",null,null,"N.C. ",null,null,"D.R.",null,null,null,null,null,null,null,null,null,null,null,null,null,null,"(€/mq)",null,null,null,null,"(€/mq)",null,null,null,null,"(€/mq)"]
["UP","US",null,"UP","US",null,"UP","US",null,null,null,null,null,null,null,null,null,null,null,null,null,"U.P.","U.S.",null,"TOT.",null,"U.P.","U.S.",null,"TOT.",null,"U.P.","U.S.",null,"TOT."]
[]
[29.57,40.78,null,26.28,36.25,null,19.71,27.19,null,null,null,null,{"$f":"$U$27&\" - \"&P33","v":"Consorzi ASI - Insediamenti commerciali e direzionali - Articolo 9.1"},null,null,"Articolo 9.1",null,null,null,null,null,{"$f":"ROUND(A33*$K$3,2)","v":29.57},40.78,null,{"$f":"V33+W33","v":70.349999999999994},null,{"$f":"ROUND(D33*$K$3,2)","v":26.28},36.25,null,{"$f":"AA33+AB33","v":62.53},null,{"$f":"ROUND(G33*$K$3,2)","v":19.71},27.19,null,{"$f":"AF33+AG33","v":46.900000000000006}]
[29.57,40.78,null,26.28,36.25,null,19.71,27.19,null,null,null,null,{"$f":"$U$27&\" - \"&P34","v":"Consorzi ASI - Insediamenti commerciali e direzionali - Articolo 9.11"},null,null,"Articolo 9.11",null,null,null,null,null,29.57,40.78,null,{"$f":"V34+W34","v":70.349999999999994},null,26.28,36.25,null,{"$f":"AA34+AB34","v":62.53},null,19.71,27.19,null,{"$f":"AF34+AG34","v":46.900000000000006}]
[29.57,40.78,null,26.28,36.25,null,19.71,27.19,null,null,null,null,{"$f":"$U$27&\" - \"&P35","v":"Consorzi ASI - Insediamenti commerciali e direzionali - Articolo 9.2 - 9.3"},null,null,"Articolo 9.2 - 9.3",null,null,null,null,null,29.57,40.78,null,{"$f":"V35+W35","v":70.349999999999994},null,26.28,36.25,null,{"$f":"AA35+AB35","v":62.53},null,19.71,27.19,null,{"$f":"AF35+AG35","v":46.900000000000006}]
[29.57,40.78,null,26.28,36.25,null,19.71,27.19,null,null,null,null,{"$f":"$U$27&\" - \"&P36","v":"Consorzi ASI - Insediamenti commerciali e direzionali - Articolo 10.3"},null,null,"Articolo 10.3",null,null,null,null,null,29.57,40.78,null,{"$f":"V36+W36","v":70.349999999999994},null,26.28,36.25,null,{"$f":"AA36+AB36","v":62.53},null,19.71,27.19,null,{"$f":"AF36+AG36","v":46.900000000000006}]
[29.57,40.78,null,26.28,36.25,null,19.71,27.19,null,null,null,null,{"$f":"$U$27&\" - \"&P37","v":"Consorzi ASI - Insediamenti commerciali e direzionali - Articolo 12"},null,null,"Articolo 12",null,null,null,null,null,29.57,40.78,null,{"$f":"V37+W37","v":70.349999999999994},null,26.28,36.25,null,{"$f":"AA37+AB37","v":62.53},null,19.71,27.19,null,{"$f":"AF37+AG37","v":46.900000000000006}]
[]
[]
[null,null,null,null,null,null,null,null,null,null,null,null,null,null,null,"ONERI URBANIZZAZIONE","aggiornati con determina dirigenziale n. 00039 del 10/09/2019",null,null,null,null,null,null,null,"e","deliberazione consiglio comunale n. 00073 del 21/10/2019"]
[null,null,null,null,null,null,null,null,null,null,null,null,null,null,null,"COSTO DI COSTRUZIONE","aggiornato con determina dirigenziale n. 10041 del 08/09/2017"]

{"sheet":"Tabella Standard","index":6,"n_rows":38,"n_cols":7,"rows_kept":38,"cut":false,"hidden":true,"merged":[]}
[]
[null,null,"ZONA","DESCRIZIONE DELLA TIPIZZAZZIONE","Indice di fabbricabilità","Piano casa"]
[null,null,null,null,null,"valore"]
[null,null,null,null,"mc/mq","€ mq"]
["Centro Storico A1",null,"A1","Centro storico",null,{"$f":"F10","v":375},"NELLA TABELLA L'IMPORTO NON INSERITO IN DELIBERA E' STATO ASSIMILATO A ZONA B4 (info da J.Pavone il 20/12/2021)"]
["Interesse Ambientale A2",null,"A2","Area di interesse ambientale",3,{"$f":"F10","v":375},{"$f":"G5","v":"NELLA TABELLA L'IMPORTO NON INSERITO IN DELIBERA E' STATO ASSIMILATO A ZONA B4 (info da J.Pavone il 20/12/2021)"}]
["Completamento B1",null,"B1","Area di completamento",7,1750]
["Completamento B2",null,"B2","Area di completamento",5,1162.5]
["Completamento B3",null,"B3","Area di completamento",3,562.5]
["Completamento B4",null,"B4","Area di completamento",2,375]
["Completamento B5",null,"B5","Area di completamento",0.5,93.75]
["Rinnovamento urbano B6",null,"B6","Area di rinnovo urbano",5,775]
["Rinnovamento urbano B7",null,"B7","Area di rinnovo urbano",3,465]
[]
["Rinnovamento urbano B8",null,"B8","Area di rinnovamento urbano",0.5,65]
["Rinn. urbano terz./direz. B9",null,"B9","Area di rinnovamento urbano terziario-direzionale",7,1085]
["Area di espansione C1",null,"C1","Area di espansione",1.75,157.5]
["Area di espansione C2",null,"C2","Area di espansione",1,90]
["Area di espansione C3",null,"C3","Area di espansione",0.5,45]
[{"$f":"D20&\" \"&C20","v":"Area per attrezzature di servizio pubblico a carattere regionale o urbano - attrezzature sportive D/A"},"AS","D/A","Area per attrezzature di servizio pubblico a carattere regionale o urbano - attrezzature sportive",0.5,22.5]
[{"$f":"D21&\" \"&C21","v":"Area per attrezzature di servizio pubblico a carattere regionale o urbano - attrezzature scolastiche digrado superiore D/B"},"AS","D/B","Area per attrezzature di servizio pubblico a carattere regionale o urbano - attrezzature scolastiche digrado superiore",2,90]
[{"$f":"D22&\" \"&C22","v":"Area per attrezzature di servizio pubblico a carattere regionale o urbano - attrezzature universitarie statali D/C"},"AS","D/C","Area per attrezzature di servizio pubblico a carattere regionale o urbano - attrezzature universitarie statali",2,90]
[]
[{"$f":"D24&\" \"&C24","v":"Area per attrezzature di servizio pubblico a carattere regionale o urbano - attrezzature universitarie sanitarie e ospedaliere D/D"},"AS","D/D","Area per attrezzature di servizio pubblico a carattere regionale o urbano - attrezzature universitarie sanitarie e ospedaliere",3,135]
["Area per attrezzature di servizio pubblico a carattere regionale o urbano - attrezzature a carattere fieristico D/E","AS","D/E","Area per attrezzature di servizio pubblico a carattere regionale o urbano - attrezzature a carattere fieristico",2,90]
["Area per attrezzature di servizio pubblico a carattere regionale o urbano - attrezzature tecnologiche D/F","AS","D/F","Area per attrezzature di servizio pubblico a carattere regionale o urbano - attrezzature tecnologiche",null,"INS. TARIFFA"]
["Area per attrezzature diservizio pubblico a carattere regionale o urbano - aree cimiteriali D/G","AS","D/G","Area per attrezzature diservizio pubblico a carattere regionale o urbano - aree cimiteriali",null,"INS. TARIFFA"]
["Area per attrezzature di servizio pubblico a carattere regionale o urbano - aree di espansione e sviluppo servizi regionali D/H","AS","D/H","Area per attrezzature di servizio pubblico a carattere regionale o urbano - aree di espansione e sviluppo servizi regionali",2,90]
["Area per attrezzature di servizio pubblico a carattere regionale o urbano - sedi ed attrezzature militari D/I","AS","D/I","Area per attrezzature di servizio pubblico a carattere regionale o urbano - sedi ed attrezzature militari",null,"INS. TARIFFA"]
[]
[{"$f":"D31&\" \"&C31","v":"Area per attrezzature di servizio pubblico a carattere regionale o urbano - sedi ed attrezzature per il culto D/L"},"AS","D/L","Area per attrezzature di servizio pubblico a carattere regionale o urbano - sedi ed attrezzature per il culto",2,90]
["Servizi per la residenza - asili nido, scuole materne e dell'obbligo D/M","AS","D/M","Servizi per la residenza - asili nido, scuole materne e dell'obbligo",2,110]
["Servizi per la residenza - chiese ed opere parrocchiali - centri civici e sociali - sanitari - amministrativi per pubblici servizi D/N","AS","D/N","Servizi per la residenza - chiese ed opere parrocchiali - centri civici e sociali - sanitari - amministrativi per pubblici servizi",2,110]
["Attività secondarie tipo \"A\"- attività produttive industriali E/A",null,"E/A","Attività secondarie tipo \"A\"- attività produttive industriali",null,86.25]
["Attività secondarie tipo \"B\" - artigianato, deposito, attività annonarie e simili E/B",null,"E/B","Attività secondarie tipo \"B\" - artigianato, deposito, attività annonarie e simili",2.5,93.75]
["Attività secondarie tipo \"C\" - relative ad attività a carattere annonario E/C",null,"E/C","Attività secondarie tipo \"C\" - relative ad attività a carattere annonario",2,75]
["Zone per attività terziarie e livello urbano e metropolitano F",null,"F","Zone per attività terziarie e livello urbano e metropolitano",5,625]
["Inserimento manuale tariffa (da usare nel caso di media di piu' zone)","AS",null,null,null,{"$f":"'INSERIMENTO DATI'!F85","v":0}]

{"sheet":"PROSP. RIEP. PER VARIANTE","index":7,"n_rows":104,"n_cols":24,"rows_kept":104,"cut":false,"hidden":true,"merged":[[54,5,55,7],[56,5,57,7],[96,5,96,7],[97,5,97,7],[95,5,95,7],[73,1,73,16],[74,1,74,16],[59,1,59,16],[60,1,60,16],[61,1,61,16],[69,5,70,7],[66,5,66,7],[67,5,68,7],[63,7,63,15],[105,1,105,17],[90,7,90,15],[100,7,100,15],[75,1,75,16],[77,7,77,15],[88,1,88,16],[83,5,84,7],[85,5,86,7],[81,5,82,7],[80,5,80,7],[1,4,1,20],[1,1,1,2],[3,1,3,2],[5,1,5,2],[7,1,7,2],[3,17,3,20],[42,12,42,20],[23,12,23,17],[32,12,32,17],[36,12,36,17],[9,1,9,2],[9,4,9,9],[11,1,11,2],[13,1,13,2],[13,4,13,17],[15,1,15,2],[17,1,17,2],[21,1,21,9],[53,5,53,7],[30,1,30,9],[42,1,42,9],[24,1,24,2],[27,1,27,2],[26,1,26,3]]}
[]
[null,null,null,null,"PROSPETTO DI AUTOCALCOLO PER LA DETERMINAZIONE DEL CONTRIBUTO DI COSTRUZIONE PER VARIANTE"]
[]
[null,"Pratica edil. attuale in var.",null,null,{"$f":"'PROSPETTO DI RIEPILOGO'!$E$4","v":""},null,null,null,null,null,null,null,null,"Pratica edilizia precedente"]
[]
[null,"Beneficiario",null,null,{"$f":"'PROSPETTO DI RIEPILOGO'!$E$6","v":""}]
[]
[null,"Ubicazione ",null,null,{"$f":"'PROSPETTO DI RIEPILOGO'!$E$8","v":""}]
[]
[null,"Destinazione di P.R.G.",null,null,{"$f":"'PROSPETTO DI RIEPILOGO'!$E$10","v":"Centro Storico A1"},null,null,null,null,null,null,null,null,null,null,null,null,null,"Norma da N.T.A.",null,{"$f":"'PROSPETTO DI RIEPILOGO'!$P$10","v":"Art. 45"}]
[]
[null,{"$f":"'PROSPETTO DI RIEPILOGO'!$B$12","v":""},null,null,{"$f":"'PROSPETTO DI RIEPILOGO'!$E$12","v":""}]
[]
[null,{"$f":"'PROSPETTO DI RIEPILOGO'!$B$14","v":""},null,null,{"$f":"'PROSPETTO DI RIEPILOGO'!$E$14","v":" - "}]
[]
[null,{"$f":"'PROSPETTO DI RIEPILOGO'!$B$16","v":""},null,null,{"$f":"'PROSPETTO DI RIEPILOGO'!$E$16","v":""}]
[]
[null,{"$f":"'PROSPETTO DI RIEPILOGO'!$B$18","v":""},null,null,{"$f":"'PROSPETTO DI RIEPILOGO'!$E$18","v":""}]
[]
[]
[]
[null,"SUPERFICI RESIDENZIALI E RELATIVI SERVIZI ED ACCESSORI \n(ADOPERATI PER IL CALCOLO NEL PREC. TITOLO EDILIZIO)",null,null,null,null,null,null,null,null,null,null,"SUP. URBANIZZAZIONI ADOPERATE PER IL CALCOLO NEL PREC. TITOLO EDILIZIO"]
[]
[null,"Su (Sup. Utile Abitabile)",null,null,{"$f":"\"Su di progetto                   \"&TEXT(SUM(E25),\"#.##0,00\")&\" mq\"","v":"Su di progetto                   0,00 mq"},null,null,{"$f":"\"Su esistente                   \"&TEXT(SUM(H25:H25),\"#.##0,00\")&\" mq\"","v":"Su esistente                   0,00 mq"},null,null,null,null,"Su (Sup. Utile Abitabile) + 50% Snr (Sup. non resid.) + \nSl (Sup. Lorda non Resid.) + 50% Sa (Superficie Access.)",null,null,null,null,null,{"$f":"\"Sup. di progetto                   \"&TEXT(SUM(S25:S26),\"#.##0,00\")&\" mq\"","v":"Sup. di progetto                   0,00 mq"}]
[null,"A. Unità immobiliari",null,"=",null,"mq",null,null,"mq",null,null,null,"Sup. di calcolo per Nuova Costruzione",null,null,null,null,null,null,"mq",null,null,null,1]
[null,null,null,null,null,null,null,null,null,null,null,null,"Sup. di calcolo per Demolizione e Ricostruzione",null,null,null,null,null,null,"mq"]
[null,"Snr (Sup. non resid.)",null,null,{"$f":"\"Snr di progetto                   \"&TEXT(SUM(E28:E28),\"#.##0,00\")&\" mq\"","v":"Snr di progetto                   0,00 mq"},null,null,{"$f":"\"Snr esistente                   \"&TEXT(SUM(H28:H28),\"#.##0,00\")&\" mq\"","v":"Snr esistente                   0,00 mq"}]
[null,"A. + B. + C. + D. + E.",null,"=",null,"mq",null,null,"mq"]
[]
[]
[null,"SUPERFICI PER ATTIVITÀ TURISTICHE, COMMERCIALI, TERZIARIO DIREZIONALE, PRODUTTIVO E RELATIVI ACCESSORI \n(ADOPERATI PER IL CALCOLO NEL PREC. TITOLO EDILIZIO)",null,null,null,null,null,null,null,null,null,null,"SUP. COSTO DI COSTR. ADOPERATE PER IL CALCOLO NEL PREC. TITOLO EDILIZIO"]
[]
[null,"Sl (Sup. Lorda non Resid.)",null,null,{"$f":"\"Sl di progetto               \"&TEXT(SUM(E34:E35),\"#.##0,00\")&\" mq\"","v":"Sl di progetto               0,00 mq"},null,null,{"$f":"\"Sl esistente                 \"&TEXT(SUM(H34:H35),\"#.##0,00\")&\" mq\"","v":"Sl esistente                 0,00 mq"},null,null,null,null,"Su (Sup. Utile Abitabile) + 60% Snr (Sup. non resid.)",null,null,null,null,null,{"$f":"\"Sup. di progetto                   \"&TEXT(SUM(S34),\"#.##0,00\")&\" mq\"","v":"Sup. di progetto                   0,00 mq"}]
[null,"A. Fuori terra",null,"=",null,"mq",null,null,"mq",null,null,null,"Superficie di calcolo",null,null,null,null,null,null,"mq"]
[null,"B. Interrata",null,"=",null,"mq",null,null,"mq"]
[]
[null,"Sa (Superficie Access.)",null,null,{"$f":"\"Sa di progetto               \"&TEXT(SUM(E38:E39),\"#.##0,00\")&\" mq\"","v":"Sa di progetto               0,00 mq"},null,null,{"$f":"\"Sa esistente                 \"&TEXT(SUM(H38:H39),\"#.##0,00\")&\" mq\"","v":"Sa esistente                 0,00 mq"},null,null,null,null,"Sl (Sup. Lorda non Resid.) + 60% Sa (Superficie Access.)",null,null,null,null,null,{"$f":"\"Sup. di progetto                   \"&TEXT(SUM(S38:S39),\"#.##0,00\")&\" mq\"","v":"Sup. di progetto                   0,00 mq"}]
[null,"A. + C Fuori terra",null,"=",null,"mq",null,null,"mq",null,null,null,"Superficie di calcolo Fuori terra",null,null,null,null,null,null,"mq"]
[null,"B. + D. Interrata",null,"=",null,"mq",null,null,"mq",null,null,null,"Superficie di calcolo Interrata",null,null,null,null,null,null,"mq"]
[]
[]
[]
[null,"DATI PER IL CALCOLO DEL COSTO DI COSTRUZIONE \n(DA ULTIMO CALCOLO)",null,null,null,null,null,null,null,null,null,null,"DATI PER IL CALCOLO DELLA MONETIZZAZIONE DEGLI STANDARD URBANISTICI \n(ADOPERATI NEL PREC. TITOLO EDILIZIO)"]
[null,"Magg. in % per CC ultimo titolo edilizio da applicare",null,null,null,null,null,null,"%",null,null,null,"Superficie monetizzata degli standard titolo originario",null,null,null,null,null,null,"mq"]
[]
[null,"Coeff. Comm/Terz/Direz ultimo titolo ed. da applicare",null,null,null,null,null,null,"%",null,null,null,"Superficie monetizzata parcheggi titolo originario",null,null,null,null,null,null,"mq"]
[]
[null,null,null,null,"Protocollo Itaca del precedente titolo edilizio"]
[null,null,null,null,"Abbatt. del 20% per edilizia residenziale inserita in piani e programmi di iniziativa pubblica e mista e ristrutturazione urbanistica con realizz. in classe 3 del protocollo itaca"]
[null,null,null,null,"Abbatt. del 20% al fine di agevolare gli interenti di rigen. urbana, di ristrutt. e di recupero e riuso degli immobili dismessi o in dismissione - art.17 c.4bis DPR 380/01"]
[null,null,null,null,"Abbattimento del 50% delle tariffe delle zone B3 per aree servizi ed a verde per servizi culturali, sportivi e di recupero del disagio sociale"]
[]
[]
[null,"A - urbanizzazioni primarie",null,null,null,"Tipo intervento edilizio",null,null,"% Appl.","Superficie  Precedente\n(mq)",null,"Aliquota attuale (€/mq)",null,null,null,null,null,"Totale Precedente attualizzato\n( € )","Totale Attuale\n\n( € )",null,"Totale sola variante\n\n( € )"]
[null,"Su/Sl (Superficie Utile/Lorda)",null,null,null,{"$f":"'PROSPETTO DI RIEPILOGO'!$F$22","v":"Nuova Costruzione"},null,null,1,{"$f":"IF(AND(E25=0,S25=0),0,((E25+E34+E35)-(H25+H34+H35))+S25)","v":0},"x",{"$f":"'PROSPETTO DI RIEPILOGO'!$J$22","v":22.06},null,null,null,null,"=",{"$f":"(IF(J55<>\"\",(I55*J55*L55),0))","v":0},{"$f":"'PROSPETTO DI RIEPILOGO'!$P$22","v":22.06},null,{"$f":"S55-R55","v":22.06}]
[null,"Snr/Sa (Superficie non residenziale/Accessoria)",null,null,null,null,null,null,0.5,{"$f":"IF(E28=0,0,(E28+E38+E39)-(H28+H38+H39))","v":0},"x",{"$f":"IF('PROSPETTO DI RIEPILOGO'!$J$23=0,L55,'PROSPETTO DI RIEPILOGO'!$J$23)","v":22.06},null,null,null,null,"=",{"$f":"(IF(J56<>\"\",(I56*J56*L56),0))","v":0},{"$f":"'PROSPETTO DI RIEPILOGO'!$P$23+'PROSPETTO DI RIEPILOGO'!$P$24+'PROSPETTO DI RIEPILOGO'!$P$25","v":0},null,{"$f":"S56-R56","v":0}]
[null,"Su/Sl (Superficie Utile/Lorda)",null,null,null,{"$f":"'PROSPETTO DI RIEPILOGO'!$F$26","v":"Demol. e Ricostruzione"},null,null,1,{"$f":"(H25+H34+H35)+S26","v":0},"x",{"$f":"'PROSPETTO DI RIEPILOGO'!$J$26","v":0},null,null,null,null,"=",{"$f":"(IF(J57<>\"\",(I57*J57*L57),0))","v":0},{"$f":"'PROSPETTO DI RIEPILOGO'!$P$26","v":0},null,0]
[null,"Snr/Sa (Superficie non residenziale/Accessoria)",null,null,null,null,null,null,0.5,{"$f":"H28+H38+H39","v":0},"x",{"$f":"IF('PROSPETTO DI RIEPILOGO'!$J$27=0,L57,'PROSPETTO DI RIEPILOGO'!$J$27)","v":0},null,null,null,null,"=",{"$f":"(IF(J58<>\"\",(I58*J58*L58),0))","v":0},{"$f":"'PROSPETTO DI RIEPILOGO'!$P$27+'PROSPETTO DI RIEPILOGO'!$P$28+'PROSPETTO DI RIEPILOGO'!$P$29","v":0},null,0]
[null,"SUBTOTALE A - urbanizzazioni primarie",null,null,null,null,null,null,null,null,null,null,null,null,null,null,null,{"$f":"ROUND(SUM(R55:R58),0)","v":0},{"$f":"ROUND(SUM(S55:S58),0)","v":22},null,{"$f":"ROUND(SUM(U55:U58),0)","v":22}]
[null,"ABBATTIMENTO DEL 20% (edilizia residenziale inserita in piani e progr. di iniziativa pubblica e mista e ristrutt. urbanistica con realizz. in cl. 3 del prot. itaca)",null,null,null,null,null,null,null,null,null,null,null,null,null,null,null,null,{"$f":"'PROSPETTO DI RIEPILOGO'!P33","v":0},null,{"$f":"S60-R60","v":0}]
[null,"ABBATTIMENTO DEL 20% da art.17 c.4bis DPR 380/01 (applicato solo su superfici aggiuntive rispetto a quelle già assentite)",null,null,null,null,null,null,null,null,null,null,null,null,null,null,null,null,null,null,{"$f":"IF('INSERIMENTO DATI'!R43=TRUE,ROUND((U59*0.2),0),0)","v":0}]
[null,"ABBATTIMENTO DEL 50% (delle tariffe delle zone b3 per aree servizi ed a verde per servizi culturali, sportivi e di recupero del disagio sociale)",null,null,null,null,null,null,null,null,null,null,null,null,null,null,null,null,{"$f":"'PROSPETTO DI RIEPILOGO'!P35","v":0},null,{"$f":"S62-R62","v":0}]
[null,"EVENTUALI ONERI GIA' VERSATI (Necessario allegare attestazioni di pagamento a comprova)",null,null,null,null,null,null,null,null,null,null,null,null,null,null,null,null,{"$f":"'PROSPETTO DI RIEPILOGO'!P36","v":0},null,{"$f":"S63-R63","v":0}]
[null,"EVENTUALI SCOMPUTI DA CONVENZIONE",null,null,null,null,null,null,null,null,null,null,null,null,null,null,null,null,{"$f":"'PROSPETTO DI RIEPILOGO'!P37","v":0},null,{"$f":"S64-R64","v":0}]
[null,"TOTALE URBANIZZAZIONI PRIMARIE DA VERSARE (tariffe da delibera C.C. nr.73/2019)",null,null,null,null,null,null,null,null,null,null,null,null,null,null,null,{"$f":"ROUND((IF((R59-R60-R61-R62-R63-R64)<0,0,(R59-R60-R61-R62-R63-R64))),0)","v":0},{"$f":"ROUND((IF((S59-S60-S61-S62-S63-S64)<0,0,(S59-S60-S61-S62-S63-S64))),0)","v":22},null,{"$f":"ROUND((IF((U59-U60-U61-U62-U63-U64)=0,0,(U59-U60-U61-U62-U63-U64))),0)","v":22}]
[]
[null,"B - urbanizzazioni secondarie",null,null,null,"Tipo intervento edilizio",null,null,"% Appl.","Superficie  Precedente\n(mq)",null,"Aliquota attuale (€/mq)",null,null,null,null,null,"Totale Precedente attualizzato\n( € )","Totale Attuale\n\n( € )",null,"Totale sola variante\n\n( € )"]
[null,"Su/Sl (Superficie Utile/Lorda)",null,null,null,{"$f":"'PROSPETTO DI RIEPILOGO'!$F$41","v":"Nuova Costruzione"},null,null,1,{"$f":"J55","v":0},"x",{"$f":"'PROSPETTO DI RIEPILOGO'!$J$41","v":45.31},null,null,null,null,"=",{"$f":"(IF(J68<>\"\",(I68*J68*L68),0))","v":0},{"$f":"'PROSPETTO DI RIEPILOGO'!$P$41","v":45.31},null,{"$f":"S68-R68","v":45.31}]
[null,"Snr/Sa (Superficie non residenziale/Accessoria)",null,null,null,null,null,null,0.5,{"$f":"J56","v":0},"x",{"$f":"IF('PROSPETTO DI RIEPILOGO'!$J$42=0,L68,'PROSPETTO DI RIEPILOGO'!$J$42)","v":45.31},null,null,null,null,"=",{"$f":"(IF(J69<>\"\",(I69*J69*L69),0))","v":0},{"$f":"'PROSPETTO DI RIEPILOGO'!$P$42+'PROSPETTO DI RIEPILOGO'!$P$43+'PROSPETTO DI RIEPILOGO'!$P$44","v":0},null,0]
[null,"Su/Sl (Superficie Utile/Lorda)",null,null,null,{"$f":"'PROSPETTO DI RIEPILOGO'!$F$45","v":"Demol. e Ricostruzione"},null,null,1,{"$f":"J57","v":0},"x",{"$f":"'PROSPETTO DI RIEPILOGO'!$J$45","v":0},null,null,null,null,"=",{"$f":"(IF(J70<>\"\",(I70*J70*L70),0))","v":0},{"$f":"'PROSPETTO DI RIEPILOGO'!$P$45","v":0},null,0]
[null,"Snr/Sa (Superficie non residenziale/Accessoria)",null,null,null,null,null,null,0.5,{"$f":"J58","v":0},"x",{"$f":"IF('PROSPETTO DI RIEPILOGO'!$J$46=0,L70,'PROSPETTO DI RIEPILOGO'!$J$46)","v":0},null,null,null,null,"=",{"$f":"(IF(J71<>\"\",(I71*J71*L71),0))","v":0},{"$f":"'PROSPETTO DI RIEPILOGO'!$P$46+'PROSPETTO DI RIEPILOGO'!$P$47+'PROSPETTO DI RIEPILOGO'!$P$48","v":0},null,0]
[null,"SUBTOTALE B - urbanizzazioni secondarie",null,null,null,null,null,null,null,null,null,null,null,null,null,null,null,{"$f":"ROUND(SUM(R68:R71),0)","v":0},{"$f":"ROUND(SUM(S68:S71),0)","v":45},null,{"$f":"ROUND(SUM(U68:U71),0)","v":45}]
[null,"PROTOCOLLO ITACA PER RIDUZIONE ONERI URBANIZZAZIONE",null,null,null,null,null,null,null,{"$f":"IF('PROSP. RIEP. PER VARIANTE'!J48=0,\"\",'PROSP. RIEP. PER VARIANTE'!J48)","v":""},null,null,null,null,null,null,null,null,{"$f":"'PROSPETTO DI RIEPILOGO'!P52","v":0},null,{"$f":"S73-R73","v":0}]
[null,"ABBATTIMENTO  DEL 20% (edilizia residenziale inserita in piani e progr. di iniziativa pubblica e mista e ristrutt. urbanistica con realizz. in cl. 3 del prot. itaca)",null,null,null,null,null,null,null,null,null,null,null,null,null,null,null,null,{"$f":"'PROSPETTO DI RIEPILOGO'!P53","v":0},null,{"$f":"S74-R74","v":0}]
[null,"ABBATTIMENTO DEL 20% da art.17 c.4bis DPR 380/01 (applicato solo su superfici aggiuntive rispetto a quelle già assentite)",null,null,null,null,null,null,null,null,null,null,null,null,null,null,null,null,null,null,{"$f":"IF('INSERIMENTO DATI'!R43=TRUE,ROUND((U72*0.2),0),0)","v":0}]
[null,"ABBATTIMENTO DEL 50% (delle tariffe delle zone b3 per aree servizi ed a verde per servizi culturali, sportivi e di recupero del disagio sociale)",null,null,null,null,null,null,null,null,null,null,null,null,null,null,null,null,{"$f":"'PROSPETTO DI RIEPILOGO'!P55","v":0},null,{"$f":"S76-R76","v":0}]
[null,"EVENTUALI ONERI GIA' VERSATI (Necessario allegare attestazioni di pagamento a comprova)",null,null,null,null,null,null,null,null,null,null,null,null,null,null,null,null,{"$f":"'PROSPETTO DI RIEPILOGO'!P56","v":0},null,{"$f":"S77-R77","v":0}]
[null,"EVENTUALI SCOMPUTI DA CONVENZIONE",null,null,null,null,null,null,null,null,null,null,null,null,null,null,null,null,{"$f":"'PROSPETTO DI RIEPILOGO'!P57","v":0},null,{"$f":"S78-R78","v":0}]
[null,"TOTALE URBANIZZAZIONI SECONDARIE DA VERSARE (tariffe da delibera C.C. nr.73/2019)",null,null,null,null,null,null,null,null,null,null,null,null,null,null,null,{"$f":"ROUND((IF((R72-R73-R74-R75-R76-R77-R78)<0,0,(R72-R73-R74-R75-R76-R77-R78))),0)","v":0},{"$f":"ROUND((IF((S72-S73-S74-S75-S76-S77-S78)<0,0,(S72-S73-S74-S75-S76-S77-S78))),0)","v":45},null,{"$f":"ROUND((IF((U72-U73-U74-U75-U76-U77-U78)=0,0,(U72-U73-U74-U75-U76-U77-U78))),0)","v":45}]
[]
[null,"C - costo di costruzione",null,null,null,"Tipo intervento edilizio",null,null,"% Appl.","Superficie  Precedente\n(mq)",null,"Aliquota attuale (€/mq)",null,"Incr. CC Precedente",null,"Aliquota % Precedente C.C.",null,"Totale Precedente attualizzato\n( € )","Totale Attuale\n\n( € )",null,"Totale sola variante\n\n( € )"]
[null,"Su (Superficie Utile)",null,null,null,"Residenziale",null,null,1,{"$f":"IF(E25<>0,E25+S34,H25+S34)","v":0},"x",{"$f":"'PROSPETTO DI RIEPILOGO'!$J$61","v":697.62},"x",{"$f":"H44/100","v":0},"x",{"$f":"'PROSPETTO DI RIEPILOGO'!N61","v":0.05},"=",{"$f":"(IF(N82>0%,(I82*J82*(L82+(L82*N82))*P82),(I82*J82*L82*P82)))","v":0},{"$f":"'PROSPETTO DI RIEPILOGO'!$P$61","v":34.881},null,{"$f":"S82-R82","v":34.881}]
[null,"Snr (Superficie non residenziale)",null,null,null,null,null,null,0.6,{"$f":"IF(E28<>0,E28,H28)","v":0},"x",{"$f":"IF('PROSPETTO DI RIEPILOGO'!$J$62=0,L82,'PROSPETTO DI RIEPILOGO'!$J$62)","v":697.62},"x",{"$f":"N82","v":0},"x",{"$f":"'PROSPETTO DI RIEPILOGO'!N62","v":0},"=",0,{"$f":"'PROSPETTO DI RIEPILOGO'!$P$62+'PROSPETTO DI RIEPILOGO'!$P$63+'PROSPETTO DI RIEPILOGO'!$P$64","v":0},null,0]
[null,"Sl (Superficie Lorda)",null,null,null,"Comm./Terz./Direz.\nFuori Terra",null,null,1,{"$f":"IF(E34<>0,E34+S38,H34+S38)","v":0},"x",{"$f":"'PROSPETTO DI RIEPILOGO'!$J$65","v":0},"x",0,"x",{"$f":"H46/100","v":0},"=",0,{"$f":"'PROSPETTO DI RIEPILOGO'!$P$65","v":0},null,0]
[null,"Sa (Superficie accessoria)",null,null,null,null,null,null,0.6,{"$f":"IF(E38<>0,E38,H38)","v":0},"x",{"$f":"IF('PROSPETTO DI RIEPILOGO'!$J$66=0,L84,'PROSPETTO DI RIEPILOGO'!$J$66)","v":0},"x",0,"x",{"$f":"P84","v":0},"=",0,{"$f":"'PROSPETTO DI RIEPILOGO'!$P$66+'PROSPETTO DI RIEPILOGO'!$P$67","v":0},null,0]
[null,"Sl (Superficie Lorda)",null,null,null,"Comm./Terz./Direz.\nInterrata",null,null,1,{"$f":"IF(E35<>0,E35+S39,H35+S39)","v":0},"x",{"$f":"'PROSPETTO DI RIEPILOGO'!$J$68","v":0},"x",0,"x",{"$f":"P84","v":0},"=",0,{"$f":"'PROSPETTO DI RIEPILOGO'!$P$68","v":0},null,0]
[null,"Sa (Superficie accessoria)",null,null,null,null,null,null,0.6,{"$f":"IF(E39<>0,E39,H39)","v":0},"x",{"$f":"IF('PROSPETTO DI RIEPILOGO'!$J$69=0,L86,'PROSPETTO DI RIEPILOGO'!$J$69)","v":0},"x",0,"x",{"$f":"P84","v":0},"=",0,{"$f":"'PROSPETTO DI RIEPILOGO'!$P$69+'PROSPETTO DI RIEPILOGO'!$P$70","v":0},null,0]
[null,"SUBTOTALE C - costo di costruzione",null,null,null,null,null,null,null,null,null,null,null,null,null,null,null,{"$f":"ROUND(SUM(R82:R87),0)","v":0},{"$f":"ROUND(SUM(S82:S87),0)","v":35},null,{"$f":"ROUND(SUM(U82:U87),0)","v":35}]
[null,"ABBATTIMENTO DEL 20% da art.17 c.4bis DPR 380/01 (applicato solo su superfici aggiuntive rispetto a quelle già assentite)",null,null,null,null,null,null,null,null,null,null,null,null,null,null,null,null,null,null,{"$f":"IF('INSERIMENTO DATI'!R43=TRUE,ROUND((U88*0.2),0),0)","v":0}]
[null,"EVENTUALI ONERI GIA' VERSATI (Necessario allegare attestazioni di pagamento a comprova)",null,null,null,null,null,null,null,null,null,null,null,null,null,null,null,null,{"$f":"'PROSPETTO DI RIEPILOGO'!P73","v":0},null,{"$f":"S90-R90","v":0}]
[null,"EVENTUALI SCOMPUTI DA CONVENZIONE",null,null,null,null,null,null,null,null,null,null,null,null,null,null,null,null,{"$f":"'PROSPETTO DI RIEPILOGO'!P74","v":0},null,0]
[null,"TOTALE COSTO DI COSTRUZIONE DA VERSARE (Tariffe da determina dirigenziale nr.10041/17)",null,null,null,null,null,null,null,null,null,null,null,null,null,null,null,{"$f":"ROUND((IF((R88-R89-R90-R91)<0,0,(R88-R89-R90-R91))),0)","v":0},{"$f":"ROUND((IF((S88-S89-S90-S91)<0,0,(S88-S89-S90-S91))),0)","v":35},null,{"$f":"ROUND((IF((U88-U89-U90-U91)=0,0,(U88-U89-U90-U91))),0)","v":35}]
[]
[null,"TOTALE CONTRIBUTO DI COSTRUZIONE (A + B + C)",null,null,null,null,null,null,null,null,null,null,null,null,null,null,null,{"$f":"R65+R79+R92","v":0},{"$f":"S65+S79+S92","v":102},null,{"$f":"U65+U79+U92","v":102}]
[]
[null,"D - standard e parcheggi",null,null,null,"Tipo",null,null,"% Appl.","Superficie  Precedente\n(mq)",null,"Aliquota attuale (€/mq)",null,"Riduz.",null,null,null,"Totale Precedente attualizzato\n( € )","Totale Attuale\n\n( € )",null,"Totale sola variante\n\n( € )"]
[null,"Ss (Sup. a Standard Urbanistici DM 1444/68)",null,null,null,"Monetizz. Standard",null,null,1,{"$f":"S44","v":0},"x",{"$f":"'PROSPETTO DI RIEPILOGO'!$J$80","v":0},null,null,null,null,"=",{"$f":"ROUND(IF(ISERROR(IF(J97<>\"\",(I97*J97)*L97,0))=TRUE,0,(IF(J97<>\"\",(I97*J97)*L97,0))),0)","v":0},{"$f":"'PROSPETTO DI RIEPILOGO'!$P$80","v":0},null,{"$f":"S97-R97","v":0}]
[null,"Sp (Sup. per Parcheggi L. 122/89)",null,null,null,"Monetizz. Parcheggi",null,null,1,{"$f":"S46","v":0},"x",{"$f":"'PROSPETTO DI RIEPILOGO'!$J$81","v":0},"x",{"$f":"'PROSPETTO DI RIEPILOGO'!$L$81","v":0.6},null,null,"=",{"$f":"ROUND((IF(J98<>\"\",(I98*J98*N98)*L98,0)),0)","v":0},{"$f":"'PROSPETTO DI RIEPILOGO'!$P$81","v":0},null,{"$f":"S98-R98","v":0}]
[null,"SUBTOTALE D - standard e parcheggi",null,null,null,null,null,null,null,null,null,null,null,null,null,null,null,{"$f":"SUM(R97:R98)","v":0},{"$f":"SUM(S97:S98)","v":0},null,{"$f":"SUM(U97:U98)","v":0}]
[null,"EVENTUALI STANDARD GIA' VERSATI (Necessario allegare attestazioni di pagamento a comprova)",null,null,null,null,null,null,null,null,null,null,null,null,null,null,null,null,{"$f":"'PROSPETTO DI RIEPILOGO'!P83","v":0},null,{"$f":"S100-R100","v":0}]
[null,"EV. SCOMPUTI DA MOTIVARE IN RELAZIONE",null,null,null,null,null,null,null,null,null,null,null,null,null,null,null,null,{"$f":"'PROSPETTO DI RIEPILOGO'!P84","v":0},null,{"$f":"S101-R101","v":0}]
[null,"TOT. MONETIZZAZIONE STANDARD E PARCHEGGI (D)  (Tariffe standard da det. Dir. nr.130/14 tariffe parcheggi da delibera C.C. nr.73/2019)",null,null,null,null,null,null,null,null,null,null,null,null,null,null,null,{"$f":"ROUND((IF((R99-R100-R101)<0,0,(R99-R100-R101))),0)","v":0},{"$f":"ROUND((IF((S99-S100-S101)<0,0,(S99-S100-S101))),0)","v":0},null,{"$f":"ROUND((IF((U99-U100-U101)=0,0,(U99-U100-U101))),0)","v":0}]
[]
[null,"TOT. COMPLESSIVO DA VERSARE PER VARIANTE - CONTR. DI COSTRUZIONE + STANDARD E PARCHEGGI",null,null,null,null,null,null,null,null,null,null,null,null,null,null,null,{"$f":"R94+R102","v":0},{"$f":"S94+S102","v":102},null,{"$f":"U94+U102","v":102}]

{"sheet":"PROSPETTO RATE","index":8,"n_rows":89,"n_cols":11,"rows_kept":89,"cut":false,"hidden":false,"merged":[[10,5,10,7],[88,2,88,7],[1,2,1,7]]}
[]
[null,null,"PROSPETTO DI CALCOLO IMPORTI DA RATEIZZARE E DA GARANTIRE CON POLIZZE"]
[]
[null,null,"Titolo abilitativo",null,{"$f":"'INSERIMENTO DATI'!D4","v":0}]
[]
[null,null,"Beneficiario",null,{"$f":"IF('INSERIMENTO DATI'!D6=\"\",\"\",'INSERIMENTO DATI'!D6)","v":""}]
[]
[]
[null,null,"SI VUOLE RATEIZZARE L'IMPORTO",null,null,null,null,null,null,null,2]
[]
[null,null,"Importo minimo soglia NON rateizzabile",null,26000,"Per oneri di urbanizzazione e standard  (rif. D.G. 53/2013 e D.G 291/2016)",null,false]
[null,null,"Non rateizzare oneri urbanizzazione",null,null,null,"Spuntare se non si vuole applicare la rateizzazione ad una categoria",null,null,null,false]
[null,null,"Non rateizzare costo di costruzione",null,null,null,null,null,null,null,false]
[null,null,"Non rateizzare Standard",null,null,null,null,null,null,null,false]
[]
[]
[null,null,"A - B - C - CONTRIBUTO DI COSTRUZIONE",null,"IMPORTO","ANNOTAZIONI"]
[null,null,"URBANIZZAZIONI PRIMARIE",null,{"$f":"IF(K9=1,(IF(ISERROR('PROSPETTO DI RIEPILOGO'!P38)=TRUE,0,'PROSPETTO DI RIEPILOGO'!P38)),0)","v":0},{"$f":"IF((E18+E19)=0,\"\",IF((E18+E19)>E11,\"IMPORTO RATEIZZABILE\",\"IMPORTO NON RATEIZZABILE\"))","v":""}]
[null,null,"URBANIZZAZIONI SECONDARIE",null,{"$f":"IF(K9=1,(IF(ISERROR('PROSPETTO DI RIEPILOGO'!P58)=TRUE,0,'PROSPETTO DI RIEPILOGO'!P58)),0)","v":0},{"$f":"IF((E18+E19)=0,\"\",IF((E18+E19)>E11,\"IMPORTO RATEIZZABILE\",\"IMPORTO NON RATEIZZABILE\"))","v":""}]
[null,null,"COSTO DI COSTRUZIONE",null,{"$f":"IF(K9=1,(IF(ISERROR('PROSPETTO DI RIEPILOGO'!P75)=TRUE,0,'PROSPETTO DI RIEPILOGO'!P75)),0)","v":0},{"$f":"IF(E20=0,\"\",\"IMPORTO RATEIZZABILE\")","v":""}]
[null,null,"Totale contributo di costruzione",null,{"$f":"SUM(E18:E20)","v":0}]
[]
[null,null,"D - MONETIZZAZIONI",null,"IMPORTO","ANNOTAZIONI"]
[null,null,"STANDARD",null,{"$f":"IF(K9=1,(IF(ISERROR('PROSPETTO DI RIEPILOGO'!P80)=TRUE,0,'PROSPETTO DI RIEPILOGO'!P85*'PROSPETTO DI RIEPILOGO'!R80)),0)","v":0},{"$f":"IF((E24+E25)=0,\"\",IF((E24+E25)>E11,\"IMPORTO RATEIZZABILE\",\"IMPORTO NON RATEIZZABILE\"))","v":""}]
[null,null,"PARCHEGGI",null,{"$f":"IF(K9=1,(IF(ISERROR('PROSPETTO DI RIEPILOGO'!P81)=TRUE,0,'PROSPETTO DI RIEPILOGO'!P85*'PROSPETTO DI RIEPILOGO'!R81)),0)","v":0},{"$f":"IF((E24+E25)=0,\"\",IF((E24+E25)>E11,\"IMPORTO RATEIZZABILE\",\"IMPORTO NON RATEIZZABILE\"))","v":""}]
[null,null,"Totale a standard",null,{"$f":"ROUND(SUM(E24:E25),0)","v":0}]
[]
[null,null,"E - CONTR. STRAORD. DI COSTRUZIONE",null,"IMPORTO","ANNOTAZIONI"]
[null,null,"Contributo Straordinario di Costr.",null,{"$f":"IF(K9=1,(IF(ISERROR('PROSPETTO DI RIEPILOGO'!P89)=TRUE,0,'PROSPETTO DI RIEPILOGO'!P89)),0)","v":0},{"$f":"IF((E29)=0,\"\",\"IMPORTO RATEIZZABILE\")","v":""}]
[null,null,"Totale contr. straordinario",null,{"$f":"ROUND(SUM(E29:E29),0)","v":0}]
[]
[]
[null,null,"A - URBANIZZAZIONI PRIMARIE","%","IMPORTO","ANNOTAZIONI"]
[null,null,{"$f":"IF(E34=0,\"\",(IF(E35=0,\"UNICA RATA\",\"1 RATA\")))","v":""},{"$f":"IFERROR(E34/(E18+E19),\"\")","v":""},{"$f":"IF(K9=2,0,(IF((E18+E19)<E11,(ROUND(E18,3)+ROUND(0,3)),(IF((E18+E19)=0,\"\",(IF(K12=TRUE,E18,(IF((E18+E19)*40%>$E$11,ROUND(E18*40%,3),ROUND((E18/(E18+E19))*$E$11,3)))))+(IF(K12=TRUE,0,(IF((E18+E19)*40%>$E$11,ROUND(0*40%,3),0)))))))))","v":0},{"$f":"IF(E34=0,\"\",(IF((E18+E19)=0,\"\",\"DA VERSARE CON SISTEMA PAGOPA PER POTER RITIRARE IL TITOLO EDILIZIO\")))","v":""}]
[null,null,{"$f":"IF(E35=0,\"\",\"2 RATA - polizza a garanzia\")","v":""},{"$f":"IFERROR(E35/(E18+E19),\"\")","v":""},{"$f":"IF(E34=E18,0,(IF(K9=2,0,(ROUND((IF(K12=TRUE,\"0\",(IF((E18+E19)*40%>$E$11,E18*30%,(E18-(IF(K12=TRUE,E18,(IF((E18+E19)*40%>$E$11,E18*40%,(E18/(E18+E19))*$E$11)))))/2)))),3)))))","v":0},{"$f":"IF(E35=0,\"\",(\"Da versare entro 1 anno da data di rilascio del Titolo Edilizio\"))","v":""}]
[null,null,{"$f":"IF(E36=0,\"\",\"3 RATA - polizza a garanzia\")","v":""},{"$f":"IFERROR(E36/(E18+E19),\"\")","v":""},{"$f":"IF(E34=E18,0,(IF(K9=2,0,(ROUND((IF(K12=TRUE,\"0\",(IF((E18+E19)*40%>$E$11,E18*30%,(E18-(IF(K12=TRUE,E18,(IF((E18+E19)*40%>$E$11,E18*40%,(E18/(E18+E19))*$E$11)))))/2)))),3)))))","v":0},{"$f":"IF(E36=0,\"\",(\"Da versare entro 2 anni da data di rilascio del Tit. Ed. o entro la fine lavori se antecedente i 2 anni\"))","v":""}]
[null,null,"Totale urbanizzazioni primarie",{"$f":"IF(E37=0,\"\",(IF(E37<>E18,\"ATT.\",\"\")))","v":""},{"$f":"ROUND(SUM(E34:E36),2)","v":0},{"$f":"IF(E37=0,\"\",(IF(E35=0,\"IMPORTO NON RATEIZZATO\",\"Importo rateizzato\")))","v":""}]
[]
[null,null,"B - URBANIZZAZIONI SECONDARIE","%","IMPORTO","ANNOTAZIONI"]
[null,null,{"$f":"IF(E34=0,\"\",(IF(E35=0,\"UNICA RATA\",\"1 RATA\")))","v":""},{"$f":"IFERROR(E40/(E18+E19),\"\")","v":""},{"$f":"IF(K9=2,0,(IF((E18+E19)<E11,(0  + ROUND(E19,3)),(IF((E18+E19)=0,\"\",0+(IF(K12=TRUE,E19,(IF((E18+E19)*40%>$E$11,ROUND(E19*40%,3),ROUND((E19/(E18+E19))*$E$11,3))))))))))","v":0},{"$f":"IF(E40=0,\"\",(IF(E23=0,\"\",\"DA VERSARE CON SISTEMA PAGOPA PER POTER RITIRARE IL TITOLO EDILIZIO\")))","v":""}]
[null,null,{"$f":"IF(E35=0,\"\",\"2 RATA - polizza a garanzia\")","v":""},{"$f":"IFERROR(E41/(E18+E19),\"\")","v":""},{"$f":"IF(E40=E19,0,(IF(K9=2,0,(ROUND(IF(K12=TRUE,\"0\",(IF(K12=TRUE,\"0\",(IF((E18+E19)*40%>$E$11,E19*30%,(E19-(IF(K12=TRUE,E19,(IF(E19*40%>$E$11,E19*40%,(E19/(E18+E19))*$E$11)))))/2))))),3)))))","v":0},{"$f":"IF(E41=0,\"\",(\"Da versare entro 1 anno da data di rilascio del Titolo Edilizio\"))","v":""}]
[null,null,{"$f":"IF(E36=0,\"\",\"3 RATA - polizza a garanzia\")","v":""},{"$f":"IFERROR(E42/(E18+E19),\"\")","v":""},{"$f":"IF(E40=E19,0,(IF(K9=2,0,(ROUND(IF(K12=TRUE,\"0\",(IF(K12=TRUE,\"0\",(IF((E18+E19)*40%>$E$11,E19*30%,(E19-(IF(K12=TRUE,E19,(IF(E19*40%>$E$11,E19*40%,(E19/(E18+E19))*$E$11)))))/2))))),3)))))","v":0},{"$f":"IF(E42=0,\"\",(\"Da versare entro 2 anni da data di rilascio del Tit. Ed. o entro la fine lavori se antecedente i 2 anni\"))","v":""}]
[null,null,"Totale urbanizzazioni secondarie",{"$f":"IF(E43=0,\"\",(IF(E43<>E19,\"ATT.\",\"\")))","v":""},{"$f":"ROUND(SUM(E40:E42),2)","v":0},{"$f":"IF(E43=0,\"\",(IF(E41=0,\"IMPORTO NON RATEIZZATO\",\"Importo rateizzato\")))","v":""}]
[]
[null,null,"C + E  - COSTO DI COST + CONTR.","%","IMPORTO","ANNOTAZIONI"]
[null,null,{"$f":"IF(E46=0,\"\",(IF(E47=0,\"UNICA RATA\",\"1 RATA\")))","v":""},{"$f":"IFERROR(E46/(E20+E30),\"\")","v":""},{"$f":"IF(K9=2,0,(IF(K13=FALSE,(E20+E30)*20%,(E20+E30))))","v":0},{"$f":"IF(E46=0,\"\",(IF(E20=0,\"\",\"DA VERSARE CON SISTEMA PAGOPA PER POTER RITIRARE IL TITOLO EDILIZIO\")))","v":""}]
[null,null,{"$f":"IF(E47=0,\"\",\"2 RATA - polizza a garanzia\")","v":""},{"$f":"IFERROR(E47/(E20+E30),\"\")","v":""},{"$f":"IF(K9=2,0,(IF(K13=FALSE,(E20+E30)*40%,0)))","v":0},{"$f":"IF(E47=0,\"\",\"Da versare entro 1 anno da data di rilascio del Titolo Edilizio\")","v":""}]
[null,null,{"$f":"IF(E48=0,\"\",\"3 RATA - polizza a garanzia\")","v":""},{"$f":"IFERROR(E48/(E20+E30),\"\")","v":""},{"$f":"IF(K9=2,0,(IF(K13=FALSE,(E20+E30)*40%,0)))","v":0},{"$f":"IF(E48=0,\"\",\"Da versare entro 2 anni da data di rilascio del Tit. Ed. o entro la fine lavori se antecedente i 2 anni\")","v":""}]
[null,null,"Totale costo di costruzione",{"$f":"IF(E49=0,\"\",(IF(E49<>(E20+E30),\"ATT.\",\"\")))","v":""},{"$f":"ROUND(SUM(E46:E48),2)","v":0},{"$f":"IF(E49=0,\"\",(IF(E47=0,\"IMPORTO NON RATEIZZATO\",\"Importo rateizzato\")))","v":""}]
[]
[null,null,"D1 - MONETIZZAZIONE STANDARD","%","IMPORTO","ANNOTAZIONI"]
[null,null,{"$f":"IF(E52=0,\"\",(IF(E53=0,\"UNICA RATA\",\"1 RATA\")))","v":""},{"$f":"IFERROR(E52/E26,\"\")","v":""},{"$f":"IF(K9=2,0,(IF(E26<E11,(ROUND(E24,2)+ROUND(0,2)),(IF(E26=0,\"\",(IF(K14=TRUE,E24,(IF(E26*40%>$E$11,ROUND(E24*40%,2),ROUND((E24/E26)*$E$11,2)))))+(IF(K14=TRUE,0,(IF(E26*40%>$E$11,ROUND(0*40%,2),0)))))))))","v":0},{"$f":"IF(E52=0,\"\",(IF(E26=0,\"\",\"DA VERSARE CON SISTEMA PAGOPA PER POTER RITIRARE IL TITOLO EDILIZIO\")))","v":""},null,null,null,null,{"$f":"IF(E52=0,\"\",(IF(E26<E11,(\"SU : \"& ROUND(E24,2) &\" € + SP : \"& ROUND(E25,2)),(IF(E26=0,\"\",\"SU : \"&(IF(K14=TRUE,E24,(IF(E26*40%>$E$11,ROUND(E24*40%,2),ROUND((E24/E26)*$E$11,2)))))&\" € + SP : \"&(IF(K14=TRUE,E25,(IF(E26*40%>$E$11,ROUND(E25*40%,2),ROUND((E25/E26)*$E$11,2)))))&\" €\")))))","v":""}]
[null,null,{"$f":"IF(E53=0,\"\",\"2 RATA - polizza a garanzia\")","v":""},{"$f":"IFERROR(E53/E26,\"\")","v":""},{"$f":"IF(E52=E24,0,(IF(K9=2,0,(ROUND((IF(K14=TRUE,\"0\",(IF(E26*40%>$E$11,E24*30%,(E24-(IF(K14=TRUE,E24,(IF(E26*40%>$E$11,E24*40%,(E24/E26)*$E$11)))))/2)))),2)))))","v":0},{"$f":"IF(E53=0,\"\",\"Da versare entro 1 anno da data di rilascio del Titolo Edilizio\")","v":""}]
[null,null,{"$f":"IF(E54=0,\"\",\"3 RATA - polizza a garanzia\")","v":""},{"$f":"IFERROR(E54/E26,\"\")","v":""},{"$f":"IF(E52=E24,0,(IF(K9=2,0,(ROUND((IF(K14=TRUE,\"0\",(IF(E26*40%>$E$11,E24*30%,(E24-(IF(K14=TRUE,E24,(IF(E26*40%>$E$11,E24*40%,(E24/E26)*$E$11)))))/2)))),2)))))","v":0},{"$f":"IF(E54=0,\"\",\"Da versare entro 2 anni da data di rilascio del Tit. Ed. o entro la fine lavori se antecedente i 2 anni\")","v":""}]
[null,null,"Totale a standard",{"$f":"IF(E55=0,\"\",(IF(E55<>E24,\"ATT.\",\"\")))","v":""},{"$f":"SUM(E52:E54)","v":0},{"$f":"IF(E55=0,\"\",(IF(E53=0,\"IMPORTO NON RATEIZZATO\",\"Importo rateizzato\")))","v":""}]
[]
[null,null,"D2 - MONETIZZAZIONE PARCHEGGI","%","IMPORTO","ANNOTAZIONI"]
[null,null,{"$f":"IF(E58=0,\"\",(IF(E59=0,\"UNICA RATA\",\"1 RATA\")))","v":""},{"$f":"IFERROR(E58/E25,\"\")","v":""},{"$f":"IF(K9=2,0,(IF(E26<E11,(0+ROUND(E25,2)),(IF(E26=0,\"\",0+(IF(K14=TRUE,E25,(IF(E26*40%>$E$11,ROUND(E25*40%,2),ROUND((E25/E26)*$E$11,2))))))))))","v":0},{"$f":"IF(E58=0,\"\",(IF(E25=0,\"\",\"DA VERSARE CON SISTEMA PAGOPA PER POTER RITIRARE IL TITOLO EDILIZIO\")))","v":""}]
[null,null,{"$f":"IF(E59=0,\"\",\"2 RATA - polizza a garanzia\")","v":""},{"$f":"IFERROR(E59/E25,\"\")","v":""},{"$f":"IF(E58=E25,0,(IF(K9=2,0,(ROUND(IF(K14=TRUE,\"0\",(IF(K14=TRUE,\"0\",(IF(E26*40%>$E$11,E25*30%,(E25-(IF(K14=TRUE,E25,(IF(E25*40%>$E$11,E25*40%,(E25/E26)*$E$11)))))/2))))),2)))))","v":0},{"$f":"IF(E59=0,\"\",\"Da versare entro 1 anno da data di rilascio del Titolo Edilizio\")","v":""}]
[null,null,{"$f":"IF(E60=0,\"\",\"3 RATA - polizza a garanzia\")","v":""},{"$f":"IFERROR(E60/E25,\"\")","v":""},{"$f":"IF(E58=E25,0,(IF(K9=2,0,(ROUND(IF(K14=TRUE,\"0\",(IF(K14=TRUE,\"0\",(IF(E26*40%>$E$11,E25*30%,(E25-(IF(K14=TRUE,E25,(IF(E25*40%>$E$11,E25*40%,(E25/E26)*$E$11)))))/2))))),2)))))","v":0},{"$f":"IF(E60=0,\"\",\"Da versare entro 2 anni da data di rilascio del Tit. Ed. o entro la fine lavori se antecedente i 2 anni\")","v":""}]
[null,null,"Totale parcheggi",{"$f":"IF(E61=0,\"\",(IF(E61<>E25,\"ATT.\",\"\")))","v":""},{"$f":"SUM(E58:E60)","v":0},{"$f":"IF(E61=0,\"\",(IF(E59=0,\"IMPORTO NON RATEIZZATO\",\"Importo rateizzato\")))","v":""}]
[]
[]
[null,null,"1 - POLIZZA ONERI DI URBANIZZAZIONE",null,"IMPORTO","ANNOTAZIONI"]
[null,null,"2 RATA  - URB. PRIMARIE E SECONDARIE",null,{"$f":"E35+E41","v":0},{"$f":"IF(E35=0,\"Nessuna rateizzazione\",\"Da versare entro 1 anno da data di rilascio del Titolo Edilizio\")","v":"Nessuna rateizzazione"}]
[null,null,"3 RATA  - URB. PRIMARIE E SECONDARIE",null,{"$f":"E36+E42","v":0},{"$f":"IF(E36=0,\"Nessuna rateizzazione\",\"Da versare entro 2 anni da data di rilascio del Tit. Ed. o entro la fine lavori se antecedente i 2 anni\")","v":"Nessuna rateizzazione"}]
[null,null,"Incr. max penale oneri urbanizz.",0.4,{"$f":"(E65+E66)*D67","v":0},"Rif. Art. 42 DPR 380/2001"]
[null,null,"Somma totale da garantire con polizza",null,{"$f":"SUM(E65:E67)","v":0},"Solo oneri di urbanizzazione"]
[]
[null,null,"2 - POLIZZA PER COSTO DI COSTRUZIONE",null,"IMPORTO","ANNOTAZIONI"]
[null,null,"2 RATA  - COSTO DI COSTRUZIONE",null,{"$f":"E47","v":0},{"$f":"IF(E47=0,\"Nessuna rateizzazione\",\"Da versare entro 1 anno da data di rilascio del Titolo Edilizio\")","v":"Nessuna rateizzazione"}]
[null,null,"3 RATA  - COSTO DI COSTRUZIONE",null,{"$f":"E48","v":0},{"$f":"IF(E48=0,\"Nessuna rateizzazione\",\"Da versare entro 2 anni da data di rilascio del Tit. Ed. o entro la fine lavori se antecedente i 2 anni\")","v":"Nessuna rateizzazione"}]
[null,null,"Incr. max penale costo costr.",0.4,{"$f":"(E71+E72)*D73","v":0},"Rif. Art. 42 DPR 380/2001"]
[null,null,"Somma totale da garantire con polizza",null,{"$f":"SUM(E71:E73)","v":0},"Solo costo di costruzione"]
[]
[]
[null,null,"1 + 2 - POLIZZA CONTR. DI COSTRUZIONE",null,"IMPORTO","ANNOTAZIONI"]
[null,null,"2 RATA  - ONERI URB. + COSTO COSTR.",null,{"$f":"IF(AND(E68>0,E74>0),(E35+E41+E47),0)","v":0},{"$f":"IF(AND(E68=0,E74=0),\"Nessuna rateizzazione\",\"Da versare entro 1 anno da data di rilascio del Titolo Edilizio\")","v":"Nessuna rateizzazione"}]
[null,null,"3 RATA  - ONERI URB. + COSTO COSTR.",null,{"$f":"IF(AND(E68>0,E74>0),(E36+E42+E48),0)","v":0},{"$f":"IF(AND(E68=0,E74=0),\"Nessuna rateizzazione\",\"Da versare entro 2 anni da data di rilascio del Tit. Ed. o entro la fine lavori se antecedente i 2 anni\")","v":"Nessuna rateizzazione"}]
[null,null,"Incr. max penale oneri urban.",0.4,{"$f":"(E78+E79)*D80","v":0},"Rif. Art. 42 DPR 380/2001"]
[null,null,"Somma totale da garantire con polizza",null,{"$f":"SUM(E78:E80)","v":0},"Contributo di costruzione = oneri di urbanizzazione + costi di costruzione"]
[]
[null,null,"3 - POLIZZA PER MONETIZZAZIONE",null,"IMPORTO","ANNOTAZIONI"]
[null,null,"2 RATA - STANDARD + PARCHEGGI",null,{"$f":"E53+E59","v":0},{"$f":"IF(E55=0,\"Nessuna rateizzazione\",\"Da versare entro 1 anno da data di rilascio del Titolo Edilizio\")","v":"Nessuna rateizzazione"}]
[null,null,"3 RATA -  STANDARD + PARCHEGGI",null,{"$f":"E54+E60","v":0},{"$f":"IF(E55=0,\"Nessuna rateizzazione\",\"Da versare entro 2 anni da data di rilascio del Tit. Ed. o entro la fine lavori se antecedente i 2 anni\")","v":"Nessuna rateizzazione"}]
[null,null,"Incr. per event. interessi legali",0.05,{"$f":"(E84+E85)*D86","v":0},"Incremento per tenere conto di eventuali interessi legali in caso di ritardo"]
[null,null,"Somma totale da garantire con polizza",null,{"$f":"SUM(E84:E86)","v":0},"Per standard urbanistici (*)"]
[]
[null,null,"(*) - Per la monetizzazione degli standard urbanistici occorre sempre fare una polizza specifica"]

{"sheet":"PROSPETTO RATE NEW","index":9,"n_rows":85,"n_cols":11,"rows_kept":85,"cut":false,"hidden":true,"merged":[[1,2,1,7],[10,5,10,7],[84,2,84,7]]}
[]
[null,null,"PROSPETTO DI CALCOLO IMPORTI DA RATEIZZARE E DA GARANTIRE CON POLIZZE"]
[]
[null,null,"Titolo abilitativo",null,{"$f":"'INSERIMENTO DATI'!D4","v":0}]
[]
[null,null,"Beneficiario",null,{"$f":"IF('INSERIMENTO DATI'!D6=\"\",\"\",'INSERIMENTO DATI'!D6)","v":""}]
[]
[]
[null,null,"SI VUOLE RATEIZZARE L'IMPORTO",null,null,null,null,null,null,null,1]
[]
[null,null,"Importo minimo come soglia rateizzabile",null,26000,"Per oneri di urbanizzazione e standard  (rif. D.G. 53/2013 e D.G 291/2016)",null,false]
[null,null,"Non rateizzare oneri urbanizzazione",null,null,null,null,null,null,null,false]
[null,null,"Non rateizzare costo di costruzione",null,null,null,"Spuntare se non si vuole applicare la rateizzazione",null,null,null,false]
[null,null,"Non rateizzare Standard",null,null,null,null,null,null,null,false]
[]
[]
[null,null,"1 - ONERI URBANIZZAZIONE",null,"IMPORTO","ANNOTAZIONI"]
[null,null,"PRIMARIE",null,{"$f":"IF(K9=1,(IF(ISERROR('PROSPETTO DI RIEPILOGO'!P38)=TRUE,0,'PROSPETTO DI RIEPILOGO'!P38)),0)","v":22}]
[null,null,"SECONDARIE",null,{"$f":"IF(K9=1,(IF(ISERROR('PROSPETTO DI RIEPILOGO'!P58)=TRUE,0,'PROSPETTO DI RIEPILOGO'!P58)),0)","v":45}]
[null,null,"Totale oneri urbanizzazione",null,{"$f":"SUM(E18:E19)","v":67},{"$f":"IF(E20=0,\"\",IF(E20>E11,\"IMPORTO RATEIZZABILE\",\"IMPORTO NON RATEIZZABILE\"))","v":"IMPORTO NON RATEIZZABILE"}]
[]
[null,null,"2 - COSTO DI COSTRUZIONE",null,"IMPORTO","ANNOTAZIONI"]
[null,null,"COSTRUZIONE",null,{"$f":"IF(K9=1,(IF(ISERROR('PROSPETTO DI RIEPILOGO'!P75)=TRUE,0,'PROSPETTO DI RIEPILOGO'!P75)),0)","v":35}]
[null,null,"Totale costo di costruzione",null,{"$f":"E23","v":35},{"$f":"IF(E24=0,\"\",\"IMPORTO RATEIZZABILE\")","v":"IMPORTO RATEIZZABILE"}]
[]
[null,null,"3 - ONERI PER STANDARD",null,"IMPORTO","ANNOTAZIONI"]
[null,null,"SUP. A STANDARD URBANISTICI",null,{"$f":"IF(K9=1,(IF(ISERROR('PROSPETTO DI RIEPILOGO'!P80)=TRUE,0,'PROSPETTO DI RIEPILOGO'!P80)),0)","v":0}]
[null,null,"SUP. A PARCHEGGIO",null,{"$f":"IF(K9=1,(IF(ISERROR('PROSPETTO DI RIEPILOGO'!P81)=TRUE,0,'PROSPETTO DI RIEPILOGO'!P81)),0)","v":0}]
[null,null,"Totale a standard",null,{"$f":"SUM(E27:E28)","v":0},{"$f":"IF(E29=0,\"\",IF(E29>E11,\"IMPORTO RATEIZZABILE\",\"IMPORTO NON RATEIZZABILE\"))","v":""}]
[]
[]
[null,null,"1 - ONERI URBANIZZAZIONE","%","IMPORTO","ANNOTAZIONI"]
[null,null,{"$f":"IF(E33=0,\"\",(IF(E34=0,\"UNICA RATA\",\"1 RATA - polizza a garanzia\")))","v":"UNICA RATA"},{"$f":"IFERROR(E33/E20,\"\")","v":1},{"$f":"IF(K9=2,0,(IF(K12=FALSE,IF(E20>E11,IF(E20*40%>=E11,E20*40%,E11),E20),E20)))","v":67},{"$f":"IF(C33=\"UNICA RATA\",\"Da versare prima del rilascio del Titolo Edilizio\",(IF(E33=0,\"\",(IF(E20=0,\"\",\"Da versare entro 180 gg dalla data rilascio del Tit.Ed.\")))))","v":"Da versare prima del rilascio del Titolo Edilizio"},null,{"$f":"IF(E33=0,\"\",(IF(E20<E11,(\"UP : \"& ROUND(E18,2) &\" € + US : \"& ROUND(E19,2)),(IF(E20=0,\"\",\"UP : \"&(IF(K12=TRUE,E18,(IF(E20*40%>$E$11,ROUND(E18*40%,2),ROUND((E18/E20)*$E$11,2)))))&\" € + US : \"&(IF(K12=TRUE,E19,(IF(E20*40%>$E$11,ROUND(E19*40%,2),ROUND((E19/E20)*$E$11,2)))))&\" €\")))))","v":"UP : 22 € + US : 45"}]
[null,null,{"$f":"IF(E34=0,\"\",\"2 RATA - polizza a garanzia\")","v":""},{"$f":"IFERROR(E34/E20,\"\")","v":0},{"$f":"IF(K9=2,0,(IF(K12=FALSE,IF(E20>E11,IF(E33<>E11,E20*30%,(E20-E33)/2),0),0)))","v":0},{"$f":"IF(E34=0,\"\",(\"Da versare entro 1 anno dalla data di pag. 1 rata\"))","v":""},null,{"$f":"IF(E34=0,\"\",(\"UP : \"&ROUND((IF(K12=TRUE,\"0\",(IF(E20*40%>$E$11,E18*30%,(E18-(IF(K12=TRUE,E18,(IF(E20*40%>$E$11,E18*40%,(E18/E20)*$E$11)))))/2)))),2)&\" € + US :\"&ROUND((IF(K12=TRUE,\"0\",(IF(E20*40%>$E$11,E19*30%,(E19-(IF(K12=TRUE,E19,(IF(E19*40%>$E$11,E19*40%,(E19/E20)*$E$11)))))/2)))),2)&\" €\"))","v":""}]
[null,null,{"$f":"IF(E35=0,\"\",\"3 RATA - polizza a garanzia\")","v":""},{"$f":"IFERROR(E35/E20,\"\")","v":0},{"$f":"IF(K9=2,0,(IF(K12=FALSE,IF(E20>E11,IF(E33<>E11,E20*30%,(E20-E33)/2),0),0)))","v":0},{"$f":"IF(E35=0,\"\",(\"Da versare entro 2 anni dalla data di pag. 1 rata\"))","v":""},null,{"$f":"IF(E34=0,\"\",(\"UP : \"&ROUND((IF(K12=TRUE,\"0\",(IF(E20*40%>$E$11,E18*30%,(E18-(IF(K12=TRUE,E18,(IF(E20*40%>$E$11,E18*40%,(E18/E20)*$E$11)))))/2)))),2)&\" € + US :\"&ROUND((IF(K12=TRUE,\"0\",(IF(E20*40%>$E$11,E19*30%,(E19-(IF(K12=TRUE,E19,(IF(E19*40%>$E$11,E19*40%,(E19/E20)*$E$11)))))/2)))),2)&\" €\"))","v":""}]
[null,null,"Totale oneri urbanizzazione",{"$f":"IF(E36=0,\"\",(IF(E36<>E20,\"ATT.\",\"\")))","v":""},{"$f":"SUM(E33:E35)","v":67},{"$f":"IF(E36=0,\"\",(IF(E34=0,\"Importo NON rateizzato\",\"Importo rateizzato\")))","v":"Importo NON rateizzato"}]
[]
[null,null,"2 - COSTO DI COSTRUZIONE","%","IMPORTO","ANNOTAZIONI"]
[null,null,{"$f":"IF(E39=0,\"\",(IF(E40=0,\"UNICA RATA\",\"1 RATA - polizza a garanzia\")))","v":"1 RATA - polizza a garanzia"},{"$f":"IFERROR(E39/E24,\"\")","v":0.2},{"$f":"IF(K9=2,0,(IF(K13=FALSE,E24*20%,E24)))","v":7},{"$f":"IF(C39=\"UNICA RATA\",\"Da versare prima del rilascio del Titolo Edilizio\",(IF(E39=0,\"\",(IF(E24=0,\"\",\"Da versare entro 180 gg dalla data rilascio del Tit.Ed.\")))))","v":"Da versare entro 180 gg dalla data rilascio del Tit.Ed."}]
[null,null,{"$f":"IF(E40=0,\"\",\"2 RATA - polizza a garanzia\")","v":"2 RATA - polizza a garanzia"},{"$f":"IFERROR(E40/E24,\"\")","v":0.4},{"$f":"IF(K9=2,0,(IF(K13=FALSE,E24*40%,0)))","v":14},{"$f":"IF(E40=0,\"\",\"Da versare entro 1 anno dalla data di pag. 1 rata\")","v":"Da versare entro 1 anno dalla data di pag. 1 rata"}]
[null,null,{"$f":"IF(E41=0,\"\",\"3 RATA - polizza a garanzia\")","v":"3 RATA - polizza a garanzia"},{"$f":"IFERROR(E41/E24,\"\")","v":0.4},{"$f":"IF(K9=2,0,(IF(K13=FALSE,E24*40%,0)))","v":14},{"$f":"IF(E41=0,\"\",\"Da versare entro 2 anni dalla data di pag. 1 rata\")","v":"Da versare entro 2 anni dalla data di pag. 1 rata"}]
[null,null,"Totale costo di costruzione",{"$f":"IF(E42=0,\"\",(IF(E42<>E24,\"ATT.\",\"\")))","v":""},{"$f":"SUM(E39:E41)","v":35},{"$f":"IF(E42=0,\"\",(IF(E40=0,\"Importo NON rateizzato\",\"Importo rateizzato\")))","v":"Importo rateizzato"}]
[]
[null,null,"3 - STANDARD","%","IMPORTO","ANNOTAZIONI"]
[null,null,{"$f":"IF(E45=0,\"\",(IF(E46=0,\"UNICA RATA\",\"1 RATA - polizza a garanzia\")))","v":""},{"$f":"IFERROR(E45/E29,\"\")","v":""},{"$f":"IF(K9=2,0,(IF(K14=FALSE,IF(E29>E11,IF(E29*40%>=E11,E29*40%,E11),E29),E29)))","v":0},{"$f":"IF(C45=\"UNICA RATA\",\"Da versare prima del rilascio del Titolo Edilizio\",(IF(E45=0,\"\",(IF(E29=0,\"\",\"Da versare entro 180 gg dalla data rilascio del Tit.Ed.\")))))","v":""},null,{"$f":"IF(E45=0,\"\",(IF(E29<E11,(\"SU : \"& ROUND(E27,2) &\" € + SP : \"& ROUND(E28,2)),(IF(E29=0,\"\",\"SU : \"&(IF(K14=TRUE,E27,(IF(E29*40%>$E$11,ROUND(E27*40%,2),ROUND((E27/E29)*$E$11,2)))))&\" € + SP : \"&(IF(K14=TRUE,E28,(IF(E29*40%>$E$11,ROUND(E28*40%,2),ROUND((E28/E29)*$E$11,2)))))&\" €\")))))","v":""}]
[null,null,{"$f":"IF(E46=0,\"\",\"2 RATA - polizza a garanzia\")","v":""},{"$f":"IFERROR(E46/E29,\"\")","v":""},{"$f":"IF(K9=2,0,(IF(K14=FALSE,IF(E29>E11,IF(E45<>E11,E29*30%,(E29-E45)/2),0),0)))","v":0},{"$f":"IF(E46=0,\"\",\"Da versare entro 1 anno dalla data di pag. 1 rata\")","v":""},null,{"$f":"IF(E46=0,\"\",(\"SU : \"&ROUND((IF(K14=TRUE,\"0\",(IF(E29*40%>$E$11,E27*30%,(E27-(IF(K14=TRUE,E27,(IF(E29*40%>$E$11,E27*40%,(E27/E29)*$E$11)))))/2)))),2)&\" € + SP :\"&ROUND((IF(K14=TRUE,\"0\",(IF(E29*40%>$E$11,E28*30%,(E28-(IF(K14=TRUE,E28,(IF(E28*40%>$E$11,E28*40%,(E28/E29)*$E$11)))))/2)))),2)&\" €\"))","v":""}]
[null,null,{"$f":"IF(E47=0,\"\",\"3 RATA - polizza a garanzia\")","v":""},{"$f":"IFERROR(E47/E29,\"\")","v":""},{"$f":"IF(K9=2,0,(IF(K14=FALSE,IF(E29>E11,IF(E45<>E11,E29*30%,(E29-E45)/2),0),0)))","v":0},{"$f":"IF(E47=0,\"\",\"Da versare entro 2 anni dalla data di pag. 1 rata\")","v":""},null,{"$f":"IF(E46=0,\"\",(\"SU : \"&ROUND((IF(K14=TRUE,\"0\",(IF(E29*40%>$E$11,E27*30%,(E27-(IF(K14=TRUE,E27,(IF(E29*40%>$E$11,E27*40%,(E27/E29)*$E$11)))))/2)))),2)&\" € + SP :\"&ROUND((IF(K14=TRUE,\"0\",(IF(E29*40%>$E$11,E28*30%,(E28-(IF(K14=TRUE,E28,(IF(E28*40%>$E$11,E28*40%,(E28/E29)*$E$11)))))/2)))),2)&\" €\"))","v":""}]
[null,null,"Totale a standard",{"$f":"IF(E48=0,\"\",(IF(E48<>E29,\"ATT.\",\"\")))","v":""},{"$f":"SUM(E45:E47)","v":0},{"$f":"IF(E48=0,\"\",(IF(E46=0,\"Importo NON rateizzato\",\"Importo rateizzato\")))","v":""}]
[]
[null,null,{"$f":"IF(E50<>0,\"IMPORTO DA VERSARE\",\"\")","v":"IMPORTO DA VERSARE"},null,{"$f":"IF(K9=2,E20+E24+E29,(SUMIF(C33:E47,\"UNICA RATA\",E33:E47)))","v":67},{"$f":"IF(E50=0,\"\",\"Da versare prima del rilascio del Titolo Edilizio\")","v":"Da versare prima del rilascio del Titolo Edilizio"}]
[null,null,"IMPORTO 1 RATA  DA VERSARE",null,{"$f":"SUMIF(C33:E47,\"1 RATA - polizza a garanzia\",E33:E47)","v":7},{"$f":"IF(E51=0,\"Nessuna rateizzazione\",\"Da versare entro 180 gg dalla data rilascio del Tit.Ed.\")","v":"Da versare entro 180 gg dalla data rilascio del Tit.Ed."}]
[null,null,"IMPORTO 2 RATA  DA VERSARE",null,{"$f":"SUMIF(C33:E47,\"2 RATA - polizza a garanzia\",E33:E47)","v":14},{"$f":"IF(E52=0,\"Nessuna rateizzazione\",\"Da versare entro 1 anno dalla data di pag. 1 rata\")","v":"Da versare entro 1 anno dalla data di pag. 1 rata"}]
[null,null,"IMPORTO 3 RATA  DA VERSARE",null,{"$f":"SUMIF(C33:E47,\"3 RATA - polizza a garanzia\",E33:E47)","v":14},{"$f":"IF(E53=0,\"Nessuna rateizzazione\",\"Da versare entro 2 anni dalla data di pag. 1 rata\")","v":"Da versare entro 2 anni dalla data di pag. 1 rata"}]
[]
[]
[null,null,"1 - POLIZZA ONERI DI URBANIZZAZIONE",null,"IMPORTO","ANNOTAZIONI"]
[null,null,"1 RATA  - ONERI URBANIZZAZIONE",null,{"$f":"IF(C33=\"UNICA RATA\",0,E33)","v":0},{"$f":"IF(E57=0,\"Nessuna rateizzazione\",\"Da versare entro 180 gg dalla data rilascio del Tit.Ed.\")","v":"Nessuna rateizzazione"}]
[null,null,"2 RATA  - ONERI URBANIZZAZIONE",null,{"$f":"E34","v":0},{"$f":"IF(E34=0,\"Nessuna rateizzazione\",\"Da versare entro 1 anno dalla data di pag. 1 rata\")","v":"Nessuna rateizzazione"}]
[null,null,"3 RATA  - ONERI URBANIZZAZIONE",null,{"$f":"E35","v":0},{"$f":"IF(E35=0,\"Nessuna rateizzazione\",\"Da versare entro 2 anni dalla data di pag. 1 rata\")","v":"Nessuna rateizzazione"}]
[null,null,"Incr. max penale oneri urban.",0.4,{"$f":"(E57+E58+E59)*D60","v":0},"Rif. Art. 42 DPR 380/2001"]
[null,null,"Somma totale da garantire con polizza",null,{"$f":"SUM(E57:E60)","v":0},"Solo oneri di urbanizzazione"]
[]
[null,null,"2 - POLIZZA PER COSTO DI COSTRUZIONE",null,"IMPORTO","ANNOTAZIONI"]
[null,null,"1 RATA  - COSTO DI COSTRUZIONE",null,{"$f":"IF(C39=\"UNICA RATA\",0,E39)","v":7},{"$f":"IF(E64=0,\"Nessuna rateizzazione\",\"Da versare entro 180 gg dalla data rilascio del Tit.Ed.\")","v":"Da versare entro 180 gg dalla data rilascio del Tit.Ed."}]
[null,null,"2 RATA  - COSTO DI COSTRUZIONE",null,{"$f":"E40","v":14},{"$f":"IF(E40=0,\"Nessuna rateizzazione\",\"Da versare entro 1 anno dalla data di pag. 1 rata\")","v":"Da versare entro 1 anno dalla data di pag. 1 rata"}]
[null,null,"3 RATA  - COSTO DI COSTRUZIONE",null,{"$f":"E41","v":14},{"$f":"IF(E41=0,\"Nessuna rateizzazione\",\"Da versare entro 2 anni dalla data di pag. 1 rata\")","v":"Da versare entro 2 anni dalla data di pag. 1 rata"}]
[null,null,"Incr. max penale costo costr.",0.4,{"$f":"(E64+E65+E66)*D67","v":14},"Rif. Art. 42 DPR 380/2001"]
[null,null,"Somma totale da garantire con polizza",null,{"$f":"SUM(E64:E67)","v":49},"Solo costo di costruzione"]
[]
[]
[null,null,"1 + 2 - POLIZZA CONTR. DI COSTRUZIONE",null,"IMPORTO","ANNOTAZIONI"]
[null,null,"1 RATA  - ONERI URB. + COSTO COSTR.",null,{"$f":"IF(AND(E61>0,E68>0),(E33+E39),0)","v":0},{"$f":"IF(AND(E61=0,E68=0),\"Nessuna rateizzazione\",\"Da versare entro 180 gg dalla data rilascio del Tit.Ed.\")","v":"Da versare entro 180 gg dalla data rilascio del Tit.Ed."}]
[null,null,"2 RATA  - ONERI URB. + COSTO COSTR.",null,{"$f":"IF(AND(E61>0,E68>0),(E34+E40),0)","v":0},{"$f":"IF(AND(E61=0,E68=0),\"Nessuna rateizzazione\",\"Da versare entro 1 anno dalla data di pag. 1 rata\")","v":"Da versare entro 1 anno dalla data di pag. 1 rata"}]
[null,null,"3 RATA  - ONERI URB. + COSTO COSTR.",null,{"$f":"IF(AND(E61>0,E68>0),(E35+E41),0)","v":0},{"$f":"IF(AND(E61=0,E68=0),\"Nessuna rateizzazione\",\"Da versare entro 2 anni dalla data di pag. 1 rata\")","v":"Da versare entro 2 anni dalla data di pag. 1 rata"}]
[null,null,"Incr. max penale oneri urban.",0.4,{"$f":"(E72+E73+E74)*D75","v":0},"Rif. Art. 42 DPR 380/2001"]
[null,null,"Somma totale da garantire con polizza",null,{"$f":"SUM(E72:E75)","v":0},"Contributo di costruzione = oneri di urbanizzazione + costi di costruzione"]
[]
[null,null,"3 - POLIZZA PER STANDARD URBANISTICI",null,"IMPORTO","ANNOTAZIONI"]
[null,null,"1 RATA - ONERI PER STANDARD",null,{"$f":"IF(C45=\"UNICA RATA\",0,E45)","v":0},{"$f":"IF(E79=0,\"Nessuna rateizzazione\",\"Da versare entro 180 gg dalla data rilascio del Tit.Ed.\")","v":"Nessuna rateizzazione"}]
[null,null,"2 RATA - ONERI PER STANDARD",null,{"$f":"E46","v":0},{"$f":"IF(E80=0,\"Nessuna rateizzazione\",\"Da versare entro 1 anno dalla data di pag. 1 rata\")","v":"Nessuna rateizzazione"}]
[null,null,"3 RATA - ONERI PER STANDARD",null,{"$f":"E47","v":0},{"$f":"IF(E81=0,\"Nessuna rateizzazione\",\"Da versare entro 2 anni dalla data di pag. 1 rata\")","v":"Nessuna rateizzazione"}]
[null,null,"Incr. per event. interessi legali",0.05,{"$f":"(E79+E80+E81)*D82","v":0},"Incremento per tenere conto di eventuali interessi legali in caso di ritardo"]
[null,null,"Somma totale da garantire con polizza",null,{"$f":"SUM(E79:E82)","v":0},"Per standard urbanistici (*)"]
[]
[null,null,"(*) - Per gli standard urbanistici occorre sempre fare una polizza separata"]

{"sheet":"INFO VERS. E MODIFICHE","index":10,"n_rows":22,"n_cols":5,"rows_kept":22,"cut":false,"hidden":true,"merged":[]}
["MESE DI EMISSIONE","ANNO EMISSIONE","VERSIONE","DISTRIBUITA","PRINCIPALI MODIFCHE FATTE"]
["MARZO",2020,"01.03","2020-03-06","-"]
["MARZO",2020,"02.03","2020-03-24","Per il cambio d'uso è stata adoperata solo la superficie utile per calcolare il volume da adoperare negli standard escludendo la superficie accessoria."]
["MARZO",2020,"03.03","-","- Per il cambio d'uso per il calcolo del volume da adoperare negli standard è stato applicato un fattore maggiorativo del 30% per tenere conto delle murature esterne ed interne. \n- Alla superficie utile è stato aggiunta anche la superficie accessoria chiusa (escludendo solo logge e balconi).\n- E' stata modificata la scheda d'inserimento cambiando il font in Arial per una maggiore compatibilità.\n- Nel caso di zona di prg A1 ed A2 non considera il calcolo delle autorimesse non essendo previste da NTA."]
["APRILE",2020,"01.04","2020-04-08","- In caso di demolizione e ricostruzione per le urbanizzazioni primarie e secondarie applica la tariffa corretta di DR.\n- Inserito Flag in R28 (in manuale) per verificare che il calcolo dei parcheggi obbligatori della 122/89 sia applicata solo in caso di destinazione residenziale;\n- Inserito controllo nel caso di nuove costruzioni relativo all'inserimento di parcheggi di progetto (controllo in deactivate);"]
["APRILE",2020,"02.04","-","- Nel caso di cambio d'uso per le urbanizzazioni primarie e per le secondarie adopera nel riepilogo la parte relativa alle ristrutturazioni solamente. Per un errore inseriva le superfici anche nella demolizione e ricostruzione."]
["MAGGIO",2020,"01.05","2020-05-04","- Implementato nuvo foglio con prospetto rateizzazione"]
["MAGGIO",2020,"02.05","2020-05-15","- Quando la condizione e' verificata che [Sn+(60% Sa) < 25% Su utilizza sempre il costo di costruzione del residenziale e la tariffa del residenziale."]
["MAGGIO",2020,"03.05","-","- Modifica del calcolo dell'incremento volumetrico percentuale calcolato sul volume senza incremento. Modificata impaginazione del Riepilogo inserendo Su/Sn e Snr/Sa. Modifiche impaginazione e scritte sezione 6 foglio inserimento dati."]
["GIUGNO",2020,"01.06","2020-06-05","Nel caso di cambio d'uso è stato eliminato il calcolo degli standard nel caso di passaggio da residenza a terziario. Sistemata somma Sn nella parte commerciale, mancava l'ultimo rigo. In caso di inserimento di una zona di standard con tariffa nulla lo ripoirta nel prosp. di riepilogo senza che la moltiplicazione dia errore ed il controllo che lo standard non sia inserito funziona essendo il valore nella casella \"Non mon.\" invece che 0. In caso di cambio d'uso inserito il fattore moltiplicativo per passare da netto a lordo da 1,3 a 1,2."]
["GIUGNO",2020,"02.06","2020-06-08","Inserito controllo di congruenza sulla superficie lorda inserita nella sezione 1 e nella sezione 5. In caso di difformità le celle si colorano di rosso per segnalare l'anomalia."]
["GIUGNO",2020,"03.06","-","Passati flag per cambio d'uso da varibili di tipo long a double. Per cambio d'uso inserita cella solo per dest. Residenziale per l'inserimento della superficie lorda dell'unità abitativa (da adoperare solo nel caso calcolo degli standard urbanistici). Modificato prospetto di riepilogo inserendo la possibilità di detrarre importi anche per standard e sanzioni. Inseriti vari controlli ed alert nel caso di dati inseriti mancanti o inseriti non corretti nel foglio \"inserimento dati\".Corretto errore #DIV/0 nel foglio \"Tab calcolo magg. CC\" nel caso sia inserita solo la superficie residenziale. Percui il calcolo della maggiorazione Snr/Su dia errore di divisione per 0."]
["LUGLIO",2020,"07.01","2020-07-01","Modifiche da rel. 03.06 non pubblicata"]
["LUGLIO",2020,"07.02",null,"Modificata la detrazione dei parcheggi dal costo di costruzione in funzione della destinazione residenziale o commerciale. La legge 122/89 è suddivsa in funzione del volume del residenziale e del terziario"]
["AGOSTO",2020,"08.01","2020-08-01","Aggiunto nel riepilogo totale complessivo contr. Costruzione + standard parcheggi + sanzioni"]
["AGOSTO",2020,"08.02","-","Nel caso di demolizione e ricostruzione semplice le superfici sono state divise in esistenti e di progetto. Nel caso di strutture esistenti la tariffa oneri và in demolizione e ricostruzione nel caso di superfici nuove la tariffa oneri va in nuova costruzione."]
["SETTEMBRE",2020,"09.01","2020-08-31","Per DR. In piano casa, nel caso di cambio d'uso dell'intero fabbricato gli oneri vengono pagati sull'intera volumetria di progetto. Sistemata formula."]
["SETTEMBRE",2020,"09.02","-","In caso di cambio d'uso su struttura commerciale verifica che sia selezionato la tipolgia di attività e la zona. Abilita o disabilita la asella di check box per l'abattimento del 20% da art. 17 DPR 380/01 in funzione dell'intervento edilizio che viene selezionato. Modifica impaginazione in funzione di visualizzazione su scheda grafica. Riscritta completamente la formula nel foglio di riepilogo relativa alle detrazioni dei parcheggi in maniera che tenga conto del volume relativo alla destinazione d'uso per la verifica del parcheggio 122/89 da dterarre."]
["OTTOBRE",2020,"10.01","2020-10-01","Versione distribuita all'esterno"]
["OTTOBRE",2020,"10.02","2020-10-14","Versione distribuita solo interno. Sistemata in caso di demolizione e ricostruzione superficie utile e snr non può essere maggiore di quella di progetto. In caso la superficie della demolizione sia superiore alla nuova superficie di progetto il limite è impostato sulla superficie di progetto. Eliminata possibilità che ci siano numerii negativi nelle superfici utili tra nuova costruzione e demolizione e ricostruzione. Sistemata parte degli standard residenziali con la possibilità di sommare la superficie in mq del lotto di pertinenza nel caso di zona di prg in area a servizi per la residenza ed a verde"]
["NOVEMBRE",2020,"11.01","2020-11-01","Inserita possibilità nella sezione 6 di inserire il volume esistente oggetto del cambio di destinazione d'uso per calcolare gli standard. La possibilità è prevista solo per gli interventi in piano casa."]
["APRILE",2021,"04.01","2021-04-01","In funzione delle sentanza TAR su compensazione standard tra terziario e residenziale il quantitativo degli standard in caso di cambio d'uso o di calcolo per piano casa è stata modificata inserendo il valori \"7\" in compensazione per le zone B9 e il valore \"0\" per le zone a \"Terziario Direzionale\". Per gli edifici antecedenti il PRG del 76 è stato lasciato il calcolo con \"20\". "]

{"sheet":"Elenchi","index":11,"n_rows":32,"n_cols":35,"rows_kept":32,"cut":false,"hidden":true,"merged":[]}
["Destinazione di P.R.G.",null,"Distanza dal mare",null,"Incrementi per particolari caratteristiche (modificato e spostato alla fine)",null,"Classe protocollo Itaca",null,"Tipologia attività",null,"Tipo di attività/zona coeff. - ATTIVITA' TURISTICHE","coeff. %",null,"Tipo di attività/zona coeff. - ATTIVITA' COMMERCIALI","coeff. %",null,"Tipo di attività/zona coeff. - ATTIVITA' TERZIARIE","coeff. %",null,"Tipo insediamento",null,"Destinazione di P.R.G.",null,"Articoli NTA PUE ASI",null,"Nr. dipendenti",null,"Standard - Tipizzazione della zona  a standard","ind"," €",null,"Recupero/Ristrutturazioni","flag",null,"Incrementi per particolari caratteristiche"]
["Centro Storico A1","RESIDENZA","<   500 m.",null,0,null,"Inferiore a classe 3 -> Nessuna riduzione Oneri Urb.",null,"Attività turistiche",null,"a. Alberghi 5*",0.1,null,"a. Es. commerciali in genere, negozi ingrosso e dettaglio, supermarket, depositi di merci",0.05,null,"a. Centro edificato coefficiente 5",0.06,null,"Industrie per il trasferimento di prodotti agricoli, zootecniche, artigianato",null,"Ampliamenti",null,"Articolo 9.1",null,"da 1 a 10",null,"Inserimento manuale tariffa (da usare nel caso di media di piu' zone)",null,null,null,"Opere edili semplici",1,null,"1) più di un ascensore per ogni scala se questa serve meno di sei piani sopraelevati"]
["Interesse Ambientale A2","RESIDENZA","< 2000 m.",null,1,null,"Classe 3 -> Riduzione 10% Oneri Urb. Sec.",null,"Attività commerciali",null,"b. Alberghi 4*",0.08,null,"b. Come al punto a. ma nel centro edificato coefficiente 5",0.05,null,"b. Centro edificato coefficiente 6",7.0000000000000007E-2,null,"Industrie non comprese nella tabella B1 - Aree ferroviarie, portuali, aeroportuali",null,"Nuovi insediamenti",null,"Articolo 9.11",null,"da 11 a 50",null,"Centro Storico A1",null,null,null,"Senza opere edili",2,null,"2) scala di servizio non prescritta da leggi o regolamenti o imposta da necessità di prevenzione di infortuni o di incendi"]
["Completamento B1","RESIDENZA","< 5000 m.",null,2,null,"Classe 4/5 -> Riduzione 20% Oneri Urb. Sec.",null,"Attività terziario-direzionale",null,"c. Alberghi 3*",7.0000000000000007E-2,null,"c. Come al punto a. ma nel centro edificato coefficiente 6",0.06,null,"c. Centro edificato coefficiente 7",0.08,null,"Consorzi ASI - Insediamenti commerciali e direzionali",null,"Nuovi insediamenti PP",null,"Articolo 9.2 - 9.3",null,"da 51 a 200",null,"Interesse Ambientale A2",null,null,null,"Con opere edili complesse",3,null,"3) altezza libera netta di piano superiore a m 3,00 o a quella minima prescritta da norme regolamentari. Per ambienti con altezze diverse usare altezza media ponderale"]
["Completamento B2","RESIDENZA","> 5000 m.",null,3,null,null,null,null,null,"d. Alberghi 2* e pensioni",0.05,null,"d. Come al punto a. ma nel centro edificato coefficiente 7",7.0000000000000007E-2,null,"d. Centro edificato coefficiente 8",0.09,null,null,null,null,null,"Articolo 10.3",null,"da 201 a 1000",null,"Completamento B1",7,1750,null,null,null,null,"4) piscina coperta o scoperta quando sia a servizio di uno o più edifici comprendenti meno di 15 unità immobiliari"]
["Completamento B3","RESIDENZA",null,null,4,null,null,null,null,null,"e. Stabilimenti balneari",0.05,null,"e. Come al punto a. ma nel centro edificato coefficiente 8",0.08,null,null,null,null,null,null,null,null,"Articolo 12",null,null,null,"Completamento B2",5,1162.5,null,null,null,null,"5) alloggi di custodia a servizio di uno o più edifici comprendenti meno di 15 unità immobiliari"]
["Completamento B4","RESIDENZA",null,null,5,null,null,null,null,null,"f. Camping posteggi roulotte",0.05,null,"f. Cinema, Teatri, locali di pubblico spettacolo – entro il centro edificato",0.1,null,null,null,null,null,null,null,null,null,null,null,null,"Completamento B3",3,562.5]
["Completamento B5","RESIDENZA",null,null,null,null,null,null,null,null,"g. Ristoranti entro esercizi alberghieri come i rispettivi alberghi",0.05,null,"g. Cinema, Teatri, locali di pubblico spettacolo – fuori il centro edificato",0.06,null,null,null,null,null,null,null,null,null,null,null,null,"Completamento B4",2,375]
["Rinnovamento urbano B6","RESIDENZA",null,null,null,null,null,null,null,null,"h. Ristoranti",7.0000000000000007E-2,null,null,null,null,null,null,null,null,null,null,null,null,null,null,null,"Completamento B5",0.5,93.75]
["Rinnovamento urbano B7","RESIDENZA",null,null,null,null,null,null,null,null,"i. Trattorie e Pizzerie",0.05,null,null,null,null,null,null,null,null,null,null,null,null,null,null,null,"Rinnovamento urbano B6",5,775]
["Rinnovamento urbano B8","RESIDENZA",null,null,null,null,null,null,null,null,null,null,null,null,null,null,null,null,null,null,null,null,null,null,null,null,null,"Rinnovamento urbano B7",3,465]
["Rinn. urbano terz./direz. B9",null,null,null,null,null,null,null,null,null,null,null,null,null,null,null,null,null,null,null,null,null,null,null,null,null,null,"Rinnovamento urbano B8",0.5,65]
["Area di espansione C1","RESIDENZA",null,null,null,null,null,null,"Attività terziarie (OLD  in det. Manca scritta direz)",null,null,null,null,null,null,null,null,null,null,null,null,null,null,null,null,null,null,"Rinn. urbano terz./direz. B9",7,1085]
["Area di espansione C2","RESIDENZA",null,null,null,null,null,null,null,null,null,null,null,null,null,null,null,null,null,null,null,null,null,null,null,null,null,"Area di espansione C1",1.75,157.5]
["Area di espansione C3","RESIDENZA",null,null,null,null,null,null,null,null,null,null,null,null,null,null,null,null,null,null,null,null,null,null,null,null,null,"Area di espansione C2",1,90]
["Terziario Direzionale TD",null,null,null,null,null,null,null,null,null,null,null,null,null,null,null,null,null,null,null,null,null,null,null,null,null,null,"Area di espansione C3",0.5,45]
["Zone attività primarie A e B",null,null,null,null,null,null,null,null,null,null,null,null,null,null,null,null,null,null,null,null,null,null,null,null,null,null,"Area per attrezzature di servizio pubblico a carattere regionale o urbano - attrezzature sportive D/A",0.5,22.5]
["Servizi alla residenza",null,null,null,null,null,null,null,null,null,null,null,null,null,null,null,null,null,null,null,null,null,null,null,null,null,null,"Area per attrezzature di servizio pubblico a carattere regionale o urbano - attrezzature scolastiche digrado superiore D/B",2,90]
["Verde ed attrezz. carattere urbano e regionale",null,null,null,null,null,null,null,null,null,null,null,null,null,null,null,null,null,null,null,null,null,null,null,null,null,null,"Area per attrezzature di servizio pubblico a carattere regionale o urbano - attrezzature universitarie statali D/C",2,90]
["Zone produttive",null,null,null,null,null,null,null,null,null,null,null,null,null,null,null,null,null,null,null,null,null,null,null,null,null,null,"Area per attrezzature di servizio pubblico a carattere regionale o urbano - attrezzature universitarie sanitarie e ospedaliere D/D",3,135]
["Viabilità di piano e rispetto",null,null,null,null,null,null,null,null,null,null,null,null,null,null,null,null,null,null,null,null,null,null,null,null,null,null,"Area per attrezzature di servizio pubblico a carattere regionale o urbano - attrezzature a carattere fieristico D/E",2,90]
["Aree ferroviarie destinazione da PRG",null,null,null,null,null,null,null,null,null,null,null,null,null,null,null,null,null,null,null,null,null,null,null,null,null,null,"Area per attrezzature di servizio pubblico a carattere regionale o urbano - attrezzature tecnologiche D/F",null,0]
["Aree ferroviarie altre destinazioni",null,null,null,null,null,null,null,null,null,null,null,null,null,null,null,null,null,null,null,null,null,null,null,null,null,null,"Area per attrezzature diservizio pubblico a carattere regionale o urbano - aree cimiteriali D/G",null,0]
["Arenili e coste",null,null,null,null,null,null,null,null,null,null,null,null,null,null,null,null,null,null,null,null,null,null,null,null,null,null,"Area per attrezzature di servizio pubblico a carattere regionale o urbano - aree di espansione e sviluppo servizi regionali D/H",2,90]
["Zone ASI",null,null,null,null,null,null,null,null,null,null,null,null,null,null,null,null,null,null,null,null,null,null,null,null,null,null,"Area per attrezzature di servizio pubblico a carattere regionale o urbano - sedi ed attrezzature militari D/I",null,0]
["Area di rispetto",null,null,null,null,null,null,null,null,null,null,null,null,null,null,null,null,null,null,null,null,null,null,null,null,null,null,"Area per attrezzature di servizio pubblico a carattere regionale o urbano - sedi ed attrezzature per il culto D/L",2,90]
[null,null,null,null,null,null,null,null,null,null,null,null,null,null,null,null,null,null,null,null,null,null,null,null,null,null,null,"Servizi per la residenza - asili nido, scuole materne e dell'obbligo D/M",2,110]
[null,null,null,null,null,null,null,null,null,null,null,null,null,null,null,null,null,null,null,null,null,null,null,null,null,null,null,"Servizi per la residenza - chiese ed opere parrocchiali - centri civici e sociali - sanitari - amministrativi per pubblici servizi D/N",2,110]
[null,null,null,null,null,null,null,null,null,null,null,null,null,null,null,null,null,null,null,null,null,null,null,null,null,null,null,"Attività secondarie tipo \"A\"- attività produttive industriali E/A",null,86.25]
[null,null,null,null,null,null,null,null,null,null,null,null,null,null,null,null,null,null,null,null,null,null,null,null,null,null,null,"Attività secondarie tipo \"B\" - artigianato, deposito, attività annonarie e simili E/B",2.5,93.75]
[null,null,null,null,null,null,null,null,null,null,null,null,null,null,null,null,null,null,null,null,null,null,null,null,null,null,null,"Attività secondarie tipo \"C\" - relative ad attività a carattere annonario E/C",2,75]
[null,null,null,null,null,null,null,null,null,null,null,null,null,null,null,null,null,null,null,null,null,null,null,null,null,null,null,"Zone per attività terziarie e livello urbano e metropolitano F",5,625]